Date,Department/Service,Beneficiary,Amount,Summary of purpose,Category,Transaction number
01.06.2016,BERMONDSEY & ROTHERHITHE COMMUNITY COUNCIL,SOUTHWARK CITIZENS ADVICE BUREAUX SERVICE ,600.00,AGEING WELL IN SOUTHWARK ,GRANTS,CHEQUE PAYMENT
01.06.2016,CAMBERWELL COMMUNITY COUNCIL,SOUTHSIDE YOUNG LEADERS' ACADEMY,"5,000.00",SYLA CARPENTRY AND GARDENING,GRANTS,CHEQUE PAYMENT
01.06.2016,CHILDREN'S SERVICES,TRANSPORT FOR LONDON,"1,995.00",CONGESTION CHARGING,CHARGES,DIRECT DEBIT PAYMENT
01.06.2016,H&M IT SERVICES,SWORD CONNECT,"16,000.00",GOOGLE SEARCH APPLIANCE  (GSA) LICENSE RENEWAL,FEES,INTERNATIONAL PAYMENT
01.06.2016,PECKHAM AND NUNHEAD COMMUNITY COUNCIL,GLOUCESTER GROVE TMO ,"1,500.00",SENIOR CITIZEN XMAS/FESTIVE SEASON LUNCH ,GRANTS,CHEQUE PAYMENT
02.06.2016,-,TROWERS & HAMLINS LLP,"89,849.97",CAPITAL PS (REGEN),CONSTRUCTION FEES - LEGAL,5902195204
02.06.2016,-,SPOKEMEAD MAINTENANCE LTD,"211,765.00",PAYMENTS CONTROL ACCOUNT - SPOKEMEAD,MANUAL CREDITORS,5902195156
02.06.2016,-,SCCI ALPHATRACK LTD,"104,312.38",SCCI ALPHATRACK,MANUAL CREDITORS,5902195026
02.06.2016,-,EYRE & ELLISTON LTD,275.20,STORES,CREDITORS -GR/IR CLEARING ACCOUNT,5902195157
02.06.2016,-,EYRE & ELLISTON LTD,290.00,STORES,CREDITORS -GR/IR CLEARING ACCOUNT,5902195154
02.06.2016,-,EYRE & ELLISTON LTD,290.40,STORES,CREDITORS -GR/IR CLEARING ACCOUNT,5902195159
02.06.2016,-,EYRE & ELLISTON LTD,315.00,STORES,CREDITORS -GR/IR CLEARING ACCOUNT,5902195166
02.06.2016,-,EYRE & ELLISTON LTD,316.80,STORES,CREDITORS -GR/IR CLEARING ACCOUNT,5902195166
02.06.2016,-,EYRE & ELLISTON LTD,370.50,STORES,CREDITORS -GR/IR CLEARING ACCOUNT,5902195166
02.06.2016,-,EYRE & ELLISTON LTD,460.00,STORES,CREDITORS -GR/IR CLEARING ACCOUNT,5902195154
02.06.2016,-,EYRE & ELLISTON LTD,492.00,STORES,CREDITORS -GR/IR CLEARING ACCOUNT,5902195154
02.06.2016,-,EYRE & ELLISTON LTD,565.00,STORES,CREDITORS -GR/IR CLEARING ACCOUNT,5902195154
02.06.2016,-,EYRE & ELLISTON LTD,667.50,STORES,CREDITORS -GR/IR CLEARING ACCOUNT,5902195166
02.06.2016,-,EYRE & ELLISTON LTD,675.00,STORES,CREDITORS -GR/IR CLEARING ACCOUNT,5902195166
02.06.2016,-,EYRE & ELLISTON LTD,785.00,STORES,CREDITORS -GR/IR CLEARING ACCOUNT,5902195166
02.06.2016,-,EYRE & ELLISTON LTD,"1,005.00",STORES,CREDITORS -GR/IR CLEARING ACCOUNT,5902195176
02.06.2016,-,LAKEDALE POWER TOOLS,435.00,STORES,CREDITORS -GR/IR CLEARING ACCOUNT,5902195260
02.06.2016,-,LAKEDALE POWER TOOLS,"1,440.00",STORES,CREDITORS -GR/IR CLEARING ACCOUNT,5902195260
02.06.2016,-,SMI GROUP,325.50,STORES,CREDITORS -GR/IR CLEARING ACCOUNT,5902195191
02.06.2016,ASSET MANAGEMENT,EURO CONTRACTS (LONDON) LTD,"2,115.00",ADAPTATIONS,BUILDING R&M,2102497689
02.06.2016,ASSET MANAGEMENT,M C TECHNICIANS LTD,"1,390.00",ADAPTATIONS,BUILDING R&M,2102497544
02.06.2016,ASSET MANAGEMENT,M C TECHNICIANS LTD,"1,520.00",ADAPTATIONS,BUILDING R&M,2102497545
02.06.2016,BERMONDSEY & ROTHERHITHE COMMUNITY COUNCIL,AVONDALE COMMUNITY EVENTS ,818.00,PICNIC ON THE GREEN ,GRANTS,CHEQUE PAYMENT
02.06.2016,CAMBERWELL COMMUNITY COUNCIL,ST GEORGES POP-IN,680.00,ART EXHIBITION FOR ST GEORGES'S POP-IN TUESDAY ART CLUB,GRANTS,CHEQUE PAYMENT
02.06.2016,CAMBERWELL COMMUNITY COUNCIL,ST GEORGES POP-IN,680.00,DANCE CLASSES FOR ST GEORGE'S POP-IN,GRANTS,CHEQUE PAYMENT
02.06.2016,CENTRAL FUNCTIONS,KENT COUNTY COUNCIL - LASER,"11,694.64",HEATING ACCOUNT,ELECTRICITY,5902193976
02.06.2016,CENTRAL FUNCTIONS,KENT COUNTY COUNCIL - LASER,"48,199.25",HEATING ACCOUNT,ELECTRICITY,5902193976
02.06.2016,CENTRAL FUNCTIONS,KENT COUNTY COUNCIL - LASER,"8,321.88",HEATING ACCOUNT,GAS,5902194152
02.06.2016,CENTRAL FUNCTIONS,KENT COUNTY COUNCIL - LASER,"441,555.26",HEATING ACCOUNT,GAS,5902194152
02.06.2016,CENTRAL FUNCTIONS,HM COURTS & TRIBUNALS SERVICE,255.00,HOME OWNERSHIP,LEGAL FEES & COURT COSTS,2102498035
02.06.2016,CHIEF EXECUTIVE,MOTT MACDONALD LTD,"4,500.00",CAPITAL PS (REGEN),CONSTRUCTION FEES,5902195233
02.06.2016,CHIEF EXECUTIVE,STANDAGE & CO LTD,"24,466.72",CAPITAL PS (REGEN),CONSTRUCTION SITE COSTS,2102497717
02.06.2016,CHIEF EXECUTIVE,STANDAGE & CO LTD,"28,863.43",CAPITAL PS (REGEN),CONSTRUCTION SITE COSTS,2102497694
02.06.2016,CHIEF EXECUTIVE,STANDAGE & CO LTD,"28,863.44",CAPITAL PS (REGEN),CONSTRUCTION SITE COSTS,2102497716
02.06.2016,CHIEF EXECUTIVE,CONWAY AECOM LTD,"28,013.52",CAPITAL PS (REGEN),CONSTRUCTION SUB CONTRACT - NON CERTIFICATED,2102497554
02.06.2016,CHIEF EXECUTIVE,TREE SHEPHERD LTD,"1,712.50",CAPITAL PS (REGEN),LAND & BUILDINGS ACQUISITION FEES,5902195256
02.06.2016,CHIEF EXECUTIVE'S OFFICE,COPELAND PARK PV,600.00,BUSINESS SUPPORT FUND,GRANTS,5902195312
02.06.2016,CHIEF EXECUTIVE'S OFFICE,COPELAND PARK PV,"2,500.00",BUSINESS SUPPORT FUND,GRANTS,5902195310
02.06.2016,CHILDREN AND ADULT,STONEGROVE LIMITED,"3,290.62",CAPITAL PS (EDUCATION),CONSTRUCTION,2102497558
02.06.2016,CHILDREN AND ADULT,MORGAN SINDALL PLC,"70,573.68",CAPITAL PS (EDUCATION),CONSTRUCTION SUB CONTRACT - NON CERTIFICATED,2102497719
02.06.2016,CHILDREN'S SERVICES,REDACTED PERSONAL DATA,314.60,ADOPTION PLACEMENTS & INTER AGENCY,OTHER PAYMENTS FOR CLIENTS,5902195220
02.06.2016,CHILDREN'S SERVICES,REDACTED PERSONAL DATA,927.05,ADOPTION PLACEMENTS & INTER AGENCY,PAYMENTS TO CARERS,5902195222
02.06.2016,CHILDREN'S SERVICES,KINDLY PROPERTIES,"4,230.00",AIS - IHT,SECTION 17 PAYMENTS TO AGENCIES/CARERS,2102497538
02.06.2016,CHILDREN'S SERVICES,STANNAH LIFT SERVICES LTD,364.02,BUILDING SUMNER,BUILDING R&M,5902195049
02.06.2016,CHILDREN'S SERVICES,REDACTED PERSONAL DATA,"4,257.91",CARE FIRST - CARER,PAYMENTS TO CARERS,CHAPS PAYMENT
02.06.2016,CHILDREN'S SERVICES,CARE O LINE,280.36,CONTACT,OTHER PAYMENTS FOR CLIENTS,5902195037
02.06.2016,CHILDREN'S SERVICES,CARE O LINE,375.93,CONTACT,OTHER PAYMENTS FOR CLIENTS,5902195042
02.06.2016,CHILDREN'S SERVICES,CARE O LINE,457.60,CONTACT,OTHER PAYMENTS FOR CLIENTS,5902195028
02.06.2016,CHILDREN'S SERVICES,OFFICE DEPOT UK LTD,595.82,DIRECT DELIVERY,STATIONERY,5902195240
02.06.2016,CHILDREN'S SERVICES,REDACTED PERSONAL DATA,253.10,HOME 2 SCHOOL TRANSPORT,CAB FARES,2102497523
02.06.2016,CHILDREN'S SERVICES,REDACTED PERSONAL DATA,280.00,HOME 2 SCHOOL TRANSPORT,CAB FARES,2102497501
02.06.2016,CHILDREN'S SERVICES,REDACTED PERSONAL DATA,280.00,HOME 2 SCHOOL TRANSPORT,CAB FARES,2102497509
02.06.2016,CHILDREN'S SERVICES,REDACTED PERSONAL DATA,280.00,HOME 2 SCHOOL TRANSPORT,CAB FARES,2102497520
02.06.2016,CHILDREN'S SERVICES,REDACTED PERSONAL DATA,400.00,HOME 2 SCHOOL TRANSPORT,CAB FARES,2102497524
02.06.2016,CHILDREN'S SERVICES,REDACTED PERSONAL DATA,484.00,HOME 2 SCHOOL TRANSPORT,CAB FARES,2102497500
02.06.2016,CHILDREN'S SERVICES,REDACTED PERSONAL DATA,495.00,HOME 2 SCHOOL TRANSPORT,CAB FARES,2102497514
02.06.2016,CHILDREN'S SERVICES,REDACTED PERSONAL DATA,780.00,HOME 2 SCHOOL TRANSPORT,CAB FARES,2102497516
02.06.2016,CHILDREN'S SERVICES,REDACTED PERSONAL DATA,800.00,HOME 2 SCHOOL TRANSPORT,CAB FARES,2102497508
02.06.2016,CHILDREN'S SERVICES,REDACTED PERSONAL DATA,940.00,HOME 2 SCHOOL TRANSPORT,CAB FARES,2102497505
02.06.2016,CHILDREN'S SERVICES,REDACTED PERSONAL DATA,986.00,HOME 2 SCHOOL TRANSPORT,CAB FARES,2102497521
02.06.2016,CHILDREN'S SERVICES,REDACTED PERSONAL DATA,407.00,HOME 2 SCHOOL TRANSPORT,RECOUPMENT,5902195237
02.06.2016,CHILDREN'S SERVICES,HIGHSHORE SCHOOL,"73,726.00",IN YEAR STATEMENTS & REORGS,SCHOOLS CAPITATION,5902195295
02.06.2016,CHILDREN'S SERVICES,RYE OAK PRIMARY SCHOOL,"58,766.00",IN YEAR STATEMENTS & REORGS,SCHOOLS CAPITATION,5902195298
02.06.2016,CHILDREN'S SERVICES,SNOWSFIELDS PRIMARY SCHOOL,"52,860.00",IN YEAR STATEMENTS & REORGS,SCHOOLS CAPITATION,5902195297
02.06.2016,CHILDREN'S SERVICES,SPA SCHOOL,"66,354.00",IN YEAR STATEMENTS & REORGS,SCHOOLS CAPITATION,5902195296
02.06.2016,CHILDREN'S SERVICES,DRUMHEAD LTD,"1,210.00",LEA MUSIC SERVICE(310) - 5018566,CONSULTANTS SERVICES,5902195193
02.06.2016,CHILDREN'S SERVICES,PERCUSSION PLUS LTD,"1,508.96",LEA MUSIC SERVICE(310) - 5018566,EQUIPMENT PURCHASE & REPAIR,5902195267
02.06.2016,CHILDREN'S SERVICES,HM COURTS & TRIBUNALS SERVICE,"2,055.00",LEGAL,LEGAL FEES & COURT COSTS,2102497998
02.06.2016,CHILDREN'S SERVICES,HM COURTS & TRIBUNALS SERVICE,"2,055.00",LEGAL,LEGAL FEES & COURT COSTS,2102498002
02.06.2016,CHILDREN'S SERVICES,HM COURTS & TRIBUNALS SERVICE,"2,055.00",LEGAL,LEGAL FEES & COURT COSTS,2102498004
02.06.2016,CHILDREN'S SERVICES,HM COURTS & TRIBUNALS SERVICE,"2,055.00",LEGAL,LEGAL FEES & COURT COSTS,2102498009
02.06.2016,CHILDREN'S SERVICES,HM COURTS & TRIBUNALS SERVICE,"2,055.00",LEGAL,LEGAL FEES & COURT COSTS,2102498010
02.06.2016,CHILDREN'S SERVICES,HM COURTS & TRIBUNALS SERVICE,"2,055.00",LEGAL,LEGAL FEES & COURT COSTS,2102498012
02.06.2016,CHILDREN'S SERVICES,HM COURTS & TRIBUNALS SERVICE,"2,055.00",LEGAL,LEGAL FEES & COURT COSTS,2102498013
02.06.2016,CHILDREN'S SERVICES,HM COURTS & TRIBUNALS SERVICE,"2,055.00",LEGAL,LEGAL FEES & COURT COSTS,2102498023
02.06.2016,CHILDREN'S SERVICES,HM COURTS & TRIBUNALS SERVICE,"2,055.00",LEGAL,LEGAL FEES & COURT COSTS,2102498026
02.06.2016,CHILDREN'S SERVICES,HM COURTS & TRIBUNALS SERVICE,"2,055.00",LEGAL,LEGAL FEES & COURT COSTS,2102498045
02.06.2016,CHILDREN'S SERVICES,MORGAN SINDALL PLC,"23,042.46",PROPERTY MANAGEMENT - 5015257,CONSULTANTS SERVICES,5902195303
02.06.2016,CHILDREN'S SERVICES,THAMES WATER UTILITIES LTD,"4,019.87",PROPERTY MANAGEMENT - 5015257,GAS,5902195306
02.06.2016,CHILDREN'S SERVICES,ALERE TOXICOLOGY PLC,756.00,S & FAM SUPP - PRAC GRP D SET 23-25,OTHER PAYMENTS FOR CLIENTS,5902195033
02.06.2016,CHILDREN'S SERVICES,ALERE TOXICOLOGY PLC,350.00,S & FAM SUPP - PRAC GRP E SET 26-28,OTHER PAYMENTS FOR CLIENTS,5902195031
02.06.2016,CHILDREN'S SERVICES,HOME OFFICE LEAVE TO REMAIN,"1,500.00",S & FAM SUPP - PRAC GRP E SET 26-28,OTHER PAYMENTS FOR CLIENTS,5902193786
02.06.2016,CHILDREN'S SERVICES,HOME OFFICE LEAVE TO REMAIN,"1,500.00",S & FAM SUPP - PRAC GRP E SET 26-28,OTHER PAYMENTS FOR CLIENTS,5902193788
02.06.2016,CHILDREN'S SERVICES,ALERE TOXICOLOGY PLC,324.00,S & FAM SUPP - PRAC GRP F SET 29-31,OTHER PAYMENTS FOR CLIENTS,5902195041
02.06.2016,CHILDREN'S SERVICES,ALERE TOXICOLOGY PLC,713.00,S & FAM SUPP - PRAC GRP F SET 29-31,OTHER PAYMENTS FOR CLIENTS,5902195046
02.06.2016,CHILDREN'S SERVICES,BESSEMER GRANGE PRIMARY SCHOOL,"17,208.40",SCHOOLS IN FINANCIAL DIFFICULTY,SCHOOLS CAPITATION,5902195173
02.06.2016,CHILDREN'S SERVICES,REDACTED PERSONAL DATA,377.20,SPECIALIST CARE,SECTION 17 PAYMENTS TO CLIENTS,2102497541
02.06.2016,COMMUNITIES,THAMES REACH EMPOLYMENT ACADEMY,613.04,NO RECOURSE TO PUBLIC FUNDS,SECTION 17 PAYMENTS TO AGENCIES/CARERS,5902195336
02.06.2016,COMMUNITIES,THAMES REACH EMPOLYMENT ACADEMY,766.30,NO RECOURSE TO PUBLIC FUNDS,SECTION 17 PAYMENTS TO AGENCIES/CARERS,5902195342
02.06.2016,COMMUNITIES,THURLOW LODGE T&RA,"3,735.00",TENANTS FUND,GRANTS,5902193731
02.06.2016,CUSTOMER SERVICES,LAKEDALE POWER TOOLS,309.00,TA HOSTELS,MATERIALS,5902195307
02.06.2016,CUSTOMER SERVICES,LAKEDALE POWER TOOLS,320.00,TA HOSTELS,MATERIALS,5902195305
02.06.2016,CUSTOMER SERVICES HGF,JOANNE MCELROY,300.00,COMPLAINTS,PROFESSIONAL FEES,5902195225
02.06.2016,CUSTOMER SERVICES HGF,VICTORIA ASSET FINANCE,355.00,CORONER'S,OTHER R&M,5902195313
02.06.2016,CUSTOMER SERVICES HGF,IC CONSULTANTS LTD,276.00,CORONER'S,PROFESSIONAL FEES,5902195337
02.06.2016,CUSTOMER SERVICES HGF,IC CONSULTANTS LTD,276.00,CORONER'S,PROFESSIONAL FEES,5902195345
02.06.2016,CUSTOMER SERVICES HGF,IC CONSULTANTS LTD,312.00,CORONER'S,PROFESSIONAL FEES,5902195332
02.06.2016,CUSTOMER SERVICES HGF,IC CONSULTANTS LTD,312.00,CORONER'S,PROFESSIONAL FEES,5902195341
02.06.2016,CUSTOMER SERVICES HGF,IC CONSULTANTS LTD,324.00,CORONER'S,PROFESSIONAL FEES,5902195351
02.06.2016,CUSTOMER SERVICES HGF,IC CONSULTANTS LTD,362.00,CORONER'S,PROFESSIONAL FEES,5902195339
02.06.2016,CUSTOMER SERVICES HGF,IC CONSULTANTS LTD,388.00,CORONER'S,PROFESSIONAL FEES,5902195346
02.06.2016,CUSTOMER SERVICES HGF,IC CONSULTANTS LTD,448.00,CORONER'S,PROFESSIONAL FEES,5902195350
02.06.2016,CUSTOMER SERVICES HGF,IC CONSULTANTS LTD,472.00,CORONER'S,PROFESSIONAL FEES,5902195329
02.06.2016,CUSTOMER SERVICES HGF,IC CONSULTANTS LTD,572.00,CORONER'S,PROFESSIONAL FEES,5902195331
02.06.2016,CUSTOMER SERVICES HGF,IC CONSULTANTS LTD,636.00,CORONER'S,PROFESSIONAL FEES,5902195348
02.06.2016,CUSTOMER SERVICES HGF,ITS TRAINING (UK) LTD,320.00,HOMELESS & HOUSING OPTIONS MGT,INFORMATION MANAGEMENT,5902195055
02.06.2016,CUSTOMER SERVICES HGF,ACE FAST LETTINGS LTD,"5,223.50",NIGHTLY TA (NSC),EXTERNAL AGENCIES AND BODIES,5902195228
02.06.2016,CUSTOMER SERVICES HGF,BURLINGTON UNIFORMS,404.60,PECKHAM MSSP,"CLOTHING, UNIFORMS & LAUNDRY",5902194192
02.06.2016,CUSTOMER SERVICES HGF,LEARN SIGN LANGUAGE LTD,320.00,TRANSLATION & INTERPRETATION,INTERPRETING SERVICES,5902195153
02.06.2016,ENVIRONMENT AND LEISURE,BELL PHILLIPS ARCHITECTS LTD,"7,600.00",CAPITAL PS (LEISURE),CONSTRUCTION FEES - EXTERNAL,5902193919
02.06.2016,ENVIRONMENT AND LEISURE,STREET TREE CARE LTD,365.00,CAPITAL PS (LEISURE),CONSTRUCTION FEES - INTERNAL,5902195058
02.06.2016,ENVIRONMENT AND LEISURE,STREET TREE CARE LTD,407.00,CAPITAL PS (LEISURE),CONSTRUCTION FEES - INTERNAL,5902195058
02.06.2016,ENVIRONMENT AND LEISURE,STREET TREE CARE LTD,510.00,CAPITAL PS (LEISURE),CONSTRUCTION FEES - INTERNAL,5902195058
02.06.2016,ENVIRONMENT AND LEISURE,STREET TREE CARE LTD,"19,771.00",CAPITAL PS (LEISURE),CONSTRUCTION FEES - INTERNAL,5902195144
02.06.2016,ENVIRONMENT AND LEISURE,BLAKEDOWN LANDSCAPES,"57,075.32",CAPITAL PS (LEISURE),CONSTRUCTION MAIN CONTRACT,2102497691
02.06.2016,ENVIRONMENT AND LEISURE,INTO SERVICES LONDON LTD,775.00,CAPITAL PS (LEISURE),CONSTRUCTION MAIN CONTRACT - CERTIFICATED,5902195238
02.06.2016,ENVIRONMENT AND LEISURE,INTO SERVICES LONDON LTD,993.00,CAPITAL PS (LEISURE),CONSTRUCTION MAIN CONTRACT - CERTIFICATED,5902195238
02.06.2016,ENVIRONMENT AND LEISURE,ARTHUR DEMOWBRAY,500.00,CAPITAL PS (LEISURE),CONSTRUCTION MAIN CONTRACT - NON CERTIFICATED,5902194358
02.06.2016,ENVIRONMENT AND LEISURE,CONWAY AECOM LTD,512.15,CAPITAL PS (LEISURE),CONSTRUCTION SUB CONTRACT - NON CERTIFICATED,2102497684
02.06.2016,ENVIRONMENT AND LEISURE,CONWAY AECOM LTD,"25,363.25",CAPITAL PS (LEISURE),CONSTRUCTION SUB CONTRACT - NON CERTIFICATED,2102497561
02.06.2016,ENVIRONMENT AND LEISURE,BLAKEDOWN SPORT AND PLAY LTD,"28,470.46",CAPITAL PS (LEISURE),"PLANT, MACHINERY & EQUIPMENT ACQUISITION",2102497692
02.06.2016,ENVIRONMENT DIRECTORATE,CONWAY AECOM LTD,"1,872.94",HIGHWAYS RECOVERABLE WORKS,HIGHWAYS TERM CONTRACT,2102497683
02.06.2016,ENVIRONMENT DIRECTORATE,CONWAY AECOM LTD,"64,342.46",HWAY MINOR WKS NON PRINC RD,HIGHWAYS TERM CONTRACT,2102497560
02.06.2016,ENVIRONMENT DIRECTORATE,CONWAY AECOM LTD,"100,000.00",HWAY MINOR WKS NON PRINC RD,HIGHWAYS TERM CONTRACT,2102497559
02.06.2016,ENVIRONMENT DIRECTORATE,CONWAY AECOM LTD,"100,000.00",HWAY MINOR WKS NON PRINC RD,HIGHWAYS TERM CONTRACT,2102497562
02.06.2016,ENVIRONMENT DIRECTORATE,BELL BRUSH CO LTD,870.75,MANAGEMENT TEAM,MATERIALS,5902195050
02.06.2016,ENVIRONMENT DIRECTORATE,CONWAY AECOM LTD,366.53,PARKING ATTENDANTS PCN'S,OTHER R&M,2102497685
02.06.2016,ENVIRONMENT DIRECTORATE,KYBO CORP,455.00,PEST CONTROL,MATERIALS,5902195300
02.06.2016,ENVIRONMENT DIRECTORATE,KYBO CORP,455.00,PEST CONTROL,MATERIALS,5902195301
02.06.2016,ENVIRONMENT DIRECTORATE,TEW PLUS LTD,"11,407.46",PKG & CAR PKS CCTV,EQUIPMENT PURCHASE & REPAIR,5902195030
02.06.2016,ENVIRONMENT DIRECTORATE,KENT COUNTY COUNCIL - LASER,273.97,SANDGATE STREET,GAS,5902195257
02.06.2016,ENVIRONMENT DIRECTORATE,HM COURTS & TRIBUNALS SERVICE,355.00,SASBU,LEGAL FEES & COURT COSTS,2102498047
02.06.2016,ENVIRONMENT DIRECTORATE,SOUTHWARK NEWSPAPER LTD,372.00,STREET WORKS OVERHEADS,MARKETING & PUBLICITY SERVICES,5902195325
02.06.2016,ENVIRONMENT DIRECTORATE,CONWAY AECOM LTD,"23,442.93",STRUCTURES RECOVERABLE WORKS,HIGHWAYS TERM CONTRACT,2102497682
02.06.2016,ENVIRONMENT DIRECTORATE,TEW PLUS LTD,453.75,TOWN CENTRE CCTV,EQUIPMENT PURCHASE & REPAIR,5902195180
02.06.2016,ENVIRONMENT DIRECTORATE,FULCRUM DATA FORENSICS LTD,"6,450.00",TRADING STANDARDS,PROFESSIONAL FEES,5902195163
02.06.2016,F & C S EXCLUDING CORPORATE BUDGETS,NORTHGATE PUBLIC SERVICES (UK) LTD,"417,644.00",ADMINISTRATIVE SUPPORT,SOFTWARE,5902195022
02.06.2016,F & C S EXCLUDING CORPORATE BUDGETS,HM COURTS & TRIBUNALS SERVICE,255.00,FINANCE DIRECTOR,LEGAL FEES & COURT COSTS,2102498046
02.06.2016,HOUSING HRA,CALFORD SEADEN LLP,522.31,CAPITAL PS (HRA),CONSTRUCTION FEES - EXTERNAL,5902195132
02.06.2016,HOUSING HRA,CALFORD SEADEN LLP,589.96,CAPITAL PS (HRA),CONSTRUCTION FEES - EXTERNAL,5902195129
02.06.2016,HOUSING HRA,TRAFFIC SURVEYS UK LTD,600.00,CAPITAL PS (HRA),CONSTRUCTION FEES - EXTERNAL,5902195024
02.06.2016,HOUSING HRA,L H BRIDGE LTD,"10,000.00",CAPITAL PS (HRA),CONSTRUCTION MAIN CONTRACT,2102497493
02.06.2016,HOUSING HRA,L H BRIDGE LTD,"13,470.00",CAPITAL PS (HRA),CONSTRUCTION MAIN CONTRACT,2102497491
02.06.2016,HOUSING HRA,L H BRIDGE LTD,"19,834.00",CAPITAL PS (HRA),CONSTRUCTION MAIN CONTRACT,2102497492
02.06.2016,HOUSING HRA,A & E ELKINS LTD,"45,735.32",CAPITAL PS (HRA),CONSTRUCTION MAIN CONTRACT - CERTIFICATED,2102497690
02.06.2016,HOUSING HRA,A & E ELKINS LTD,"142,105.09",CAPITAL PS (HRA),CONSTRUCTION MAIN CONTRACT - CERTIFICATED,2102497686
02.06.2016,HOUSING HRA,CALFORD SEADEN LLP,296.84,CAPITAL PS (HRA),CONSTRUCTION MAIN CONTRACT - CERTIFICATED,5902195147
02.06.2016,HOUSING HRA,CALFORD SEADEN LLP,467.99,CAPITAL PS (HRA),CONSTRUCTION MAIN CONTRACT - CERTIFICATED,5902195032
02.06.2016,HOUSING HRA,KEEPMOAT REGENERATION (APOLLO) LTD,"519,507.69",CAPITAL PS (HRA),CONSTRUCTION MAIN CONTRACT - CERTIFICATED,2102497555
02.06.2016,HOUSING HRA,MORGAN SINDALL PLC,"203,433.00",CAPITAL PS (HRA),CONSTRUCTION MAIN CONTRACT - CERTIFICATED,2102497556
02.06.2016,HOUSING HRA,3MS GOLD SERVICES LTD,"4,690.00",CAPITAL PS (HRA),CONSTRUCTION MAIN CONTRACT - NON CERTIFICATED,2102497551
02.06.2016,HOUSING HRA,3MS GOLD SERVICES LTD,"4,845.30",CAPITAL PS (HRA),CONSTRUCTION MAIN CONTRACT - NON CERTIFICATED,2102497550
02.06.2016,HOUSING HRA,3MS GOLD SERVICES LTD,"5,298.00",CAPITAL PS (HRA),CONSTRUCTION MAIN CONTRACT - NON CERTIFICATED,2102497552
02.06.2016,HOUSING HRA,3MS GOLD SERVICES LTD,"5,562.70",CAPITAL PS (HRA),CONSTRUCTION MAIN CONTRACT - NON CERTIFICATED,2102497553
02.06.2016,HOUSING HRA,L H BRIDGE LTD,"5,855.00",CAPITAL PS (HRA),CONSTRUCTION MAIN CONTRACT - NON CERTIFICATED,2102497496
02.06.2016,HOUSING HRA,L H BRIDGE LTD,"6,690.00",CAPITAL PS (HRA),CONSTRUCTION MAIN CONTRACT - NON CERTIFICATED,2102497495
02.06.2016,HOUSING HRA,L H BRIDGE LTD,"6,945.00",CAPITAL PS (HRA),CONSTRUCTION MAIN CONTRACT - NON CERTIFICATED,2102497543
02.06.2016,HOUSING HRA,M E HORSTEAD,"5,795.00",CAPITAL PS (HRA),CONSTRUCTION MAIN CONTRACT - NON CERTIFICATED,2102497546
02.06.2016,HOUSING HRA,P D CONSTRUCTION LTD,"8,919.35",CAPITAL PS (HRA),CONSTRUCTION MAIN CONTRACT - NON CERTIFICATED,2102497547
02.06.2016,HOUSING HRA,SOUTH EAST BUILDING CONTRACTORS LTD,"5,940.00",CAPITAL PS (HRA),CONSTRUCTION MAIN CONTRACT - NON CERTIFICATED,2102497549
02.06.2016,HOUSING HRA,STANDAGE & CO LTD,"1,084.20",CAPITAL PS (HRA),CONSTRUCTION MAIN CONTRACT - NON CERTIFICATED,2102497548
02.06.2016,LEISURE DIRECTORATE,WESTCO TRADING LTD,"3,450.00",BMX TRACK BURGESS PARK,OTHER R&M,5902195192
02.06.2016,LEISURE DIRECTORATE,FREE FILM FESTIVAL,450.00,FACILITIES MANAGEMENT,PROFESSIONAL FEES,5902194167
02.06.2016,LEISURE DIRECTORATE,VEOLIA ES (UK)LTD,642.12,KINGSWOOD HOUSE,CSC CONTRACT,5902195190
02.06.2016,LEISURE DIRECTORATE,KENT COUNTY COUNCIL - LASER,406.68,PYNNERS PLAYING FIELD,ELECTRICITY,5902195143
02.06.2016,LEISURE DIRECTORATE,ASKEWS & HOLTS LIBRARY SERVICES LTD,"15,119.34",STOCK SERVICES,BOOKS & PUBLICATIONS,5902195164
02.06.2016,MODERNISATION HGF,ACCULINE MARKINGS LTD,600.00,160 TOOLEY ST.,BUILDING R&M,5902195149
02.06.2016,MODERNISATION HGF,EDF ENERGY PLC,765.10,160 TOOLEY ST.,ELECTRICITY,5902195146
02.06.2016,MODERNISATION HGF,OFFICE DEPOT UK LTD,"6,820.45",160 TOOLEY ST.,STATIONERY,5902195224
02.06.2016,MODERNISATION HGF,JADU LIMITED,925.00,CORP. TRAINING BUDGETS,TRAINING,5902195151
02.06.2016,MODERNISATION HGF,WYNNE BIER CONSULTANCY LTD,360.00,CORP. TRAINING BUDGETS,TRAINING,5902195139
02.06.2016,MODERNISATION HGF,COMENSURA LTD,"2,998.15",MONTHLY ADMIN FEE,AGENCY STAFF,5902195227
02.06.2016,MODERNISATION HGF,CYGNET BUSINESS DEVELOPMENT LTD,950.00,ORGANISATIONAL DEVELOPMENT,TRAINING,5902195155
02.06.2016,MODERNISATION HGF,CBS MAINTENANCE SERVICES LTD,"28,838.37",REPAIR AND MAINTENANCE SERVICES,BUILDING R&M,2102497693
02.06.2016,MODERNISATION HGF,FRANKLYN SHAW ASSOCIATES LTD,"5,580.00",REPAIR AND MAINTENANCE SERVICES,BUILDING R&M,2102497718
02.06.2016,MODERNISATION HGF,SYMANTEC LTD,300.00,TECHNOLOGY,COMPUTER MAINTENANCE,5902195148
02.06.2016,MODERNISATION HGF,COMENSURA LTD,"413,464.15",WEEKLY PAYMENTS,AGENCY STAFF,5902195227
02.06.2016,PECKHAM AND NUNHEAD COMMUNITY COUNCIL,ST. GEORGE PCC CAMBERWELL POP IN,"1,000.00",ART EXHIBITION FOR ST GEORGES'S POP-IN TUESDAY ART CLUB ,GRANTS,CHEQUE PAYMENT
02.06.2016,PLANNING AND TRANSPORT,KYBO CORP,"1,092.00",DEVELOPMENT CONTROL ADMINSTRATION,COMPUTER MAINTENANCE,5902195134
02.06.2016,PLANNING AND TRANSPORT,KYBO CORP,"1,177.80",DEVELOPMENT CONTROL ADMINSTRATION,COMPUTER MAINTENANCE,5902195130
02.06.2016,PLANNING AND TRANSPORT,HALO AERIAL IMAGING,340.80,PLANNING POLICY TEAM,CONSULTANTS SERVICES,5902195259
02.06.2016,PUBLIC HEALTH,SILVA LTD,"3,500.00",HEALTH CHECKS,MATERIALS,5902194199
02.06.2016,REGENERATION,WE MADE THAT LLP,"6,651.50",OLD KENT RD-FEES/MPLAN,PROFESSIONAL FEES,5902195245
02.06.2016,RESIDENT SERVICES,HM COURTS & TRIBUNALS SERVICE,355.00,BERMONDSEY,LEGAL FEES & COURT COSTS,2102498053
02.06.2016,RESIDENT SERVICES,HM COURTS & TRIBUNALS SERVICE,355.00,BERMONDSEY,LEGAL FEES & COURT COSTS,2102498056
02.06.2016,RESIDENT SERVICES,HM COURTS & TRIBUNALS SERVICE,335.00,BOROUGH & BANKSIDE,LEGAL FEES & COURT COSTS,2102498034
02.06.2016,RESIDENT SERVICES,HM COURTS & TRIBUNALS SERVICE,545.00,CAMBERWELL,LEGAL FEES & COURT COSTS,2102498015
02.06.2016,RESIDENT SERVICES,HM COURTS & TRIBUNALS SERVICE,355.00,DULWICH,LEGAL FEES & COURT COSTS,2102498000
02.06.2016,RESIDENT SERVICES,HM COURTS & TRIBUNALS SERVICE,255.00,NUNHEAD,LEGAL FEES & COURT COSTS,2102498036
02.06.2016,RESIDENT SERVICES,HM COURTS & TRIBUNALS SERVICE,455.00,NUNHEAD,LEGAL FEES & COURT COSTS,2102498058
02.06.2016,RESIDENT SERVICES,HM COURTS & TRIBUNALS SERVICE,545.00,NUNHEAD,LEGAL FEES & COURT COSTS,2102498039
02.06.2016,RESIDENT SERVICES,A & H PEST CONTROL LTD,490.00,NUNHEAD,PEST CONTROL,5902195034
02.06.2016,RESIDENT SERVICES,HM COURTS & TRIBUNALS SERVICE,255.00,PECKHAM,LEGAL FEES & COURT COSTS,2102498033
02.06.2016,RESIDENT SERVICES,HM COURTS & TRIBUNALS SERVICE,255.00,PECKHAM,LEGAL FEES & COURT COSTS,2102498040
02.06.2016,RESIDENT SERVICES,HM COURTS & TRIBUNALS SERVICE,255.00,PECKHAM,LEGAL FEES & COURT COSTS,2102498050
02.06.2016,RESIDENT SERVICES,HM COURTS & TRIBUNALS SERVICE,255.00,PECKHAM,LEGAL FEES & COURT COSTS,2102498054
02.06.2016,RESIDENT SERVICES,HM COURTS & TRIBUNALS SERVICE,255.00,PECKHAM,LEGAL FEES & COURT COSTS,2102498060
02.06.2016,RESIDENT SERVICES,HM COURTS & TRIBUNALS SERVICE,355.00,PECKHAM,LEGAL FEES & COURT COSTS,2102497993
02.06.2016,RESIDENT SERVICES,HM COURTS & TRIBUNALS SERVICE,355.00,PECKHAM,LEGAL FEES & COURT COSTS,2102497996
02.06.2016,RESIDENT SERVICES,HM COURTS & TRIBUNALS SERVICE,355.00,PECKHAM,LEGAL FEES & COURT COSTS,2102498051
02.06.2016,RESIDENT SERVICES,HM COURTS & TRIBUNALS SERVICE,355.00,PECKHAM,LEGAL FEES & COURT COSTS,2102498052
02.06.2016,RESIDENT SERVICES,A & H PEST CONTROL LTD,490.00,PECKHAM,PEST CONTROL,5902195168
02.06.2016,RESIDENT SERVICES,HM COURTS & TRIBUNALS SERVICE,255.00,SPECIAL INVESTIGATIONS,LEGAL FEES & COURT COSTS,2102498008
02.06.2016,RESIDENT SERVICES,HM COURTS & TRIBUNALS SERVICE,255.00,SPECIAL INVESTIGATIONS,LEGAL FEES & COURT COSTS,2102498030
02.06.2016,RESIDENT SERVICES,HM COURTS & TRIBUNALS SERVICE,355.00,SPECIAL INVESTIGATIONS,LEGAL FEES & COURT COSTS,2102498038
02.06.2016,RESIDENT SERVICES,THAMES WATER UTILITIES LTD,"1,113.39",SPECIAL NEEDS HOSTELS,WATER,5902195273
02.06.2016,RESIDENT SERVICES,HM COURTS & TRIBUNALS SERVICE,355.00,WALWORTH,LEGAL FEES & COURT COSTS,2102497994
02.06.2016,RESIDENT SERVICES,HM COURTS & TRIBUNALS SERVICE,355.00,WALWORTH,LEGAL FEES & COURT COSTS,2102497997
02.06.2016,RESIDENT SERVICES,HM COURTS & TRIBUNALS SERVICE,355.00,WALWORTH,LEGAL FEES & COURT COSTS,2102498041
02.06.2016,RESIDENT SERVICES,HM COURTS & TRIBUNALS SERVICE,355.00,WALWORTH,LEGAL FEES & COURT COSTS,2102498057
02.06.2016,SOCIAL SERVICES,REDACTED PERSONAL DATA,"4,000.00",LODGINGS SCHEME,OTHER PAYMENTS FOR CLIENTS,2102497536
02.06.2016,SOCIAL SERVICES,PEOPLES CARE LTD,"2,164.50",OP - HOMECARE,PERSONALISATION PAYMENTS,2102497539
02.06.2016,SOCIAL SERVICES,BRITISH GAS TRADING LTD,868.44,PETTY CASH/PERSONAL ALLOWANCE,OTHER PAYMENTS FOR CLIENTS,2102497699
02.06.2016,SOCIAL SERVICES,DERWENT RESIDENTIAL CARE LTD,459.00,PETTY CASH/PERSONAL ALLOWANCE,OTHER PAYMENTS FOR CLIENTS,2102497702
02.06.2016,SOCIAL SERVICES,F A ALBIN AND SONS,"3,990.00",PETTY CASH/PERSONAL ALLOWANCE,OTHER PAYMENTS FOR CLIENTS,2102497696
02.06.2016,SOCIAL SERVICES,REDACTED PERSONAL DATA,260.00,PETTY CASH/PERSONAL ALLOWANCE,OTHER PAYMENTS FOR CLIENTS,2102497712
02.06.2016,SOCIAL SERVICES,REDACTED PERSONAL DATA,264.80,PETTY CASH/PERSONAL ALLOWANCE,OTHER PAYMENTS FOR CLIENTS,5902195216
02.06.2016,SOCIAL SERVICES,REDACTED PERSONAL DATA,543.60,PETTY CASH/PERSONAL ALLOWANCE,OTHER PAYMENTS FOR CLIENTS,2102497713
02.06.2016,SOCIAL SERVICES,THE PERFORMING RIGHTS SOCIETY LTD,273.56,SOUTHWARK RESOURCE CENTRE,"OP.LEASE/HIRE CHARGES: PLANT, EQUIPT & FURNITURE",5902195299
02.06.2016,SOCIAL SERVICES,THE PERFORMING RIGHTS SOCIETY LTD,"1,112.84",SOUTHWARK RESOURCE CENTRE,"OP.LEASE/HIRE CHARGES: PLANT, EQUIPT & FURNITURE",5902195299
02.06.2016,SOCIAL SERVICES,THAMES REACH EMPOLYMENT ACADEMY,450.00,STRAT DIR OF C&AS,CONSULTANTS SERVICES,5902195158
02.06.2016,SOCIAL SERVICES,FRESH IDEAS & SOLUTIONS SERVICES CIC,"7,405.66",TRANSITION 14YRS TO 18YRS,PAYMENTS TO CLIENTS (DIRECT PAYMENTS),2102497535
02.06.2016,SOUTHWARK BUILDING SERVICES,LAKEDALE POWER TOOLS,353.89,BOR & BKSIDE DAY TO DAY - CARPENTER,"OP.LEASE/HIRE CHARGES: PLANT, EQUIPT & FURNITURE",5902195335
02.06.2016,SOUTHWARK BUILDING SERVICES,LAKEDALE POWER TOOLS,420.00,DEPOT COSTS,"OP.LEASE/HIRE CHARGES: PLANT, EQUIPT & FURNITURE",5902195324
02.06.2016,SOUTHWARK BUILDING SERVICES,KENTEC TRAINING LTD,765.00,HEALTH & SAFETY,TRAINING,5902194284
03.06.2016,-,BCS (ELECTRICAL & BUILDING) LTD,"71,611.40",BCS,MANUAL CREDITORS,5902195605
03.06.2016,-,STANDAGE & CO LTD,"7,494.87",STANDAGE,MANUAL CREDITORS,5902195366
03.06.2016,-,EYRE & ELLISTON LTD,630.00,STORES,CREDITORS -GR/IR CLEARING ACCOUNT,5902195532
03.06.2016,-,LAKEDALE POWER TOOLS,390.00,STORES,CREDITORS -GR/IR CLEARING ACCOUNT,5902195464
03.06.2016,-,LAKEDALE POWER TOOLS,435.00,STORES,CREDITORS -GR/IR CLEARING ACCOUNT,5902195460
03.06.2016,-,LAKEDALE POWER TOOLS,718.20,STORES,CREDITORS -GR/IR CLEARING ACCOUNT,5902195464
03.06.2016,-,LAKEDALE POWER TOOLS,800.00,STORES,CREDITORS -GR/IR CLEARING ACCOUNT,5902195463
03.06.2016,ASSET MANAGEMENT,RSM RISK ASSURANCE SERVICES LLP,"8,802.60",DEVELOPMENT DELIVERY,PROFESSIONAL FEES,5902195577
03.06.2016,ASSET MANAGEMENT,ANTHONY GOLD SOLICITORS,"2,998.80",DISREPAIR,LEGAL FEES & COURT COSTS,2102497763
03.06.2016,ASSET MANAGEMENT,ANTHONY GOLD SOLICITORS,"4,000.00",DISREPAIR,LEGAL FEES & COURT COSTS,2102497764
03.06.2016,ASSET MANAGEMENT,ESENDEX LTD,"7,000.00",ENG CONTRACTS (NORTH),DATA COMMUNICATIONS,5902194091
03.06.2016,ASSET MANAGEMENT HGF,LAKEDALE POWER TOOLS,259.00,HANDY PERSONS,MATERIALS,5902195457
03.06.2016,BERMONDSEY & ROTHERHITHE COMMUNITY COUNCIL,DOCKLAND SETTLEMENTS ,"3,792.00",NELLIE'S FLOWER CLUB ,GRANTS,CHEQUE PAYMENT
03.06.2016,BUSINESS SUPPORT SERVICES CO-ORDINATION,APPLE DISTRIBUTION INTERNATIONAL,316.00,RESILIENCE AND EMERGENCY PLANNING,COMMUNICATIONS & COMPUTING CONTRACT CHARGES,5902195470
03.06.2016,BUSINESS SUPPORT SERVICES CO-ORDINATION,APPLE DISTRIBUTION INTERNATIONAL,"1,656.00",RESILIENCE AND EMERGENCY PLANNING,COMMUNICATIONS & COMPUTING CONTRACT CHARGES,5902195470
03.06.2016,CENTRAL FUNCTIONS,VPS (UK) LTD,"19,008.00",AYLESBURY,SECURITY SERVICES,5902195461
03.06.2016,CENTRAL FUNCTIONS,EDF ENERGY PLC,399.87,HEATING ACCOUNT,ELECTRICITY,5902195574
03.06.2016,CENTRAL FUNCTIONS,EDF ENERGY PLC,425.58,HEATING ACCOUNT,ELECTRICITY,5902195567
03.06.2016,CENTRAL FUNCTIONS,EDF ENERGY PLC,798.10,HEATING ACCOUNT,ELECTRICITY,5902195559
03.06.2016,CENTRAL FUNCTIONS,HMCTS,-355.00,HOME OWNERSHIP,LEGAL FEES & COURT COSTS,5902195774
03.06.2016,CENTRAL FUNCTIONS,HMCTS,355.00,HOME OWNERSHIP,LEGAL FEES & COURT COSTS,5902194509
03.06.2016,CENTRAL FUNCTIONS,PITNEY BOWES PURCHASE POWER,"5,050.00",HOME OWNERSHIP,POSTAGES,5902195552
03.06.2016,CHIEF EXECUTIVE,LANDOLT & BROWN,"5,690.00",CAPITAL PS (REGEN),CONSTRUCTION FEES,5902195261
03.06.2016,CHIEF EXECUTIVE,CONWAY AECOM LTD,"5,636.56",CAPITAL PS (REGEN),CONSTRUCTION MAIN CONTRACT - CERTIFICATED,5902195633
03.06.2016,CHIEF EXECUTIVE,CONWAY AECOM LTD,"8,881.97",CAPITAL PS (REGEN),CONSTRUCTION SUB CONTRACT - NON CERTIFICATED,5902195630
03.06.2016,CHILDREN'S SERVICES,REVIVAL,880.00,ADMIN SUMNER,MEDICAL / HEALTH & SAFETY SERVICES,5902195447
03.06.2016,CHILDREN'S SERVICES,FOSTERING LONDON LTD,"4,261.50",AGENCY FOSTERING,EXTERNAL AGENCIES AND BODIES,5902195600
03.06.2016,CHILDREN'S SERVICES,FOSTERING LONDON LTD,"4,403.55",AGENCY FOSTERING,EXTERNAL AGENCIES AND BODIES,5902195603
03.06.2016,CHILDREN'S SERVICES,CARE O LINE,301.54,AIS - IHT,OTHER PAYMENTS FOR CLIENTS,5902195362
03.06.2016,CHILDREN'S SERVICES,ALBION PRIMARY SCHOOL,"10,998.00",ALBION JMI,HIGH NEEDS - TOP UP FUNDING,5902195500
03.06.2016,CHILDREN'S SERVICES,ALFRED SALTER PRIMARY SCHOOL,"36,718.00",ALFRED SALTER PRIMARY,HIGH NEEDS - TOP UP FUNDING,5902195501
03.06.2016,CHILDREN'S SERVICES,BESSEMER GRANGE PRIMARY SCHOOL,"17,670.00",BESSEMER GRNGE PRIMARY,GRANTS,5902195502
03.06.2016,CHILDREN'S SERVICES,BESSEMER GRANGE PRIMARY SCHOOL,"15,638.00",BESSEMER GRNGE PRIMARY,HIGH NEEDS - TOP UP FUNDING,5902195503
03.06.2016,CHILDREN'S SERVICES,KENT COUNTY COUNCIL - LASER,603.16,BISHOPS HOUSE EARLY YEARS CENTRE,ELECTRICITY,5902195421
03.06.2016,CHILDREN'S SERVICES,CAMELOT PRIMARY SCHOOL,"12,716.00",CAMELOT JMI,HIGH NEEDS - TOP UP FUNDING,5902195504
03.06.2016,CHILDREN'S SERVICES,CAPITA RESOURCING LTD,359.00,CHILDRENS CENTRE,OTHER SUBSISTENCE & CONFERENCE EXPENSES,5902195468
03.06.2016,CHILDREN'S SERVICES,SIREN FILMS LTD,779.00,CHILDRENS CENTRE,OTHER SUBSISTENCE & CONFERENCE EXPENSES,5902195454
03.06.2016,CHILDREN'S SERVICES,HOPLEY MICHAELS & PARTNERS,"3,693.61",CLA TEAM SAFEGUARDING,PROFESSIONAL FEES,5902195571
03.06.2016,CHILDREN'S SERVICES,COMBER GROVE PRIMARY SCHOOL,"10,596.00",COMBER GROVE PRIMARY,HIGH NEEDS - TOP UP FUNDING,5902195505
03.06.2016,CHILDREN'S SERVICES,WRIXONCARE SEVICES,"1,785.35",CONTACT,OTHER PAYMENTS FOR CLIENTS,2102497862
03.06.2016,CHILDREN'S SERVICES,CRAMPTON PRIMARY SCHOOL,"15,638.00",CRAMPTON JMI,HIGH NEEDS - TOP UP FUNDING,5902195506
03.06.2016,CHILDREN'S SERVICES,CRAWFORD PRIMARY SCHOOL,"10,998.00",CRAWFORD JMI,HIGH NEEDS - TOP UP FUNDING,5902195507
03.06.2016,CHILDREN'S SERVICES,DOG KENNEL HILL PRIMARY SCHOOL,"10,998.00",DOG KENNEL HILL JMI,HIGH NEEDS - TOP UP FUNDING,5902195508
03.06.2016,CHILDREN'S SERVICES,DULWICH VILLAGE CE INFANTS SCHOOL,"15,236.00",DULWICH VILLAGE I,HIGH NEEDS - TOP UP FUNDING,5902195509
03.06.2016,CHILDREN'S SERVICES,PHOENIX PRIMARY SCHOOL,"18,962.00",EVELINE LOWE JMI,HIGH NEEDS - TOP UP FUNDING,5902195512
03.06.2016,CHILDREN'S SERVICES,GARY TAYLOR ASSOCIATES LTD,267.43,FAMILY ASSESSMENTS,RESIDENTIAL CARE,5902195369
03.06.2016,CHILDREN'S SERVICES,TY CONNECTIONS LTD,420.00,FAMILY ASSESSMENTS,RESIDENTIAL CARE,5902195547
03.06.2016,CHILDREN'S SERVICES,TY CONNECTIONS LTD,"4,714.20",FAMILY ASSESSMENTS,RESIDENTIAL CARE,5902195546
03.06.2016,CHILDREN'S SERVICES,TY CONNECTIONS LTD,"9,428.40",FAMILY ASSESSMENTS,RESIDENTIAL CARE,5902195544
03.06.2016,CHILDREN'S SERVICES,GOODRICH PRIMARY SCHOOL,"24,918.00",GOODRICH JMI,HIGH NEEDS - TOP UP FUNDING,5902195510
03.06.2016,CHILDREN'S SERVICES,GRANGE PRIMARY SCHOOL,"15,236.00",GRANGE JMI,HIGH NEEDS - TOP UP FUNDING,5902195511
03.06.2016,CHILDREN'S SERVICES,HEBER PRIMARY SCHOOL,"17,756.00",HEBER JMI,HIGH NEEDS - TOP UP FUNDING,5902195513
03.06.2016,CHILDREN'S SERVICES,SIMON DRAKE'S HOUSE OF MAGIC,350.00,HOLIDAY PROGRAMME,EQUIPMENT PURCHASE & REPAIR,5902195402
03.06.2016,CHILDREN'S SERVICES,SIMON DRAKE'S HOUSE OF MAGIC,350.00,HOLIDAY PROGRAMME,EQUIPMENT PURCHASE & REPAIR,5902195402
03.06.2016,CHILDREN'S SERVICES,HOME START,"105,275.50",HOMESTART SOUTHWARK,EXTERNAL AGENCIES AND BODIES,5902195462
03.06.2016,CHILDREN'S SERVICES,SUMNER NURSERY,"2,500.00",INTERVENTION FUND,OTHER SUBSISTENCE & CONFERENCE EXPENSES,5902195626
03.06.2016,CHILDREN'S SERVICES,IVYDALE PRIMARY SCHOOL,"10,596.00",IVYDALE JMI,HIGH NEEDS - TOP UP FUNDING,5902195514
03.06.2016,CHILDREN'S SERVICES,DULWICH WOOD PRIMARY SCHOOL,"12,716.00",LANGBOURNE JMI,HIGH NEEDS - TOP UP FUNDING,5902195515
03.06.2016,CHILDREN'S SERVICES,AMI BARTHOLOMEW,380.00,LEGAL,LEGAL FEES & COURT COSTS,2102497760
03.06.2016,CHILDREN'S SERVICES,BARRY McALINDEN,670.00,LEGAL,LEGAL FEES & COURT COSTS,2102497765
03.06.2016,CHILDREN'S SERVICES,BARRY McALINDEN,670.00,LEGAL,LEGAL FEES & COURT COSTS,2102497766
03.06.2016,CHILDREN'S SERVICES,BARRY McALINDEN,"1,900.00",LEGAL,LEGAL FEES & COURT COSTS,2102497767
03.06.2016,CHILDREN'S SERVICES,BEVERLEY F NUNNERY & CO,365.70,LEGAL,LEGAL FEES & COURT COSTS,2102497769
03.06.2016,CHILDREN'S SERVICES,BEVERLEY F NUNNERY & CO,668.80,LEGAL,LEGAL FEES & COURT COSTS,2102497768
03.06.2016,CHILDREN'S SERVICES,DAMIAN WOODWARD-CARLTON,300.00,LEGAL,LEGAL FEES & COURT COSTS,2102497722
03.06.2016,CHILDREN'S SERVICES,DAMIAN WOODWARD-CARLTON,500.00,LEGAL,LEGAL FEES & COURT COSTS,2102497720
03.06.2016,CHILDREN'S SERVICES,DAMIAN WOODWARD-CARLTON,500.00,LEGAL,LEGAL FEES & COURT COSTS,2102497721
03.06.2016,CHILDREN'S SERVICES,DAVID FOWLER,355.00,LEGAL,LEGAL FEES & COURT COSTS,2102497724
03.06.2016,CHILDREN'S SERVICES,DAVID FOWLER,355.00,LEGAL,LEGAL FEES & COURT COSTS,2102497726
03.06.2016,CHILDREN'S SERVICES,DAVID FOWLER,355.00,LEGAL,LEGAL FEES & COURT COSTS,2102497728
03.06.2016,CHILDREN'S SERVICES,DENNIS SHARPE,427.50,LEGAL,LEGAL FEES & COURT COSTS,2102497729
03.06.2016,CHILDREN'S SERVICES,DR ROGER KENNEDY,900.00,LEGAL,LEGAL FEES & COURT COSTS,2102497730
03.06.2016,CHILDREN'S SERVICES,FRANCIS WILKINSON,427.50,LEGAL,LEGAL FEES & COURT COSTS,2102497738
03.06.2016,CHILDREN'S SERVICES,FRANCIS WILKINSON,428.00,LEGAL,LEGAL FEES & COURT COSTS,2102497732
03.06.2016,CHILDREN'S SERVICES,FRANCIS WILKINSON,670.00,LEGAL,LEGAL FEES & COURT COSTS,2102497733
03.06.2016,CHILDREN'S SERVICES,FRANCIS WILKINSON,670.00,LEGAL,LEGAL FEES & COURT COSTS,2102497737
03.06.2016,CHILDREN'S SERVICES,FRANCIS WILKINSON,"1,900.00",LEGAL,LEGAL FEES & COURT COSTS,2102497734
03.06.2016,CHILDREN'S SERVICES,JOHN LARKING VERBATIM REPORTERS,696.70,LEGAL,LEGAL FEES & COURT COSTS,2102497739
03.06.2016,CHILDREN'S SERVICES,MATTHEW STOTT,400.00,LEGAL,LEGAL FEES & COURT COSTS,2102497740
03.06.2016,CHILDREN'S SERVICES,MATTHEW STOTT,400.00,LEGAL,LEGAL FEES & COURT COSTS,2102497745
03.06.2016,CHILDREN'S SERVICES,MATTHEW STOTT,400.00,LEGAL,LEGAL FEES & COURT COSTS,2102497749
03.06.2016,CHILDREN'S SERVICES,MATTHEW STOTT,425.00,LEGAL,LEGAL FEES & COURT COSTS,2102497743
03.06.2016,CHILDREN'S SERVICES,MATTHEW STOTT,425.00,LEGAL,LEGAL FEES & COURT COSTS,2102497746
03.06.2016,CHILDREN'S SERVICES,MATTHEW STOTT,425.00,LEGAL,LEGAL FEES & COURT COSTS,2102497751
03.06.2016,CHILDREN'S SERVICES,MATTHEW STOTT,850.00,LEGAL,LEGAL FEES & COURT COSTS,2102497747
03.06.2016,CHILDREN'S SERVICES,SUMI RATNAM & CO LTD,378.00,LEGAL,LEGAL FEES & COURT COSTS,2102497755
03.06.2016,CHILDREN'S SERVICES,VICTORIA FLOWERS,855.00,LEGAL,LEGAL FEES & COURT COSTS,2102497756
03.06.2016,CHILDREN'S SERVICES,VICTORIA FLOWERS,"1,443.33",LEGAL,LEGAL FEES & COURT COSTS,2102497757
03.06.2016,CHILDREN'S SERVICES,ZIMRAN SAMUEL,375.00,LEGAL,LEGAL FEES & COURT COSTS,2102497759
03.06.2016,CHILDREN'S SERVICES,MICHAEL FARADAY PRIMARY SCHOOL,"8,476.00",MICHAEL FARADAY JMI,HIGH NEEDS - TOP UP FUNDING,5902195516
03.06.2016,CHILDREN'S SERVICES,NOTRE DAME RC GIRLS SCHOOL,"8,476.00",NOTRE DAME SCHOOL,HIGH NEEDS - TOP UP FUNDING,5902195517
03.06.2016,CHILDREN'S SERVICES,OLIVER GOLDSMITH PRIMARY SCHOOL,"15,638.00",OLIVER GOLDSMITH JM,HIGH NEEDS - TOP UP FUNDING,5902195518
03.06.2016,CHILDREN'S SERVICES,PILGRIM'S WAY PRIMARY SCHOOL,"10,998.00",PILGRIMS WAY JMI,HIGH NEEDS - TOP UP FUNDING,5902195519
03.06.2016,CHILDREN'S SERVICES,BEECROFT GARDEN PRIMARY SCHOOL,"1,500.00",PUPIL PREMIUM CURRENT YEAR,SCHOOLS CAPITATION,2102497825
03.06.2016,CHILDREN'S SERVICES,HARRIS ACADEMY BERMONDSEY,"1,500.00",PUPIL PREMIUM CURRENT YEAR,SCHOOLS CAPITATION,2102497831
03.06.2016,CHILDREN'S SERVICES,HARRIS ACADEMY CRYSTAL PALACE,"1,500.00",PUPIL PREMIUM CURRENT YEAR,SCHOOLS CAPITATION,2102497830
03.06.2016,CHILDREN'S SERVICES,INTEGRATED SERVICES PROGRAMME,360.00,PUPIL PREMIUM CURRENT YEAR,SCHOOLS CAPITATION,2102497828
03.06.2016,CHILDREN'S SERVICES,LANGLEY PARK SCHOOL FOR BOYS,510.00,PUPIL PREMIUM CURRENT YEAR,SCHOOLS CAPITATION,2102497827
03.06.2016,CHILDREN'S SERVICES,LAWN PRIMARY SCHOOL,"1,500.00",PUPIL PREMIUM CURRENT YEAR,SCHOOLS CAPITATION,2102497824
03.06.2016,CHILDREN'S SERVICES,NORBURY MANOR BUSINESS & ENTERPRISE COLLEGE,"1,500.00",PUPIL PREMIUM CURRENT YEAR,SCHOOLS CAPITATION,2102497829
03.06.2016,CHILDREN'S SERVICES,WORSLEY BRIDGE PRIMARY SCHOOL,"1,500.00",PUPIL PREMIUM CURRENT YEAR,SCHOOLS CAPITATION,2102497826
03.06.2016,CHILDREN'S SERVICES,YOUTH JUSTICE BOARD FOR ENGLAND & WALES,"7,952.00",REMAND - YDA SECURE,RESIDENTIAL CARE,5902195542
03.06.2016,CHILDREN'S SERVICES,YOUTH JUSTICE BOARD FOR ENGLAND & WALES,"15,407.00",REMAND - YDA SECURE,RESIDENTIAL CARE,5902195541
03.06.2016,CHILDREN'S SERVICES,YOUTH JUSTICE BOARD FOR ENGLAND & WALES,"15,407.00",REMAND - YDA SECURE,RESIDENTIAL CARE,5902195543
03.06.2016,CHILDREN'S SERVICES,NEW HORIZONS CHILD CARE LTD,485.59,RESIDENTIAL,RESIDENTIAL CARE,2102497865
03.06.2016,CHILDREN'S SERVICES,NEW HORIZONS CHILD CARE LTD,"13,600.00",RESIDENTIAL,RESIDENTIAL CARE,2102497864
03.06.2016,CHILDREN'S SERVICES,RIVERSIDE PRIMARY SCHOOL,"10,596.00",RIVERSIDE JMI,HIGH NEEDS - TOP UP FUNDING,5902195520
03.06.2016,CHILDREN'S SERVICES,ROBERT BROWNING PRIMARY SCHOOL,"12,716.00",ROBERT BROWNING JMI,HIGH NEEDS - TOP UP FUNDING,5902195521
03.06.2016,CHILDREN'S SERVICES,RYE OAK PRIMARY SCHOOL,"18,810.00",RYE OAK SCHOOL DFES NO. 2462,GRANTS,5902195522
03.06.2016,CHILDREN'S SERVICES,SHORTLAND PSYCHOLOGY ASSOCIATES LTD,490.00,S & FAM SUPP - PRAC GRP D SET 23-25,AGENCY STAFF,5902195446
03.06.2016,CHILDREN'S SERVICES,PURPLE PEBBLES(CHILD CARE) SERVICES,-775.00,S24 CLA,OTHER PAYMENTS FOR CLIENTS,2102497867
03.06.2016,CHILDREN'S SERVICES,SPRING LTD T/A BALHAM BEDS,503.33,SPECIAL PAYMENTS,EQUIPMENT PURCHASE & REPAIR,5902195229
03.06.2016,CHILDREN'S SERVICES,RESOURCES FOR AUTISM,720.00,SPECIALIST CARE,SECTION 17 PAYMENTS TO AGENCIES/CARERS,2102497866
03.06.2016,CHILDREN'S SERVICES,ST FRANCIS'S RC PRIMARY SCHOOL,"13,518.00",ST FRANCIS JM,HIGH NEEDS - TOP UP FUNDING,5902195523
03.06.2016,CHILDREN'S SERVICES,ST GEORGES CE SCHOOL,"11,800.00",ST GEORGES JMI 043,HIGH NEEDS - TOP UP FUNDING,5902195524
03.06.2016,CHILDREN'S SERVICES,ST JAMES CE SCHOOL,"15,236.00",ST JAMES JMI,HIGH NEEDS - TOP UP FUNDING,5902195525
03.06.2016,CHILDREN'S SERVICES,ST JAMES THE GREAT RC SCHOOL,"12,716.00",ST JAMES RC(ST ALBANS),HIGH NEEDS - TOP UP FUNDING,5902195526
03.06.2016,CHILDREN'S SERVICES,ST JOHNS WALWORTH CE SCHOOL,"1,060.00",ST JOHNS WALWORTH J,HIGH NEEDS - TOP UP FUNDING,5902195527
03.06.2016,CHILDREN'S SERVICES,ST JOSEPHS RC PRIMARY SCHOOL,"10,596.00",ST JOSEPHS JMI 014B,HIGH NEEDS - TOP UP FUNDING,5902195528
03.06.2016,CHILDREN'S SERVICES,EAST SUSSEX COUNTY COUNCIL,500.00,STAYING PUT,OTHER PAYMENTS FOR CLIENTS,2102497863
03.06.2016,CHILDREN'S SERVICES,SURREY SQUARE JUNIOR SCHOOL,"8,476.00",SURREY SQUARE JUNIOR SCHOOL,HIGH NEEDS - TOP UP FUNDING,5902195529
03.06.2016,CHILDREN'S SERVICES,TOWNSEND PRIMARY SCHOOL,"10,998.00",TOWNSEND JMI,HIGH NEEDS - TOP UP FUNDING,5902195530
03.06.2016,CHILDREN'S SERVICES,VICTORY SCHOOL,"8,476.00",VICTORY JMI,HIGH NEEDS - TOP UP FUNDING,5902195531
03.06.2016,CHILDREN'S SERVICES,REVIVAL,495.00,YOS SUPPORT,MEDICAL / HEALTH & SAFETY SERVICES,5902195378
03.06.2016,COMMUNITIES,LIVING ACCOMODATION LTD,252.00,NO RECOURSE TO PUBLIC FUNDS,SECTION 17 PAYMENTS TO AGENCIES/CARERS,5902195453
03.06.2016,COMMUNITIES,LIVING ACCOMODATION LTD,320.00,NO RECOURSE TO PUBLIC FUNDS,SECTION 17 PAYMENTS TO AGENCIES/CARERS,5902195458
03.06.2016,COMMUNITIES,LIVING ACCOMODATION LTD,"1,085.00",NO RECOURSE TO PUBLIC FUNDS,SECTION 17 PAYMENTS TO AGENCIES/CARERS,5902195442
03.06.2016,COMMUNITIES,LIVING ACCOMODATION LTD,"1,329.00",NO RECOURSE TO PUBLIC FUNDS,SECTION 17 PAYMENTS TO AGENCIES/CARERS,5902195453
03.06.2016,COMMUNITIES,PURPLE PEBBLES(CHILD CARE) SERVICES,428.57,NO RECOURSE TO PUBLIC FUNDS,SECTION 17 PAYMENTS TO AGENCIES/CARERS,5902195638
03.06.2016,COMMUNITIES,PURPLE PEBBLES(CHILD CARE) SERVICES,575.00,NO RECOURSE TO PUBLIC FUNDS,SECTION 17 PAYMENTS TO AGENCIES/CARERS,5902195585
03.06.2016,COMMUNITIES,PURPLE PEBBLES(CHILD CARE) SERVICES,575.00,NO RECOURSE TO PUBLIC FUNDS,SECTION 17 PAYMENTS TO AGENCIES/CARERS,5902195631
03.06.2016,COMMUNITIES,PURPLE PEBBLES(CHILD CARE) SERVICES,841.43,NO RECOURSE TO PUBLIC FUNDS,SECTION 17 PAYMENTS TO AGENCIES/CARERS,5902195629
03.06.2016,COMMUNITIES,PURPLE PEBBLES(CHILD CARE) SERVICES,841.43,NO RECOURSE TO PUBLIC FUNDS,SECTION 17 PAYMENTS TO AGENCIES/CARERS,5902195639
03.06.2016,COMMUNITIES,PURPLE PEBBLES(CHILD CARE) SERVICES,908.57,NO RECOURSE TO PUBLIC FUNDS,SECTION 17 PAYMENTS TO AGENCIES/CARERS,5902195636
03.06.2016,COMMUNITIES,PURPLE PEBBLES(CHILD CARE) SERVICES,"1,173.57",NO RECOURSE TO PUBLIC FUNDS,SECTION 17 PAYMENTS TO AGENCIES/CARERS,5902195596
03.06.2016,COMMUNITIES,PURPLE PEBBLES(CHILD CARE) SERVICES,"1,173.57",NO RECOURSE TO PUBLIC FUNDS,SECTION 17 PAYMENTS TO AGENCIES/CARERS,5902195601
03.06.2016,COMMUNITIES,PURPLE PEBBLES(CHILD CARE) SERVICES,"1,173.57",NO RECOURSE TO PUBLIC FUNDS,SECTION 17 PAYMENTS TO AGENCIES/CARERS,5902195604
03.06.2016,COMMUNITIES,PURPLE PEBBLES(CHILD CARE) SERVICES,"1,217.86",NO RECOURSE TO PUBLIC FUNDS,SECTION 17 PAYMENTS TO AGENCIES/CARERS,5902195582
03.06.2016,COMMUNITIES,PURPLE PEBBLES(CHILD CARE) SERVICES,"1,223.02",NO RECOURSE TO PUBLIC FUNDS,SECTION 17 PAYMENTS TO AGENCIES/CARERS,5902195579
03.06.2016,COMMUNITIES,PURPLE PEBBLES(CHILD CARE) SERVICES,"1,587.94",NO RECOURSE TO PUBLIC FUNDS,SECTION 17 PAYMENTS TO AGENCIES/CARERS,5902195597
03.06.2016,COMMUNITIES,RS REAL ESTATE LTD,"9,579.00",NO RECOURSE TO PUBLIC FUNDS,SECTION 17 PAYMENTS TO AGENCIES/CARERS,5902195359
03.06.2016,COMMUNITIES,S & G PROPERTIES,960.80,NO RECOURSE TO PUBLIC FUNDS,SECTION 17 PAYMENTS TO AGENCIES/CARERS,5902195385
03.06.2016,COMMUNITIES,S & G PROPERTIES,960.80,NO RECOURSE TO PUBLIC FUNDS,SECTION 17 PAYMENTS TO AGENCIES/CARERS,5902195400
03.06.2016,COMMUNITIES,S & G PROPERTIES,"1,200.00",NO RECOURSE TO PUBLIC FUNDS,SECTION 17 PAYMENTS TO AGENCIES/CARERS,5902195373
03.06.2016,COMMUNITIES,S & G PROPERTIES,"1,200.00",NO RECOURSE TO PUBLIC FUNDS,SECTION 17 PAYMENTS TO AGENCIES/CARERS,5902195396
03.06.2016,COMMUNITIES,S & G PROPERTIES,"1,320.00",NO RECOURSE TO PUBLIC FUNDS,SECTION 17 PAYMENTS TO AGENCIES/CARERS,5902195370
03.06.2016,COMMUNITIES,S & G PROPERTIES,"1,320.00",NO RECOURSE TO PUBLIC FUNDS,SECTION 17 PAYMENTS TO AGENCIES/CARERS,5902195392
03.06.2016,COMMUNITIES,S & G PROPERTIES,"1,400.80",NO RECOURSE TO PUBLIC FUNDS,SECTION 17 PAYMENTS TO AGENCIES/CARERS,5902195358
03.06.2016,COMMUNITIES,S & G PROPERTIES,"1,400.80",NO RECOURSE TO PUBLIC FUNDS,SECTION 17 PAYMENTS TO AGENCIES/CARERS,5902195360
03.06.2016,COMMUNITIES,S & G PROPERTIES,"1,400.80",NO RECOURSE TO PUBLIC FUNDS,SECTION 17 PAYMENTS TO AGENCIES/CARERS,5902195363
03.06.2016,COMMUNITIES,TAAKSVALE HOUSING LTD,"24,330.00",NO RECOURSE TO PUBLIC FUNDS,SECTION 17 PAYMENTS TO AGENCIES/CARERS,5902195492
03.06.2016,COMMUNITIES,REDACTED PERSONAL DATA,256.00,NRPF CHILDREN,SECTION 17 PAYMENTS TO AGENCIES/CARERS,5902195499
03.06.2016,CUSTOMER SERVICES HGF,DR S AL-SARRAJ,"2,000.00",CORONER'S,PROFESSIONAL FEES,5902195477
03.06.2016,CUSTOMER SERVICES HGF,LIVING ACCOMODATION LTD,"1,395.00",NIGHTLY TA (NSC),EXTERNAL AGENCIES AND BODIES,5902195627
03.06.2016,CUSTOMER SERVICES HGF,LIVING ACCOMODATION LTD,"2,745.00",NIGHTLY TA (NSC),EXTERNAL AGENCIES AND BODIES,5902195622
03.06.2016,CUSTOMER SERVICES HGF,SOUTH OF THE RIVER INVESTMENTS LTD,"73,718.70",NIGHTLY TA (NSC),EXTERNAL AGENCIES AND BODIES,5902195644
03.06.2016,ELECTORAL SVCES,CAMBRIDGE HOUSE & TALBOT,357.00,GLA ELECTIONS,HIRE OF ROOMS/HALLS,5902195602
03.06.2016,ELECTORAL SVCES,EAST DULWICH COMMUNITY CENTRE,722.00,GLA ELECTIONS,HIRE OF ROOMS/HALLS,5902195614
03.06.2016,ELECTORAL SVCES,THE SALVATION ARMY,425.00,GLA ELECTIONS,HIRE OF ROOMS/HALLS,5902195621
03.06.2016,ENVIRONMENT AND LEISURE,WESTCO TRADING LTD,"1,980.00",CAPITAL PS (LEISURE),CONSTRUCTION FEES - ARCHITECT,5902195643
03.06.2016,ENVIRONMENT AND LEISURE,WESTCO TRADING LTD,"3,300.00",CAPITAL PS (LEISURE),CONSTRUCTION FEES - ARCHITECT,5902195645
03.06.2016,ENVIRONMENT AND LEISURE,CONWAY AECOM LTD,"7,009.20",CAPITAL PS (LEISURE),CONSTRUCTION FEES - EXTERNAL,5902195576
03.06.2016,ENVIRONMENT AND LEISURE,RYAN BUNCE & COMPANY LTD,700.00,CAPITAL PS (LEISURE),CONSTRUCTION MAIN CONTRACT - NON CERTIFICATED,5902195376
03.06.2016,ENVIRONMENT DIRECTORATE,DRAIN SCAN,260.00,GULLY MAINT NON PINC RD,OTHER CONTRACTORS,5902195591
03.06.2016,ENVIRONMENT DIRECTORATE,DRAIN SCAN,280.00,GULLY MAINT NON PINC RD,OTHER CONTRACTORS,5902195593
03.06.2016,ENVIRONMENT DIRECTORATE,DRAIN SCAN,280.00,GULLY MAINT NON PINC RD,OTHER CONTRACTORS,5902195595
03.06.2016,ENVIRONMENT DIRECTORATE,TEW PLUS LTD,994.97,PKG & CAR PKS CCTV,EQUIPMENT PURCHASE & REPAIR,5902195135
03.06.2016,ENVIRONMENT DIRECTORATE,KENT COUNTY COUNCIL - LASER,959.99,SANDGATE STREET,ELECTRICITY,5902195561
03.06.2016,ENVIRONMENT DIRECTORATE,SOUTHWARK NEWSPAPER LTD,288.00,STREET WORKS OVERHEADS,MARKETING & PUBLICITY SERVICES,5902195565
03.06.2016,ENVIRONMENT DIRECTORATE,TRANSPORT FOR LONDON,"95,037.29",TRAFFIC SIGNALS,EXTERNAL AGENCIES AND BODIES,5902194231
03.06.2016,ENVIRONMENT DIRECTORATE,CITY OF LONDON,"1,226.32",WASTE DISPOSAL,OTHER CONTRACTORS,5902195642
03.06.2016,F & C S EXCLUDING CORPORATE BUDGETS,CAPITA BUSINESS SERVICES LTD,"10,660.00",ADMINISTRATIVE SUPPORT,EQUIPMENT PURCHASE & REPAIR,5902195491
03.06.2016,F & C S EXCLUDING CORPORATE BUDGETS,CAPITA BUSINESS SERVICES LTD,"5,328.00",CAPITA,OTHER CONTRACTORS,5902195566
03.06.2016,F & C S EXCLUDING CORPORATE BUDGETS,WILKIN CHAPMAN,337.50,COUNCIL TAX,TRAINING,5902195624
03.06.2016,F & C S EXCLUDING CORPORATE BUDGETS,INSTITUTE OF LICENCE (EVENTS) LTD,275.00,LEGAL SVCES MANAGEMENT,PROFESSIONAL FEES,5902195426
03.06.2016,F & C S EXCLUDING CORPORATE BUDGETS,PINSENT MASONS LLP,609.00,LEGAL SVCES MANAGEMENT,PROFESSIONAL FEES,5902195451
03.06.2016,F & C S EXCLUDING CORPORATE BUDGETS,LEXISNEXIS UK,730.00,LEGAL SVCES MANAGEMENT,SUBSCRIPTIONS,5902195444
03.06.2016,F & C S EXCLUDING CORPORATE BUDGETS,LIVING ACCOMODATION LTD,-280.00,PAYMENTS CONTROL,OFFICE EXPENSES,2102492871
03.06.2016,F & C S EXCLUDING CORPORATE BUDGETS,ELEANOR M SIBLEY,"6,800.00",SAFEGUARDING,LEGAL FEES & COURT COSTS,2102497731
03.06.2016,HOUSING HRA,CALFORD SEADEN LLP,"1,821.31",CAPITAL PS (HRA),CONSTRUCTION FEES - EXTERNAL,5902194143
03.06.2016,HOUSING HRA,CALFORD SEADEN LLP,"1,869.66",CAPITAL PS (HRA),CONSTRUCTION FEES - EXTERNAL,5902194170
03.06.2016,HOUSING HRA,CALFORD SEADEN LLP,411.22,CAPITAL PS (HRA),CONSTRUCTION MAIN CONTRACT - CERTIFICATED,5902194971
03.06.2016,HOUSING HRA,CALFORD SEADEN LLP,533.68,CAPITAL PS (HRA),CONSTRUCTION MAIN CONTRACT - CERTIFICATED,5902194940
03.06.2016,HOUSING HRA,3MS GOLD SERVICES LTD,"5,413.50",CAPITAL PS (HRA),CONSTRUCTION MAIN CONTRACT - NON CERTIFICATED,2102497992
03.06.2016,LEISURE DIRECTORATE,POLYTEK SERVICES LTD,855.84,BURGESS AREA TEAM,OTHER R&M,5902195598
03.06.2016,LEISURE DIRECTORATE,GLS EDUCATIONAL SUPPLIES LTD,972.72,BURGESS PARK COMMUNITY SPORTS CENTRE,OTHER CLEANING,5902195386
03.06.2016,LEISURE DIRECTORATE,HARRISON DESIGN DEVELOPMENT LTD,"1,200.00",CEMETERIES,CONSULTANTS SERVICES,5902195570
03.06.2016,LEISURE DIRECTORATE,INSTITUTE OF CEMETERY & CREMATORIUM MANAGEMENT,445.00,CREMATORIUM,HIRE OF ROOMS/HALLS,5902195223
03.06.2016,LEISURE DIRECTORATE,APPLE DISTRIBUTION INTERNATIONAL,414.00,DIRECTOR OF LEISURE,COMMUNICATIONS & COMPUTING CONTRACT CHARGES,5902195467
03.06.2016,LEISURE DIRECTORATE,APPLE DISTRIBUTION INTERNATIONAL,414.00,DIRECTOR OF LEISURE,COMMUNICATIONS & COMPUTING CONTRACT CHARGES,5902195467
03.06.2016,LEISURE DIRECTORATE,CLASSIC NEWS,406.03,JOHN HARVARD LIBRARY,BOOKS & PUBLICATIONS,5902195487
03.06.2016,MODERNISATION,SOUTHWARK NEWSPAPER LTD,"1,536.00",COMMERCIAL PROPERTIES,LEGAL FEES & COURT COSTS,2102497753
03.06.2016,MODERNISATION HGF,APPLE DISTRIBUTION INTERNATIONAL,316.00,TECHNOLOGY,COMPUTER MAINTENANCE,5902195415
03.06.2016,MODERNISATION HGF,APPLE DISTRIBUTION INTERNATIONAL,"1,852.00",TECHNOLOGY,COMPUTER MAINTENANCE,5902195415
03.06.2016,PECKHAM AND NUNHEAD COMMUNITY COUNCIL,DAVID IDOWU FOUNDATION ,"5,094.00",DAVID IDOWU FOUNDATION YOUTH INK ,GRANTS,CHEQUE PAYMENT
03.06.2016,REGENERATION,HOARE LEA CONSULTING ENGINEERS,"9,000.00",PECKHAM/CAMBERWELL SITES-FEES/MPLAN,PROFESSIONAL FEES,5902195247
03.06.2016,REGENERATION,LONDON LETTERBOX MARKETING,683.00,STAKEHOLDER ENGAGEMENT,DELIVERY CHARGES,5902195578
03.06.2016,RESIDENT SERVICES,ANTHONY GOLD SOLICITORS,"6,824.50",CAMBERWELL,LEGAL FEES & COURT COSTS,2102497762
03.06.2016,SOCIAL SERVICES,KAIROS COMMUNITY TRUST,"3,420.00",DRUGS & ALCOHOL REHABITATION PLACES,DAYCARE,2102497980
03.06.2016,SOCIAL SERVICES,SEVENTY4 FOUNDATION,583.31,DRUGS & ALCOHOL REHABITATION PLACES,DAYCARE,2102497985
03.06.2016,SOCIAL SERVICES,SEVENTY4 FOUNDATION,"1,000.00",DRUGS & ALCOHOL REHABITATION PLACES,DAYCARE,2102497986
03.06.2016,SOCIAL SERVICES,KAIROS COMMUNITY TRUST,"1,739.97",DRUGS & ALCOHOL REHABITATION PLACES,PLACEMENTS - REHAB,2102497981
03.06.2016,SOCIAL SERVICES,KENWARD TRUST,"2,480.00",DRUGS & ALCOHOL REHABITATION PLACES,PLACEMENTS - REHAB,2102497987
03.06.2016,SOCIAL SERVICES,KENWARD TRUST,"2,480.00",DRUGS & ALCOHOL REHABITATION PLACES,PLACEMENTS - REHAB,2102497989
03.06.2016,SOCIAL SERVICES,ANACO SMITH LTD,312.80,FRED FRANCIS DAY CENTRE,PREMISES CLEANING,5902195388
03.06.2016,SOCIAL SERVICES,CROHAM SERVICES FOR CHILDREN,"3,283.52",LODGINGS SCHEME,EXTERNAL AGENCIES AND BODIES,2102497886
03.06.2016,SOCIAL SERVICES,SIAN DAVIES,945.00,MENTAL HEALTH FOR OLDER ADULTS,LEGAL FEES & COURT COSTS,2102497752
03.06.2016,SOCIAL SERVICES,CULTURE CARE AGENCY,952.00,OP - HOMECARE,HOMECARE - SPOT,2102497984
03.06.2016,SOCIAL SERVICES,EQUINOX CARE,"1,362.75",PETTY CASH/PERSONAL ALLOWANCE,OTHER PAYMENTS FOR CLIENTS,2102497844
03.06.2016,SOCIAL SERVICES,EQUINOX CARE,"1,362.75",PETTY CASH/PERSONAL ALLOWANCE,OTHER PAYMENTS FOR CLIENTS,2102497845
03.06.2016,SOCIAL SERVICES,F A ALBIN AND SONS,"3,009.00",PETTY CASH/PERSONAL ALLOWANCE,OTHER PAYMENTS FOR CLIENTS,2102497854
03.06.2016,SOCIAL SERVICES,HC-ONE LTD (TOWER BRIDGE CARE HOME),300.00,PETTY CASH/PERSONAL ALLOWANCE,OTHER PAYMENTS FOR CLIENTS,2102497850
03.06.2016,SOCIAL SERVICES,HC-ONE LTD (TOWER BRIDGE CARE HOME),350.00,PETTY CASH/PERSONAL ALLOWANCE,OTHER PAYMENTS FOR CLIENTS,2102497851
03.06.2016,SOCIAL SERVICES,HC-ONE LTD (TOWER BRIDGE CARE HOME),600.00,PETTY CASH/PERSONAL ALLOWANCE,OTHER PAYMENTS FOR CLIENTS,2102497852
03.06.2016,SOCIAL SERVICES,HC-ONE LTD (TOWER BRIDGE CARE HOME),700.00,PETTY CASH/PERSONAL ALLOWANCE,OTHER PAYMENTS FOR CLIENTS,2102497847
03.06.2016,SOCIAL SERVICES,ACT TOO LTD,850.00,PWLD DAY CARE (TRANSPORT),DAYCARE,2102497983
03.06.2016,SOCIAL SERVICES,KEYRING-LIVING SUPPORT NETWORKS LTD,"1,143.36",PWLD DAYCARE,EXTERNAL AGENCIES AND BODIES,2102497883
03.06.2016,SOCIAL SERVICES,KEYRING-LIVING SUPPORT NETWORKS LTD,444.64,PWLD HOME CARE IND,EXTERNAL AGENCIES AND BODIES,2102497881
03.06.2016,SOCIAL SERVICES,PLUS SERVICES,"1,200.24",PWLD HOME CARE IND,EXTERNAL AGENCIES AND BODIES,2102497979
03.06.2016,SOCIAL SERVICES,REDACTED PERSONAL DATA,"1,208.96",PWPD DIRECT PAYMENTS,PERSONALISATION PAYMENTS,2102497991
03.06.2016,SOCIAL SERVICES,EDF ENERGY,611.21,SOUTHWARK BLACK MENTAL HEALTH PROJECT,ELECTRICITY,5902195592
03.06.2016,SOUTHWARK BUILDING SERVICES,EDWARDES BROS (DULWICH) LTD,290.00,ELECTRICAL TEAM - ELECTRICIAN,MATERIALS,5902195637
03.06.2016,SOUTHWARK BUILDING SERVICES,EYRE & ELLISTON LTD,"2,129.49",ELECTRICAL TEAM - ELECTRICIAN,MATERIALS,5902195536
03.06.2016,SOUTHWARK BUILDING SERVICES,EYRE & ELLISTON LTD,"4,440.00",ELECTRICAL TEAM - ELECTRICIAN,MATERIALS,5902195537
04.06.2016,-,PILKINGTON UK LTD,"1,375.80",STORES,CREDITORS -GR/IR CLEARING ACCOUNT,5902195200
04.06.2016,-,PILKINGTON UK LTD,"1,672.20",STORES,CREDITORS -GR/IR CLEARING ACCOUNT,5902195199
04.06.2016,-,TOUCAN TOOL CO LTD,396.00,STORES,CREDITORS -GR/IR CLEARING ACCOUNT,5902195203
04.06.2016,-,TOUCAN TOOL CO LTD,"1,048.32",STORES,CREDITORS -GR/IR CLEARING ACCOUNT,5902195203
04.06.2016,CHILDREN'S SERVICES,JOHN DONNE PRIMARY SCHOOL,"12,833.50",A & I MANAGEMENT,EXTERNAL AGENCIES AND BODIES,5902194732
04.06.2016,CHILDREN'S SERVICES,REDACTED PERSONAL DATA,"3,000.00",FAMILY ASSESSMENTS,RESIDENTIAL CARE,5902195380
04.06.2016,MODERNISATION HGF,THAMES REACH EMPOLYMENT ACADEMY,307.50,FOSTER CARERS TRAINING,GRANTS,5902195160
04.06.2016,PLANNING AND TRANSPORT,SOUTHWARK NEWSPAPER LTD,504.00,DEVELOPMENT CONTROL ADMINSTRATION,MARKETING & PUBLICITY SERVICES,5902195587
04.06.2016,SOCIAL SERVICES,KENT COUNTY COUNCIL - LASER,"1,676.69",SOUTHWARK RESOURCE CENTRE,ELECTRICITY,5902195174
04.06.2016,SOCIAL SERVICES,KENT COUNTY COUNCIL - LASER,"1,740.57",SOUTHWARK RESOURCE CENTRE,ELECTRICITY,5902195183
05.06.2016,CHIEF EXECUTIVE,PROJECT CENTRE LTD,"6,975.00",CAPITAL PS (REGEN),CONSTRUCTION FEES,5902195241
05.06.2016,CHILDREN'S SERVICES,ARCHWAY PROJECT LTD,420.00,YOS SUPPORT,OTHER PAYMENTS FOR CLIENTS,5902194747
05.06.2016,HOUSING HRA,MORGAN SINDALL PLC,"211,622.00",CAPITAL PS (HRA),CONSTRUCTION MAIN CONTRACT - CERTIFICATED,2102497557
06.06.2016,-,GUIDELINE LIFT SERVICES LTD,"80,337.68",GUIDELINE,MANUAL CREDITORS,5902195726
06.06.2016,-,LIFTEC LIFTS LTD,"135,057.96",PAYMENTS CONTROL ACCOUNT - LIFTEC,MANUAL CREDITORS,5902195722
06.06.2016,ASSET MANAGEMENT,POD LLP,"4,760.00",DEVELOPMENT DELIVERY,AGENCY STAFF,5902195725
06.06.2016,ASSET MANAGEMENT,FRANKHAM CONSULTANCY GROUP LTD,"5,750.00",FRA WORKS,PROFESSIONAL FEES,5902195610
06.06.2016,ASSET MANAGEMENT,GREENACRE RECRUITMENT LTD,"1,295.00",HEALTH AND SAFETY,RECRUITMENT ADVERTISING,5902195658
06.06.2016,"BOROUGH, BANKSIDE & WALWORTH COMMUNITY COUNCIL",BRANDON 2 TRA ,"3,000.00",COMMUNITY ARTS CAFE ,GRANTS,CHEQUE PAYMENT
06.06.2016,CHILDREN AND ADULT,CORELOGIC LTD,"9,000.00",CAPITAL PS (STRAT SERV),ICT ACQUISITION,5902195743
06.06.2016,CHILDREN'S SERVICES,MKJ&L SERVICES LTD,"4,680.00",ACPC  - SAFEGUARDING,CONSULTANTS SERVICES,5902195397
06.06.2016,CHILDREN'S SERVICES,CAPSTONE FOSTER CARE,"3,387.68",AGENCY FOSTERING,EXTERNAL AGENCIES AND BODIES,5902195751
06.06.2016,CHILDREN'S SERVICES,CHILDREN OF ALL NATIONS LTD,"4,108.70",AGENCY FOSTERING,EXTERNAL AGENCIES AND BODIES,2102498079
06.06.2016,CHILDREN'S SERVICES,CHILDREN OF ALL NATIONS LTD,"4,108.70",AGENCY FOSTERING,EXTERNAL AGENCIES AND BODIES,2102498080
06.06.2016,CHILDREN'S SERVICES,CHILDREN OF ALL NATIONS LTD,"4,207.14",AGENCY FOSTERING,EXTERNAL AGENCIES AND BODIES,2102498081
06.06.2016,CHILDREN'S SERVICES,HORIZON FOSTERING SERVICES LTD,"3,092.25",AGENCY FOSTERING,EXTERNAL AGENCIES AND BODIES,2102498088
06.06.2016,CHILDREN'S SERVICES,HORIZON FOSTERING SERVICES LTD,"3,092.25",AGENCY FOSTERING,EXTERNAL AGENCIES AND BODIES,2102498089
06.06.2016,CHILDREN'S SERVICES,HORIZON FOSTERING SERVICES LTD,"3,092.25",AGENCY FOSTERING,EXTERNAL AGENCIES AND BODIES,2102498090
06.06.2016,CHILDREN'S SERVICES,HORIZON FOSTERING SERVICES LTD,"3,255.00",AGENCY FOSTERING,EXTERNAL AGENCIES AND BODIES,2102498087
06.06.2016,CHILDREN'S SERVICES,KINDERCARE FOSTERING,"3,321.34",AGENCY FOSTERING,EXTERNAL AGENCIES AND BODIES,2102498099
06.06.2016,CHILDREN'S SERVICES,KINDERCARE FOSTERING,"3,520.67",AGENCY FOSTERING,EXTERNAL AGENCIES AND BODIES,2102498100
06.06.2016,CHILDREN'S SERVICES,LINK FOSTERING AGENCY LTD,-844.57,AGENCY FOSTERING,EXTERNAL AGENCIES AND BODIES,2102498082
06.06.2016,CHILDREN'S SERVICES,LINK FOSTERING AGENCY LTD,"3,272.71",AGENCY FOSTERING,EXTERNAL AGENCIES AND BODIES,2102498083
06.06.2016,CHILDREN'S SERVICES,MOSAIC FOSTER CARE LTD,"6,642.68",AGENCY FOSTERING,EXTERNAL AGENCIES AND BODIES,5902195762
06.06.2016,CHILDREN'S SERVICES,RAINBOW FOSTERING SERVICES LTD,"3,265.71",AGENCY FOSTERING,EXTERNAL AGENCIES AND BODIES,5902195763
06.06.2016,CHILDREN'S SERVICES,RAINBOW FOSTERING SERVICES LTD,"3,377.76",AGENCY FOSTERING,EXTERNAL AGENCIES AND BODIES,5902195765
06.06.2016,CHILDREN'S SERVICES,WELCOME FOSTER CARE LTD,"3,542.99",AGENCY FOSTERING,EXTERNAL AGENCIES AND BODIES,2102498086
06.06.2016,CHILDREN'S SERVICES,YOUNG PEOPLE AT HEART LTD,300.00,AGENCY FOSTERING,EXTERNAL AGENCIES AND BODIES,2102498094
06.06.2016,CHILDREN'S SERVICES,YOUNG PEOPLE AT HEART LTD,300.00,AGENCY FOSTERING,EXTERNAL AGENCIES AND BODIES,2102498096
06.06.2016,CHILDREN'S SERVICES,YOUNG PEOPLE AT HEART LTD,"2,800.00",AGENCY FOSTERING,EXTERNAL AGENCIES AND BODIES,2102498093
06.06.2016,CHILDREN'S SERVICES,YOUNG PEOPLE AT HEART LTD,"2,800.00",AGENCY FOSTERING,EXTERNAL AGENCIES AND BODIES,2102498095
06.06.2016,CHILDREN'S SERVICES,RELA SUPPORT SERVICES LTD,"4,000.00",AGENCY FOSTERING,OTHER PAYMENTS FOR CLIENTS,2102498084
06.06.2016,CHILDREN'S SERVICES,THE MEDUSA PROJECT,"3,321.34",AGENCY FOSTERING,RESIDENTIAL CARE,2102498069
06.06.2016,CHILDREN'S SERVICES,UMBRELLA CONTRACTS LTD,600.00,ASSISSTANT DIRECTOR (CHILDREN),PROFESSIONAL FEES,5902195818
06.06.2016,CHILDREN'S SERVICES,UMBRELLA CONTRACTS LTD,750.00,ASSISSTANT DIRECTOR (CHILDREN),PROFESSIONAL FEES,5902195817
06.06.2016,CHILDREN'S SERVICES,UMBRELLA CONTRACTS LTD,"1,000.00",ASSISSTANT DIRECTOR (CHILDREN),PROFESSIONAL FEES,5902195816
06.06.2016,CHILDREN'S SERVICES,UMBRELLA CONTRACTS LTD,"1,000.00",ASSISSTANT DIRECTOR (CHILDREN),PROFESSIONAL FEES,5902195820
06.06.2016,CHILDREN'S SERVICES,THAMES WATER UTILITIES LTD,500.88,BISHOPS HOUSE EARLY YEARS CENTRE,WATER,5902195723
06.06.2016,CHILDREN'S SERVICES,CHARLOTTE NOYES LTD,879.60,CLA TEAM SAFEGUARDING,PROFESSIONAL FEES,5902195753
06.06.2016,CHILDREN'S SERVICES,CHARLOTTE NOYES LTD,"1,201.85",CLA TEAM SAFEGUARDING,PROFESSIONAL FEES,5902195756
06.06.2016,CHILDREN'S SERVICES,CHARLOTTE NOYES LTD,"1,764.65",CLA TEAM SAFEGUARDING,PROFESSIONAL FEES,5902195754
06.06.2016,CHILDREN'S SERVICES,CHARLOTTE NOYES LTD,"1,773.60",CLA TEAM SAFEGUARDING,PROFESSIONAL FEES,5902195755
06.06.2016,CHILDREN'S SERVICES,CHARLOTTE NOYES LTD,"1,818.70",CLA TEAM SAFEGUARDING,PROFESSIONAL FEES,5902195757
06.06.2016,CHILDREN'S SERVICES,CHARLOTTE NOYES LTD,"2,524.35",CLA TEAM SAFEGUARDING,PROFESSIONAL FEES,5902195759
06.06.2016,CHILDREN'S SERVICES,JULIET OGBECHIE LTD,"1,200.00",COMMISSIONING ESTABLISHMENT,CONSULTANTS SERVICES,5902195659
06.06.2016,CHILDREN'S SERVICES,REGIONAL FOSTER PLACEMENTS (SW) LTD,"1,664.00",DISABILITY & HIV,TRAINING,5902195761
06.06.2016,CHILDREN'S SERVICES,APPLE DISTRIBUTION INTERNATIONAL,343.00,EARLY AUTISM SUPPORT,"OP.LEASE/HIRE CHARGES: PLANT, EQUIPT & FURNITURE",5902195728
06.06.2016,CHILDREN'S SERVICES,APPLE DISTRIBUTION INTERNATIONAL,553.00,EARLY AUTISM SUPPORT,"OP.LEASE/HIRE CHARGES: PLANT, EQUIPT & FURNITURE",5902195728
06.06.2016,CHILDREN'S SERVICES,APPLE DISTRIBUTION INTERNATIONAL,"2,898.00",EARLY AUTISM SUPPORT,"OP.LEASE/HIRE CHARGES: PLANT, EQUIPT & FURNITURE",5902195728
06.06.2016,CHILDREN'S SERVICES,OASIS PLACES LTD,"12,642.86",FAMILY ASSESSMENTS,RESIDENTIAL CARE,5902195699
06.06.2016,CHILDREN'S SERVICES,REDACTED PERSONAL DATA,563.20,FAMILY ASSESSMENTS,RESIDENTIAL CARE,5902195701
06.06.2016,CHILDREN'S SERVICES,REDACTED PERSONAL DATA,"1,320.00",FAMILY ASSESSMENTS,RESIDENTIAL CARE,5902195832
06.06.2016,CHILDREN'S SERVICES,SYMBOL FAMILY SUPPORT SERVICES LTD,-936.00,FAMILY ASSESSMENTS,RESIDENTIAL CARE,5902195705
06.06.2016,CHILDREN'S SERVICES,SYMBOL FAMILY SUPPORT SERVICES LTD,"3,276.00",FAMILY ASSESSMENTS,RESIDENTIAL CARE,5902195698
06.06.2016,CHILDREN'S SERVICES,SYMBOL FAMILY SUPPORT SERVICES LTD,"4,212.00",FAMILY ASSESSMENTS,RESIDENTIAL CARE,5902195695
06.06.2016,CHILDREN'S SERVICES,SYMBOL FAMILY SUPPORT SERVICES LTD,"13,104.00",FAMILY ASSESSMENTS,RESIDENTIAL CARE,5902195689
06.06.2016,CHILDREN'S SERVICES,TY CONNECTIONS LTD,"6,128.46",FAMILY ASSESSMENTS,RESIDENTIAL CARE,5902195686
06.06.2016,CHILDREN'S SERVICES,REDACTED PERSONAL DATA,"2,835.00",FINANCE,PAYMENTS FOR LEGAL SERVICES,5902195749
06.06.2016,CHILDREN'S SERVICES,APPLE DISTRIBUTION INTERNATIONAL,674.00,HEARING AND VISUAL IMPAIRMENT TEAM,"OP.LEASE/HIRE CHARGES: PLANT, EQUIPT & FURNITURE",5902195734
06.06.2016,CHILDREN'S SERVICES,APPLE DISTRIBUTION INTERNATIONAL,"1,199.00",HEARING AND VISUAL IMPAIRMENT TEAM,"OP.LEASE/HIRE CHARGES: PLANT, EQUIPT & FURNITURE",5902195734
06.06.2016,CHILDREN'S SERVICES,SOUTH LONDON  MAUDSLEY NHS FOUNDATION TRUST,"13,278.64",PARENTING TEAM,EXTERNAL AGENCIES AND BODIES,5902195795
06.06.2016,CHILDREN'S SERVICES,SOUTH LONDON  MAUDSLEY NHS FOUNDATION TRUST,"13,369.67",PARENTING TEAM,EXTERNAL AGENCIES AND BODIES,5902195798
06.06.2016,CHILDREN'S SERVICES,BLACKFRIARS SETTLEMENT,"1,250.00",PLAY GRANTS - EDUCATION,EXTERNAL AGENCIES AND BODIES,5902195835
06.06.2016,CHILDREN'S SERVICES,FRANKHAM CONSULTANCY GROUP LTD,667.80,PROPERTY MANAGEMENT - 5015257,PROFESSIONAL FEES,5902194735
06.06.2016,CHILDREN'S SERVICES,WOOD GROVE (CHILDCARE) LTD,"3,750.00",RESIDENTIAL,OTHER PAYMENTS FOR CLIENTS,5902195760
06.06.2016,CHILDREN'S SERVICES,FIVE RIVERS CHILD CARE LTD,"16,285.80",RESIDENTIAL,RESIDENTIAL CARE,2102498073
06.06.2016,CHILDREN'S SERVICES,FIVE RIVERS CHILD CARE LTD,"29,628.62",RESIDENTIAL,RESIDENTIAL CARE,2102498071
06.06.2016,CHILDREN'S SERVICES,HEXAGON CARE SERVICES LTD,"15,256.43",RESIDENTIAL,RESIDENTIAL CARE,5902195778
06.06.2016,CHILDREN'S SERVICES,COUNTY PRIVATE CLIENT LTD,"1,055.00",S & FAM SUPP - PRAC GRP B SET 17-19,SECTION 17 PAYMENTS TO AGENCIES/CARERS,5902195825
06.06.2016,CHILDREN'S SERVICES,COUNTY PRIVATE CLIENT LTD,"1,055.00",S & FAM SUPP - PRAC GRP B SET 17-19,SECTION 17 PAYMENTS TO AGENCIES/CARERS,5902195827
06.06.2016,CHILDREN'S SERVICES,RELA SUPPORT SERVICES LTD,517.40,S24 CLA,OTHER PAYMENTS FOR CLIENTS,2102498085
06.06.2016,CHILDREN'S SERVICES,YOUNG FUTURES,"2,214.33",S24 CLA,RESIDENTIAL CARE,2102498078
06.06.2016,CHILDREN'S SERVICES,ST CHRISTOPHER FELLOWSHIP,"1,392.86",SEMI INDEPENDENT,RESIDENTIAL CARE,2102498075
06.06.2016,CHILDREN'S SERVICES,ST CHRISTOPHER FELLOWSHIP,"1,425.00",SEMI INDEPENDENT,RESIDENTIAL CARE,2102498074
06.06.2016,CHILDREN'S SERVICES,ST CHRISTOPHER FELLOWSHIP,"4,317.86",SEMI INDEPENDENT,RESIDENTIAL CARE,2102498076
06.06.2016,CHILDREN'S SERVICES,RESTORATIVE JUSTICE COUNCIL LTD,300.00,YOS SUPPORT,TRAINING,5902194743
06.06.2016,COMMUNITIES,HADDON HALL RESIDENTS TMO,605.83,HADDON HALL CO-OP,M&M ALLOWANCE CO-OPS,5902195796
06.06.2016,COMMUNITIES,HADDON HALL RESIDENTS TMO,610.38,HADDON HALL CO-OP,M&M ALLOWANCE CO-OPS,5902195792
06.06.2016,COMMUNITIES,PURPLE PEBBLES(CHILD CARE) SERVICES,600.00,NO RECOURSE TO PUBLIC FUNDS,SECTION 17 PAYMENTS TO AGENCIES/CARERS,5902195684
06.06.2016,COMMUNITIES,PURPLE PEBBLES(CHILD CARE) SERVICES,643.57,NO RECOURSE TO PUBLIC FUNDS,SECTION 17 PAYMENTS TO AGENCIES/CARERS,5902195696
06.06.2016,COMMUNITIES,PURPLE PEBBLES(CHILD CARE) SERVICES,841.43,NO RECOURSE TO PUBLIC FUNDS,SECTION 17 PAYMENTS TO AGENCIES/CARERS,5902195685
06.06.2016,COMMUNITIES,PURPLE PEBBLES(CHILD CARE) SERVICES,945.00,NO RECOURSE TO PUBLIC FUNDS,SECTION 17 PAYMENTS TO AGENCIES/CARERS,5902195693
06.06.2016,COMMUNITIES,PURPLE PEBBLES(CHILD CARE) SERVICES,"1,217.86",NO RECOURSE TO PUBLIC FUNDS,SECTION 17 PAYMENTS TO AGENCIES/CARERS,5902195688
06.06.2016,COMMUNITIES,SOUTH OF THE RIVER INVESTMENTS LTD,"1,240.00",NO RECOURSE TO PUBLIC FUNDS,SECTION 17 PAYMENTS TO AGENCIES/CARERS,5902195843
06.06.2016,COMMUNITIES,SOUTH OF THE RIVER INVESTMENTS LTD,"1,550.00",NO RECOURSE TO PUBLIC FUNDS,SECTION 17 PAYMENTS TO AGENCIES/CARERS,5902195842
06.06.2016,COMMUNITIES,VENTURE HOUSING (LONDON) LTD,"1,116.00",NO RECOURSE TO PUBLIC FUNDS,SECTION 17 PAYMENTS TO AGENCIES/CARERS,5902195657
06.06.2016,COMMUNITIES,VENTURE HOUSING (LONDON) LTD,"1,271.00",NO RECOURSE TO PUBLIC FUNDS,SECTION 17 PAYMENTS TO AGENCIES/CARERS,5902195655
06.06.2016,COMMUNITIES,BRICKLAYERS ARMS T&RA,"1,200.00",TENANTS FUND,GRANTS,5902195669
06.06.2016,COMMUNITIES,CRAWFORD T&RA,"1,972.00",TENANTS FUND,GRANTS,5902195672
06.06.2016,COMMUNITIES,LANT & BITTERN STREET T&RA,"1,200.00",TENANTS FUND,GRANTS,5902195670
06.06.2016,CUSTOMER SERVICES HGF,LIVING ACCOMODATION LTD,490.00,NIGHTLY TA (NSC),EXTERNAL AGENCIES AND BODIES,5902195675
06.06.2016,CUSTOMER SERVICES HGF,LIVING ACCOMODATION LTD,"28,545.00",NIGHTLY TA (NSC),EXTERNAL AGENCIES AND BODIES,5902195661
06.06.2016,CUSTOMER SERVICES HGF,QUINARY LTD,"2,662.90",NIGHTLY TA (NSC),EXTERNAL AGENCIES AND BODIES,5902195738
06.06.2016,CUSTOMER SERVICES HGF,SOUTH OF THE RIVER INVESTMENTS LTD,"1,550.00",NIGHTLY TA (NSC),EXTERNAL AGENCIES AND BODIES,5902195654
06.06.2016,CUSTOMER SERVICES HGF,TRADE  IN OPTIONS LTD,"2,112.00",NIGHTLY TA (NSC),EXTERNAL AGENCIES AND BODIES,5902195660
06.06.2016,DULWICH COMMUNITY COUNCIL,MYLIFE PRODUCTIONS 2013 CIC ,"3,000.00",MY GENERATION ,GRANTS,CHEQUE PAYMENT
06.06.2016,ELECTORAL SVCES,DULWICH GROVE UNITED REFORM CHURCH,450.00,GLA ELECTIONS,HIRE OF ROOMS/HALLS,5902195653
06.06.2016,ENVIRONMENT AND LEISURE,APPLEYARD & TREW,"4,800.00",CAPITAL PS (LEISURE),CONSTRUCTION FEES - EXTERNAL,5902195681
06.06.2016,ENVIRONMENT AND LEISURE,LDA DESIGN CONSULTING LTD,"4,256.23",CAPITAL PS (LEISURE),CONSTRUCTION FEES - EXTERNAL,5902195807
06.06.2016,ENVIRONMENT DIRECTORATE,DANNY MORRIS T/A MORRIS TYRES SERVICES,255.00,COMMERCIAL VEH CTRL A/C,OTHER VEHICLE RUNNING COSTS,5902195824
06.06.2016,ENVIRONMENT DIRECTORATE,DANNY MORRIS T/A MORRIS TYRES SERVICES,270.00,COMMERCIAL VEH CTRL A/C,OTHER VEHICLE RUNNING COSTS,5902195819
06.06.2016,ENVIRONMENT DIRECTORATE,QUARTERMAN WINDSCREENS LTD,307.20,FLEET INSURANCE WORKS,TRANSPORT INSURANCE COSTS,5902195786
06.06.2016,ENVIRONMENT DIRECTORATE,GREEN MACHINES SWEEPERS UK LTD,554.50,MANAGEMENT TEAM,EQUIPMENT PURCHASE & REPAIR,5902195724
06.06.2016,ENVIRONMENT DIRECTORATE,TEW PLUS LTD,"24,039.65",PKG & CAR PKS CCTV,EQUIPMENT PURCHASE & REPAIR,5902195047
06.06.2016,ENVIRONMENT DIRECTORATE,PERFORMANCE CHEMICALS LTD,941.20,STREETS  (NORTH WEST),MATERIALS,5902195706
06.06.2016,F & C S EXCLUDING CORPORATE BUDGETS,BETTER BANKSIDE,"194,363.87",BETTER BANKSIDE,EXTERNAL AGENCIES AND BODIES,5902195712
06.06.2016,HOUSING HRA,FAIRVIEW NEW HOMES LTD,"207,012.00",CAPITAL PS (HRA),LAND & BUILDINGS ACQUISITION,5902195809
06.06.2016,LEISURE DIRECTORATE,CHARTER SPECIALIST SECURITY LTD,"2,385.00",DULWICH AREA TEAM,FIRE ALARMS & EMERGENCY LIGHTING,5902195732
06.06.2016,LEISURE DIRECTORATE,BRITISH GAS BUSINESS,582.33,DULWICH AREA TEAM,GAS,5902195831
06.06.2016,LEISURE DIRECTORATE,BRITISH GAS BUSINESS,643.54,DULWICH AREA TEAM,GAS,5902195826
06.06.2016,LEISURE DIRECTORATE,CLASSIC NEWS,353.68,JOHN HARVARD LIBRARY,BOOKS & PUBLICATIONS,5902195691
06.06.2016,LEISURE DIRECTORATE,QUADRON SERVICES LIMITED,385.76,SOUTHWARK AREA TEAM,GROUNDS MAINTENANCE,5902195788
06.06.2016,LEISURE DIRECTORATE,QUADRON SERVICES LIMITED,534.64,SOUTHWARK AREA TEAM,GROUNDS MAINTENANCE,5902195790
06.06.2016,LEISURE DIRECTORATE,QUADRON SERVICES LIMITED,534.64,SOUTHWARK AREA TEAM,GROUNDS MAINTENANCE,5902195813
06.06.2016,LEISURE DIRECTORATE,QUADRON SERVICES LIMITED,694.64,SOUTHWARK AREA TEAM,GROUNDS MAINTENANCE,5902195770
06.06.2016,LEISURE DIRECTORATE,QUADRON SERVICES LIMITED,"3,450.00",SOUTHWARK AREA TEAM,GROUNDS MAINTENANCE,5902195787
06.06.2016,LEISURE DIRECTORATE,QUADRON SERVICES LIMITED,"3,690.00",SOUTHWARK AREA TEAM,GROUNDS MAINTENANCE,5902195773
06.06.2016,MODERNISATION HGF,PHS GROUP PLC,953.61,160 TOOLEY ST.,"OP.LEASE/HIRE CHARGES: PLANT, EQUIPT & FURNITURE",5902195710
06.06.2016,MODERNISATION HGF,WOODWARD LEWIS LLP,"1,900.00",CORP. TRAINING BUDGETS,TRAINING,5902195839
06.06.2016,MODERNISATION HGF,CYGNET BUSINESS DEVELOPMENT LTD,675.00,ILM COSTS,TRAINING,5902195676
06.06.2016,PUBLIC HEALTH,GUYS AND ST THOMAS CHARITY,"5,426.66",HEALTH PROTECTION,GRANTS,5902194768
06.06.2016,REGENERATION,CONWAY AECOM LTD,"8,043.00",PROFESSIONAL SERVICES (GENERAL),PROFESSIONAL FEES,5902195805
06.06.2016,RESIDENT SERVICES,TROWERS & HAMLINS LLP,"2,042.79",PROJECTS & PROGRAMME,PROFESSIONAL FEES,5902195720
06.06.2016,SOCIAL SERVICES,FOCUS ON FOSTERING LTD,"3,894.90",LODGINGS SCHEME,OTHER PAYMENTS FOR CLIENTS,2102498097
06.06.2016,SOCIAL SERVICES,FOCUS ON FOSTERING LTD,"3,894.90",LODGINGS SCHEME,OTHER PAYMENTS FOR CLIENTS,2102498098
06.06.2016,SOCIAL SERVICES,ECOLAB LTD,595.19,MH NORTH,BUILDING R&M,5902195651
06.06.2016,SOCIAL SERVICES,ECOLAB LTD,610.07,MH NORTH,BUILDING R&M,5902195650
06.06.2016,SOCIAL SERVICES,BEACH HOUSE BIRCHINGTON LTD,320.00,PETTY CASH/PERSONAL ALLOWANCE,OTHER PAYMENTS FOR CLIENTS,2102498205
06.06.2016,SOCIAL SERVICES,BEACH HOUSE BIRCHINGTON LTD,320.00,PETTY CASH/PERSONAL ALLOWANCE,OTHER PAYMENTS FOR CLIENTS,2102498234
06.06.2016,SOCIAL SERVICES,FOUNTAIN CARE LTD,329.40,PETTY CASH/PERSONAL ALLOWANCE,OTHER PAYMENTS FOR CLIENTS,2102498200
06.06.2016,SOCIAL SERVICES,FOUNTAIN CARE LTD,329.40,PETTY CASH/PERSONAL ALLOWANCE,OTHER PAYMENTS FOR CLIENTS,2102498229
06.06.2016,SOCIAL SERVICES,SOUTHERN HEALTH NHS FOUNDATION,320.00,PETTY CASH/PERSONAL ALLOWANCE,OTHER PAYMENTS FOR CLIENTS,2102498212
06.06.2016,SOCIAL SERVICES,SOUTHERN HEALTH NHS FOUNDATION,320.00,PETTY CASH/PERSONAL ALLOWANCE,OTHER PAYMENTS FOR CLIENTS,2102498241
06.06.2016,SOCIAL SERVICES,REDACTED PERSONAL DATA,"-2,016.11",PWLD DIRECT PAYMENTS,PAYMENTS TO CLIENTS (DIRECT PAYMENTS),2102498180
06.06.2016,SOCIAL SERVICES,REDACTED PERSONAL DATA,"2,694.75",PWLD DIRECT PAYMENTS,PAYMENTS TO CLIENTS (DIRECT PAYMENTS),2102498182
06.06.2016,SOCIAL SERVICES,PEOPLE PLUS,"1,158.79",PWPD DIRECT PAYMENTS,PERSONALISATION PAYMENTS,2102498183
06.06.2016,SOUTHWARK BUILDING SERVICES,SIEMENS FINANCIAL SERVICES LIMITED,"1,752.66",DEPOT COSTS,"OP.LEASE/HIRE CHARGES: PLANT, EQUIPT & FURNITURE",5902195668
07.06.2016,-,OCO LIMITED,"22,815.33",ENG CONTRACTS (NORTH),INLAND REVENUE,5902196020
07.06.2016,-,BLACKBURNS METALS LTD,660.00,STORES,CREDITORS -GR/IR CLEARING ACCOUNT,5902196054
07.06.2016,-,BLACKBURNS METALS LTD,995.00,STORES,CREDITORS -GR/IR CLEARING ACCOUNT,5902196055
07.06.2016,-,WURTH UK LTD,284.40,STORES,CREDITORS -GR/IR CLEARING ACCOUNT,5902196065
07.06.2016,-,WURTH UK LTD,552.00,STORES,CREDITORS -GR/IR CLEARING ACCOUNT,5902196024
07.06.2016,ASSET MANAGEMENT,MOTT MACDONALD LTD,955.00,PROGRAMMING,PROFESSIONAL FEES,5902195874
07.06.2016,CENTRAL FUNCTIONS,EDF ENERGY PLC,314.49,HEATING ACCOUNT,ELECTRICITY,5902196029
07.06.2016,CENTRAL FUNCTIONS,HMCTS,335.00,HOME OWNERSHIP,LEGAL FEES & COURT COSTS,5902196089
07.06.2016,CENTRAL FUNCTIONS,REDACTED PERSONAL DATA,"-2,126.04",HOME OWNERSHIP INCOME,HOUSING RESIDENTIAL RENTS,5902196393
07.06.2016,CENTRAL FUNCTIONS,REDACTED PERSONAL DATA,"2,126.04",HOME OWNERSHIP INCOME,HOUSING RESIDENTIAL RENTS,5902192385
07.06.2016,CHIEF EXECUTIVE,CONWAY AECOM LTD,"2,761.21",CAPITAL PS (REGEN),CONSTRUCTION FEES - EXTERNAL,5902195917
07.06.2016,CHIEF EXECUTIVE,CONWAY AECOM LTD,"6,060.43",CAPITAL PS (REGEN),CONSTRUCTION MAIN CONTRACT - CERTIFICATED,2102498349
07.06.2016,CHIEF EXECUTIVE,CONWAY AECOM LTD,"37,057.01",CAPITAL PS (REGEN),CONSTRUCTION MAIN CONTRACT - CERTIFICATED,2102498350
07.06.2016,CHIEF EXECUTIVE,CONWAY AECOM LTD,465.00,CAPITAL PS (REGEN),CONSTRUCTION SUB CONTRACT - NON CERTIFICATED,2102498359
07.06.2016,CHIEF EXECUTIVE,CONWAY AECOM LTD,"9,508.57",CAPITAL PS (REGEN),CONSTRUCTION SUB CONTRACT - NON CERTIFICATED,5902195930
07.06.2016,CHIEF EXECUTIVE,CONWAY AECOM LTD,"14,167.95",CAPITAL PS (REGEN),CONSTRUCTION SUB CONTRACT - NON CERTIFICATED,5902195959
07.06.2016,CHIEF EXECUTIVE'S OFFICE,FANTASY HIGH STREET CIC,"10,000.00",BUSINESS SUPPORT FUND,GRANTS,5902194282
07.06.2016,CHILDREN AND ADULT,FEILDEN CLEGG BRADLEY STUDIOS LLP,"112,034.36",CAPITAL PS (EDUCATION),CONSTRUCTION FEES - ARCHITECT,5902196017
07.06.2016,CHILDREN AND ADULT,GALLIFORD TRY PARTNERSHIP,"80,817.12",CAPITAL PS (EDUCATION),CONSTRUCTION MAIN CONTRACT - CERTIFICATED,2102498345
07.06.2016,CHILDREN AND ADULT,MORGAN SINDALL PLC,"519,480.88",CAPITAL PS (EDUCATION),CONSTRUCTION MAIN CONTRACT - CERTIFICATED,2102498361
07.06.2016,CHILDREN AND ADULT,MORGAN SINDALL PLC,"89,085.91",CAPITAL PS (EDUCATION),CONSTRUCTION MAIN CONTRACT - NON CERTIFICATED,2102498347
07.06.2016,CHILDREN AND ADULT,HERBERT CONSULTING LIMITED,"5,600.00",CAPITAL PS (STRAT SERV),ICT ACQUISITION,5902196019
07.06.2016,CHILDREN'S SERVICES,MARS DRINKS UK LTD,756.90,ADMIN SUMNER,EQUIPMENT PURCHASE & REPAIR,5902195896
07.06.2016,CHILDREN'S SERVICES,SWIIS FOSTER CARE LTD,697.97,AGENCY FOSTERING,EXTERNAL AGENCIES AND BODIES,5902195929
07.06.2016,CHILDREN'S SERVICES,SWIIS FOSTER CARE LTD,697.97,AGENCY FOSTERING,EXTERNAL AGENCIES AND BODIES,5902195931
07.06.2016,CHILDREN'S SERVICES,ASSESSMENT & QUALIFICATION ALLIANCE,310.40,BRANDON YOUTH CENTRE,EQUIPMENT PURCHASE & REPAIR,5902195952
07.06.2016,CHILDREN'S SERVICES,NATIONAL DAY NURSERIES ASSOCIATION,325.00,CHILDRENS CENTRE,OTHER SUBSISTENCE & CONFERENCE EXPENSES,5902195977
07.06.2016,CHILDREN'S SERVICES,NATIONAL DAY NURSERIES ASSOCIATION,325.00,CHILDRENS CENTRE,OTHER SUBSISTENCE & CONFERENCE EXPENSES,5902195977
07.06.2016,CHILDREN'S SERVICES,JOHN GUEST SAFEGUARDING LIMITED,400.00,CHILDRENS CENTRE,PROFESSIONAL FEES,5902195893
07.06.2016,CHILDREN'S SERVICES,JOHN GUEST SAFEGUARDING LIMITED,400.00,CHILDRENS CENTRE,PROFESSIONAL FEES,5902195898
07.06.2016,CHILDREN'S SERVICES,LINK AGE SOUTHWARK,"29,125.00",COMMISSIONING SUPPORT,EXTERNAL AGENCIES AND BODIES,5902196006
07.06.2016,CHILDREN'S SERVICES,REPREZENT LTD,"5,750.00",COMMUNITY LEARNING 15/16,GRANTS,5902195926
07.06.2016,CHILDREN'S SERVICES,REPREZENT LTD,"14,000.00",COMMUNITY LEARNING 15/16,GRANTS,5902195923
07.06.2016,CHILDREN'S SERVICES,OXLEAS NHS FOUNDATION TRUST,"1,767.00",FAMILY ASSESSMENTS,RESIDENTIAL CARE,5902195374
07.06.2016,CHILDREN'S SERVICES,REDACTED PERSONAL DATA,646.65,FAMILY ASSESSMENTS,RESIDENTIAL CARE,5902195371
07.06.2016,CHILDREN'S SERVICES,HEALTHCARE & TRANSPORT SERVICE,"49,497.75",HOME 2 SCHOOL TRANSPORT,CAB FARES,5902196009
07.06.2016,CHILDREN'S SERVICES,ARGOS BUSINESS SOLUTIONS LTD,254.72,LEAVING CARE GRANT,OTHER PAYMENTS FOR CLIENTS,5902196101
07.06.2016,CHILDREN'S SERVICES,LINDEN LODGE SCHOOL,"5,400.00",OLA - SPECIAL,EXTERNAL AGENCIES AND BODIES,2102476625
07.06.2016,CHILDREN'S SERVICES,MORGAN SINDALL PLC,"19,661.02",PROPERTY MANAGEMENT - 5015257,CONSULTANTS SERVICES,5902196060
07.06.2016,CHILDREN'S SERVICES,MORGAN SINDALL PLC,"34,297.68",PROPERTY MANAGEMENT - 5015257,CONSULTANTS SERVICES,5902196063
07.06.2016,CHILDREN'S SERVICES,CAPITA BUSINESS SERVICES LTD,-299.00,PUPIL PREMIUM CURRENT YEAR,TRAINING,5902192936
07.06.2016,CHILDREN'S SERVICES,CAPITA BUSINESS SERVICES LTD,-299.00,PUPIL PREMIUM CURRENT YEAR,TRAINING,5902192936
07.06.2016,CHILDREN'S SERVICES,PROPERTY ACE UK LTD,840.00,S24 CLA,OTHER PAYMENTS FOR CLIENTS,5902195853
07.06.2016,CHILDREN'S SERVICES,PROPERTY ACE UK LTD,840.00,S24 CLA,OTHER PAYMENTS FOR CLIENTS,5902195855
07.06.2016,CHILDREN'S SERVICES,STEPPING STONE PROJECT,534.40,SEMI INDEPENDENT,EXTERNAL AGENCIES AND BODIES,5902195865
07.06.2016,CHILDREN'S SERVICES,STEPPING STONE PROJECT,"1,038.00",SEMI INDEPENDENT,EXTERNAL AGENCIES AND BODIES,5902195869
07.06.2016,CHILDREN'S SERVICES,STEPPING STONE PROJECT,"1,124.46",SEMI INDEPENDENT,EXTERNAL AGENCIES AND BODIES,5902195861
07.06.2016,CHILDREN'S SERVICES,STEPPING STONE PROJECT,"1,931.68",SEMI INDEPENDENT,EXTERNAL AGENCIES AND BODIES,5902195864
07.06.2016,CHILDREN'S SERVICES,STEPPING STONE PROJECT,"1,950.88",SEMI INDEPENDENT,EXTERNAL AGENCIES AND BODIES,5902195866
07.06.2016,CHILDREN'S SERVICES,STEPPING STONE PROJECT,"1,950.88",SEMI INDEPENDENT,EXTERNAL AGENCIES AND BODIES,5902195867
07.06.2016,CHILDREN'S SERVICES,PROPERTY ACE UK LTD,"1,020.00",SEMI INDEPENDENT,RESIDENTIAL CARE,5902195856
07.06.2016,CHILDREN'S SERVICES,PROPERTY ACE UK LTD,"1,020.00",SEMI INDEPENDENT,RESIDENTIAL CARE,5902195857
07.06.2016,CHILDREN'S SERVICES,THE SALMON YOUTH CENTRE,"19,343.25",SHORT BREAKS,EXTERNAL AGENCIES AND BODIES,5902196007
07.06.2016,CHILDREN'S SERVICES,LOOK AHEAD CARE AND SUPPORT LTD,"55,750.00",SP PROVIDER PAYMENTS,EXTERNAL AGENCIES AND BODIES,5902196004
07.06.2016,CHILDREN'S SERVICES,LOOK AHEAD CARE AND SUPPORT LTD,"66,690.00",SP PROVIDER PAYMENTS,EXTERNAL AGENCIES AND BODIES,5902196005
07.06.2016,CHILDREN'S SERVICES,THAMES HOMECARE SERVICE LTD,558.00,SPECIALIST CARE,SECTION 17 PAYMENTS TO AGENCIES/CARERS,2102498274
07.06.2016,CHILDREN'S SERVICES,THAMES HOMECARE SERVICE LTD,683.55,SPECIALIST CARE,SECTION 17 PAYMENTS TO AGENCIES/CARERS,2102498275
07.06.2016,CHILDREN'S SERVICES,THAMES HOMECARE SERVICE LTD,948.60,SPECIALIST CARE,SECTION 17 PAYMENTS TO AGENCIES/CARERS,2102498273
07.06.2016,CHILDREN'S SERVICES,4 FUTURES LIMITED,"9,094.51",SSF NSA FM/ICT SACRED HEART,COMPUTER MAINTENANCE,5902195980
07.06.2016,CHILDREN'S SERVICES,EAST SUSSEX COUNTY COUNCIL,500.00,STAYING PUT,OTHER PAYMENTS FOR CLIENTS,2102498272
07.06.2016,CHILDREN'S SERVICES,WIFI SPARK LTD,999.37,THOMAS CALTON CENTRE,COMPUTER MAINTENANCE,5902195441
07.06.2016,CHILDREN'S SERVICES,WIFI SPARK LTD,"2,984.19",THOMAS CALTON CENTRE,COMPUTER MAINTENANCE,5902195441
07.06.2016,COMMUNITIES,RED R DESIGN,"1,290.00",COMM PARTICIP TEAM,MARKETING & PUBLICITY SERVICES,5902196001
07.06.2016,COMMUNITIES,FINEFAIR LTD,525.12,NO RECOURSE TO PUBLIC FUNDS,SECTION 17 PAYMENTS TO AGENCIES/CARERS,5902195935
07.06.2016,COMMUNITIES,FINEFAIR LTD,831.44,NO RECOURSE TO PUBLIC FUNDS,SECTION 17 PAYMENTS TO AGENCIES/CARERS,5902195940
07.06.2016,COMMUNITIES,FINEFAIR LTD,"1,461.34",NO RECOURSE TO PUBLIC FUNDS,SECTION 17 PAYMENTS TO AGENCIES/CARERS,5902195945
07.06.2016,COMMUNITIES,FINEFAIR LTD,"1,531.36",NO RECOURSE TO PUBLIC FUNDS,SECTION 17 PAYMENTS TO AGENCIES/CARERS,5902195937
07.06.2016,COMMUNITIES,FINEFAIR LTD,"1,687.33",NO RECOURSE TO PUBLIC FUNDS,SECTION 17 PAYMENTS TO AGENCIES/CARERS,5902195949
07.06.2016,COMMUNITIES,FINEFAIR LTD,"1,687.33",NO RECOURSE TO PUBLIC FUNDS,SECTION 17 PAYMENTS TO AGENCIES/CARERS,5902195954
07.06.2016,COMMUNITIES,FINEFAIR LTD,"1,908.05",NO RECOURSE TO PUBLIC FUNDS,SECTION 17 PAYMENTS TO AGENCIES/CARERS,5902195953
07.06.2016,COMMUNITIES,FINEFAIR LTD,"2,967.01",NO RECOURSE TO PUBLIC FUNDS,SECTION 17 PAYMENTS TO AGENCIES/CARERS,5902195941
07.06.2016,COMMUNITIES,FINEFAIR LTD,"2,967.01",NO RECOURSE TO PUBLIC FUNDS,SECTION 17 PAYMENTS TO AGENCIES/CARERS,5902195951
07.06.2016,COMMUNITIES,FINEFAIR LTD,"3,297.78",NO RECOURSE TO PUBLIC FUNDS,SECTION 17 PAYMENTS TO AGENCIES/CARERS,5902195948
07.06.2016,COMMUNITIES,FINEFAIR LTD,"3,297.78",NO RECOURSE TO PUBLIC FUNDS,SECTION 17 PAYMENTS TO AGENCIES/CARERS,5902195955
07.06.2016,COMMUNITIES,J & M OASIS LTD,"10,416.00",NO RECOURSE TO PUBLIC FUNDS,SECTION 17 PAYMENTS TO AGENCIES/CARERS,5902195916
07.06.2016,COMMUNITIES,LIVING ACCOMODATION LTD,"1,395.00",NO RECOURSE TO PUBLIC FUNDS,SECTION 17 PAYMENTS TO AGENCIES/CARERS,5902195863
07.06.2016,COMMUNITIES,LIVING ACCOMODATION LTD,"1,395.00",NO RECOURSE TO PUBLIC FUNDS,SECTION 17 PAYMENTS TO AGENCIES/CARERS,5902195868
07.06.2016,COMMUNITIES,LIVING ACCOMODATION LTD,"1,395.00",NO RECOURSE TO PUBLIC FUNDS,SECTION 17 PAYMENTS TO AGENCIES/CARERS,5902195873
07.06.2016,COMMUNITIES,LIVING ACCOMODATION LTD,"1,581.00",NO RECOURSE TO PUBLIC FUNDS,SECTION 17 PAYMENTS TO AGENCIES/CARERS,5902195871
07.06.2016,COMMUNITIES,NATIONWIDE ACCOMMODATION,"19,851.00",NO RECOURSE TO PUBLIC FUNDS,SECTION 17 PAYMENTS TO AGENCIES/CARERS,5902196088
07.06.2016,COMMUNITIES,SOUTH OF THE RIVER INVESTMENTS LTD,"1,782.50",NO RECOURSE TO PUBLIC FUNDS,SECTION 17 PAYMENTS TO AGENCIES/CARERS,5902195846
07.06.2016,COMMUNITIES,TAAKSVALE HOUSING LTD,"24,695.00",NO RECOURSE TO PUBLIC FUNDS,SECTION 17 PAYMENTS TO AGENCIES/CARERS,5902195879
07.06.2016,COMMUNITIES,TLK PROPERTY & INVESTMENT LTD,"1,085.00",NO RECOURSE TO PUBLIC FUNDS,SECTION 17 PAYMENTS TO AGENCIES/CARERS,5902196096
07.06.2016,COMMUNITIES,REDACTED PERSONAL DATA,280.00,NRPF CHILDREN,SECTION 17 PAYMENTS TO AGENCIES/CARERS,5902196012
07.06.2016,COMMUNITIES,BERKELEY CATERING LTD,261.90,TENANT MGT INITITIVES,TRAINING,5902195804
07.06.2016,COMMUNITIES,LONGFIELD T&RA,"1,882.00",TENANTS FUND,GRANTS,5902196083
07.06.2016,CUSTOMER SERVICES HGF,WAINWRIGHT & CUMMINS LLP,"1,000.00",HOMELESS PROJECTS,LEGAL FEES & COURT COSTS,2102497758
07.06.2016,CUSTOMER SERVICES HGF,A & M ACCOMMODATION SERVICES LTD,"50,429.50",NIGHTLY TA (NSC),EXTERNAL AGENCIES AND BODIES,5902196057
07.06.2016,CUSTOMER SERVICES HGF,RS REAL ESTATE LTD,"19,530.00",NIGHTLY TA (NSC),EXTERNAL AGENCIES AND BODIES,5902196014
07.06.2016,CUSTOMER SERVICES HGF,DAVID GARETH & KAY HOSKINS,860.00,PRIVATE SECTOR LEASING,EXTERNAL AGENCIES AND BODIES,2102498354
07.06.2016,CUSTOMER SERVICES HGF,OLUWATOSIN OBIWALE,646.16,PRIVATE SECTOR LEASING,EXTERNAL AGENCIES AND BODIES,2102498355
07.06.2016,CUSTOMER SERVICES HGF,REDACTED PERSONAL DATA,966.12,TEMP ACCOM - MNGMT,GRANTS,5902196068
07.06.2016,CUSTOMER SERVICES HGF,INTERPRETING DIRECT CO (UK) LTD,"9,322.90",TRANSLATION & INTERPRETATION,TRANSLATION SERVICES,5902195972
07.06.2016,ELECTORAL SVCES,FINANCIAL DATA MANAGEMENT LTD,443.85,ELECTORAL REGISTRATION,POSTAGES,5902196015
07.06.2016,ELECTORAL SVCES,FINANCIAL DATA MANAGEMENT LTD,"5,547.66",ELECTORAL REGISTRATION,POSTAGES,5902196016
07.06.2016,ELECTORAL SVCES,FINANCIAL DATA MANAGEMENT LTD,"8,273.25",ELECTORAL REGISTRATION,PRINTING,5902195981
07.06.2016,ENVIRONMENT AND LEISURE,LDA DESIGN CONSULTING LTD,"17,326.81",CAPITAL PS (LEISURE),CONSTRUCTION FEES - EXTERNAL,5902196013
07.06.2016,ENVIRONMENT AND LEISURE,LANDMARK SERVICES,"21,000.00",CAPITAL PS (LEISURE),CONSTRUCTION SITE COSTS,5902195919
07.06.2016,ENVIRONMENT AND LEISURE,CONWAY AECOM LTD,278.84,CAPITAL PS (LEISURE),CONSTRUCTION SUB CONTRACT - NON CERTIFICATED,5902195963
07.06.2016,ENVIRONMENT AND LEISURE,CONWAY AECOM LTD,"7,228.63",CAPITAL PS (LEISURE),CONSTRUCTION SUB CONTRACT - NON CERTIFICATED,5902195939
07.06.2016,ENVIRONMENT DIRECTORATE,HITACHI CAPITAL VEHICLE SOLN LTD,"1,371.99",CAR LEASING CTRL A/C,VEHICLE LEASING CHARGES,5902195904
07.06.2016,ENVIRONMENT DIRECTORATE,UK POWER NETWORKS (OPERATIONS) LTD,"3,316.00",COLUMNS - MAJOR ROADS,SOUTHWARK DIRECT CHARGES,5902196031
07.06.2016,ENVIRONMENT DIRECTORATE,UK POWER NETWORKS (OPERATIONS) LTD,"1,176.00",COLUMNS - MINOR ROADS,SOUTHWARK DIRECT CHARGES,5902196035
07.06.2016,ENVIRONMENT DIRECTORATE,UK POWER NETWORKS (OPERATIONS) LTD,"1,526.00",COLUMNS - MINOR ROADS,SOUTHWARK DIRECT CHARGES,5902196032
07.06.2016,ENVIRONMENT DIRECTORATE,UK POWER NETWORKS (OPERATIONS) LTD,"2,448.00",COLUMNS - MINOR ROADS,SOUTHWARK DIRECT CHARGES,5902196033
07.06.2016,ENVIRONMENT DIRECTORATE,UK POWER NETWORKS (OPERATIONS) LTD,"3,207.00",COLUMNS - MINOR ROADS,SOUTHWARK DIRECT CHARGES,5902196034
07.06.2016,ENVIRONMENT DIRECTORATE,CLOSE BROTHERS VEHICLE HIRE LTD,268.40,COMMERCIAL VEH CTRL A/C,HIRED VEHICLES,5902195887
07.06.2016,ENVIRONMENT DIRECTORATE,CLOSE BROTHERS VEHICLE HIRE LTD,268.40,COMMERCIAL VEH CTRL A/C,HIRED VEHICLES,5902195888
07.06.2016,ENVIRONMENT DIRECTORATE,CLOSE BROTHERS VEHICLE HIRE LTD,286.00,COMMERCIAL VEH CTRL A/C,HIRED VEHICLES,5902195885
07.06.2016,ENVIRONMENT DIRECTORATE,CLOSE BROTHERS VEHICLE HIRE LTD,286.00,COMMERCIAL VEH CTRL A/C,HIRED VEHICLES,5902195886
07.06.2016,ENVIRONMENT DIRECTORATE,CLOSE BROTHERS VEHICLE HIRE LTD,367.34,COMMERCIAL VEH CTRL A/C,HIRED VEHICLES,5902195880
07.06.2016,ENVIRONMENT DIRECTORATE,CLOSE BROTHERS VEHICLE HIRE LTD,494.56,COMMERCIAL VEH CTRL A/C,HIRED VEHICLES,5902195883
07.06.2016,ENVIRONMENT DIRECTORATE,DAWSON RENTALS SWEEPERS,"2,216.08",COMMERCIAL VEH CTRL A/C,HIRED VEHICLES,5902195924
07.06.2016,ENVIRONMENT DIRECTORATE,DAWSON RENTALS SWEEPERS,"2,216.08",COMMERCIAL VEH CTRL A/C,HIRED VEHICLES,5902195927
07.06.2016,ENVIRONMENT DIRECTORATE,DAWSON RENTALS SWEEPERS,"2,332.00",COMMERCIAL VEH CTRL A/C,HIRED VEHICLES,5902195928
07.06.2016,ENVIRONMENT DIRECTORATE,DAWSON RENTALS SWEEPERS,"2,332.00",COMMERCIAL VEH CTRL A/C,HIRED VEHICLES,5902195932
07.06.2016,ENVIRONMENT DIRECTORATE,DAWSON RENTALS SWEEPERS,"2,332.00",COMMERCIAL VEH CTRL A/C,HIRED VEHICLES,5902195934
07.06.2016,ENVIRONMENT DIRECTORATE,DAWSON RENTALS SWEEPERS,"2,332.00",COMMERCIAL VEH CTRL A/C,HIRED VEHICLES,5902195938
07.06.2016,ENVIRONMENT DIRECTORATE,TIPPERHIRE LTD,506.00,COMMERCIAL VEH CTRL A/C,HIRED VEHICLES,5902195906
07.06.2016,ENVIRONMENT DIRECTORATE,TIPPERHIRE LTD,506.00,COMMERCIAL VEH CTRL A/C,HIRED VEHICLES,5902195908
07.06.2016,ENVIRONMENT DIRECTORATE,TIPPERHIRE LTD,506.00,COMMERCIAL VEH CTRL A/C,HIRED VEHICLES,5902195909
07.06.2016,ENVIRONMENT DIRECTORATE,TIPPERHIRE LTD,506.00,COMMERCIAL VEH CTRL A/C,HIRED VEHICLES,5902195912
07.06.2016,ENVIRONMENT DIRECTORATE,TIPPERHIRE LTD,506.00,COMMERCIAL VEH CTRL A/C,HIRED VEHICLES,5902195914
07.06.2016,ENVIRONMENT DIRECTORATE,R J MOTORS LIMITED,257.25,COMMERCIAL VEH CTRL A/C,VEHICLE REPAIRS & MAINTENANCE,5902195986
07.06.2016,ENVIRONMENT DIRECTORATE,R J MOTORS LIMITED,357.08,COMMERCIAL VEH CTRL A/C,VEHICLE REPAIRS & MAINTENANCE,5902196073
07.06.2016,ENVIRONMENT DIRECTORATE,R J MOTORS LIMITED,393.87,COMMERCIAL VEH CTRL A/C,VEHICLE REPAIRS & MAINTENANCE,5902195983
07.06.2016,ENVIRONMENT DIRECTORATE,R J MOTORS LIMITED,730.98,COMMERCIAL VEH CTRL A/C,VEHICLE REPAIRS & MAINTENANCE,5902196067
07.06.2016,ENVIRONMENT DIRECTORATE,R J MOTORS LIMITED,"1,126.20",COMMERCIAL VEH CTRL A/C,VEHICLE REPAIRS & MAINTENANCE,5902196064
07.06.2016,ENVIRONMENT DIRECTORATE,R J MOTORS LIMITED,"1,204.07",COMMERCIAL VEH CTRL A/C,VEHICLE REPAIRS & MAINTENANCE,5902195992
07.06.2016,ENVIRONMENT DIRECTORATE,R J MOTORS LIMITED,"6,981.44",COMMERCIAL VEH CTRL A/C,VEHICLE REPAIRS & MAINTENANCE,5902196062
07.06.2016,ENVIRONMENT DIRECTORATE,AUTO SISTANCE LTD,750.00,ENGINEERING CRAFTS,MATERIALS,5902196082
07.06.2016,ENVIRONMENT DIRECTORATE,AUTO SISTANCE LTD,800.00,ENGINEERING CRAFTS,MATERIALS,5902196080
07.06.2016,ENVIRONMENT DIRECTORATE,AUTO SISTANCE LTD,"1,500.00",ENGINEERING CRAFTS,MATERIALS,5902196071
07.06.2016,ENVIRONMENT DIRECTORATE,BLACKBURNS METALS LTD,"1,570.00",ENGINEERING CRAFTS,MATERIALS,5902196059
07.06.2016,ENVIRONMENT DIRECTORATE,F H BRUNDLE,354.40,ENGINEERING CRAFTS,MATERIALS,5902196050
07.06.2016,ENVIRONMENT DIRECTORATE,F H BRUNDLE,537.00,ENGINEERING CRAFTS,MATERIALS,5902196050
07.06.2016,ENVIRONMENT DIRECTORATE,PURPOSE POWDER COATINGS LTD,347.48,ENGINEERING CRAFTS,MATERIALS,5902196085
07.06.2016,ENVIRONMENT DIRECTORATE,GREENHAM TRADING LTD,"1,826.43",ESTATE CLEANING-GENERAL,MATERIALS,5902195913
07.06.2016,ENVIRONMENT DIRECTORATE,QUARTERMAN WINDSCREENS LTD,456.50,FLEET INSURANCE WORKS,TRANSPORT INSURANCE COSTS,5902195942
07.06.2016,ENVIRONMENT DIRECTORATE,UK POWER NETWORKS (OPERATIONS) LTD,578.00,ILLUMINATED SIGNS - MINOR ROADS,SOUTHWARK DIRECT CHARGES,5902196028
07.06.2016,ENVIRONMENT DIRECTORATE,UK POWER NETWORKS (OPERATIONS) LTD,763.00,ILLUMINATED SIGNS - MINOR ROADS,SOUTHWARK DIRECT CHARGES,5902196030
07.06.2016,ENVIRONMENT DIRECTORATE,UK POWER NETWORKS (OPERATIONS) LTD,"1,658.00",ILLUMINATED SIGNS - MINOR ROADS,SOUTHWARK DIRECT CHARGES,5902196026
07.06.2016,ENVIRONMENT DIRECTORATE,UK POWER NETWORKS (OPERATIONS) LTD,"4,184.00",ILLUMINATED SIGNS - MINOR ROADS,SOUTHWARK DIRECT CHARGES,5902196025
07.06.2016,ENVIRONMENT DIRECTORATE,UK POWER NETWORKS (OPERATIONS) LTD,"1,636.00",LIGHTING RECOVERABLE WORKS,SOUTHWARK DIRECT CHARGES,5902196038
07.06.2016,ENVIRONMENT DIRECTORATE,UK POWER NETWORKS (OPERATIONS) LTD,"2,352.00",LIGHTING RECOVERABLE WORKS,SOUTHWARK DIRECT CHARGES,5902196039
07.06.2016,ENVIRONMENT DIRECTORATE,COMPLETE TREE CARE LTD,503.64,NON HOUSING GROUNDS,AGENCY STAFF,5902196048
07.06.2016,ENVIRONMENT DIRECTORATE,COMPLETE TREE CARE LTD,513.57,NON HOUSING GROUNDS,AGENCY STAFF,5902195976
07.06.2016,ENVIRONMENT DIRECTORATE,HUNTER APPAREL SOLUTIONS LTD,"2,758.08",NON HOUSING GROUNDS,"CLOTHING, UNIFORMS & LAUNDRY",5902195933
07.06.2016,ENVIRONMENT DIRECTORATE,CONWAY AECOM LTD,"3,145.68",PROJECT SUPPORT,OTHER CONTRACTORS,5902196018
07.06.2016,ENVIRONMENT DIRECTORATE,LAKEDALE POWER TOOLS,255.00,PUBLIC LIGHTING,EQUIPMENT PURCHASE & REPAIR,5902195915
07.06.2016,ENVIRONMENT DIRECTORATE,LAKEDALE POWER TOOLS,595.00,PUBLIC LIGHTING,EQUIPMENT PURCHASE & REPAIR,5902195911
07.06.2016,ENVIRONMENT DIRECTORATE,WHITTEN TIMBER LTD,553.96,SIGN SHOP,MATERIALS,5902196044
07.06.2016,ENVIRONMENT DIRECTORATE,LIVING STREETS (PEDESTRIAN ASSOCIATION),"1,921.80",STP MONITORING AND INITIATIVES,GRANTS,5902196036
07.06.2016,ENVIRONMENT DIRECTORATE,MOUCHEL LTD,"4,480.00",TRANSPORT ENGINEERING,CONSULTANTS SERVICES,5902195922
07.06.2016,F & C S EXCLUDING CORPORATE BUDGETS,CAPITA BUSINESS SERVICES LTD,"22,127.33",CAPITA,OTHER CONTRACTORS,5902195950
07.06.2016,F & C S EXCLUDING CORPORATE BUDGETS,CAPITA BUSINESS SERVICES LTD,"30,218.03",CAPITA,OTHER CONTRACTORS,5902195950
07.06.2016,F & C S EXCLUDING CORPORATE BUDGETS,LINDEN LODGE SCHOOL,"-5,400.00",PAYMENTS CONTROL,OFFICE EXPENSES,2102493698
07.06.2016,HOUSING,KENT COUNTY COUNCIL,"10,126.60",SUPPLY OF ELECTRICITY,ELECTRICITY,DIRECT DEBIT PAYMENT
07.06.2016,HOUSING,KENT COUNTY COUNCIL,"28,427.76",SUPPLY OF ELECTRICITY,ELECTRICITY,DIRECT DEBIT PAYMENT
07.06.2016,HOUSING HRA,BURKE & WILLS REMOVALS LTD,"1,760.00",CAPITAL PS (HRA),CAPITAL GRANTS,5902196098
07.06.2016,HOUSING HRA,TECH REMOVAL SERVICES LTD,670.00,CAPITAL PS (HRA),CAPITAL GRANTS,5902196097
07.06.2016,HOUSING HRA,MOTT MACDONALD LTD,"2,625.00",CAPITAL PS (HRA),CONSTRUCTION FEES - EMPLOYERS AGENT,5902195881
07.06.2016,HOUSING HRA,MOTT MACDONALD LTD,"2,896.00",CAPITAL PS (HRA),CONSTRUCTION FEES - EMPLOYERS AGENT,5902195884
07.06.2016,HOUSING HRA,MOTT MACDONALD LTD,"4,610.26",CAPITAL PS (HRA),CONSTRUCTION FEES - EMPLOYERS AGENT,5902195974
07.06.2016,HOUSING HRA,MOTT MACDONALD LTD,"6,000.00",CAPITAL PS (HRA),CONSTRUCTION FEES - EMPLOYERS AGENT,5902195968
07.06.2016,HOUSING HRA,MOTT MACDONALD LTD,"19,802.61",CAPITAL PS (HRA),CONSTRUCTION FEES - EMPLOYERS AGENT,5902195907
07.06.2016,HOUSING HRA,JOHN BURKE ASSOCIATES,600.00,CAPITAL PS (HRA),CONSTRUCTION FEES - EXTERNAL,5902196076
07.06.2016,HOUSING HRA,JOHN BURKE ASSOCIATES,787.50,CAPITAL PS (HRA),CONSTRUCTION FEES - EXTERNAL,5902196091
07.06.2016,HOUSING HRA,JOHN BURKE ASSOCIATES,887.00,CAPITAL PS (HRA),CONSTRUCTION FEES - EXTERNAL,5902196070
07.06.2016,HOUSING HRA,JOHN BURKE ASSOCIATES,928.00,CAPITAL PS (HRA),CONSTRUCTION FEES - EXTERNAL,5902196075
07.06.2016,HOUSING HRA,JOHN BURKE ASSOCIATES,928.00,CAPITAL PS (HRA),CONSTRUCTION FEES - EXTERNAL,5902196077
07.06.2016,HOUSING HRA,JOHN BURKE ASSOCIATES,928.00,CAPITAL PS (HRA),CONSTRUCTION FEES - EXTERNAL,5902196087
07.06.2016,HOUSING HRA,JOHN BURKE ASSOCIATES,930.00,CAPITAL PS (HRA),CONSTRUCTION FEES - EXTERNAL,5902196037
07.06.2016,HOUSING HRA,JOHN BURKE ASSOCIATES,"1,044.00",CAPITAL PS (HRA),CONSTRUCTION FEES - EXTERNAL,5902196081
07.06.2016,HOUSING HRA,JOHN BURKE ASSOCIATES,"1,073.00",CAPITAL PS (HRA),CONSTRUCTION FEES - EXTERNAL,5902196072
07.06.2016,HOUSING HRA,JOHN BURKE ASSOCIATES,"1,222.50",CAPITAL PS (HRA),CONSTRUCTION FEES - EXTERNAL,5902196040
07.06.2016,HOUSING HRA,GEOFFREY OSBORNE LIMITED,"41,325.00",CAPITAL PS (HRA),CONSTRUCTION MAIN CONTRACT - CERTIFICATED,2102498348
07.06.2016,HOUSING HRA,STANNAH LIFT SERVICES LTD,"5,310.00",CAPITAL PS (HRA),CONSTRUCTION MAIN CONTRACT - NON CERTIFICATED,5902196103
07.06.2016,HOUSING HRA,GEOFFREY OSBORNE LIMITED,"391,023.80",CAPITAL PS (REGEN),CONSTRUCTION MAIN CONTRACT - CERTIFICATED,2102498360
07.06.2016,LEISURE DIRECTORATE,BOYD-THORPE ASSOCIATES,"8,165.20",ACCOMODATION,CONSULTANTS SERVICES,5902195897
07.06.2016,LEISURE DIRECTORATE,WORMFOOD MUSIC LTD,"3,000.00",FACILITIES MANAGEMENT,PROFESSIONAL FEES,5902196053
07.06.2016,LEISURE DIRECTORATE,WIFI SPARK LTD,"4,230.67",IT DEVELOPMENT,COMMUNICATIONS & COMPUTING CONTRACT CHARGES,5902195441
07.06.2016,LEISURE DIRECTORATE,WIFI SPARK LTD,"18,074.89",IT DEVELOPMENT,COMMUNICATIONS & COMPUTING CONTRACT CHARGES,5902195441
07.06.2016,LEISURE DIRECTORATE,ASKEWS & HOLTS LIBRARY SERVICES LTD,"1,947.05",STOCK SERVICES,BOOKS & PUBLICATIONS,5902196100
07.06.2016,LEISURE DIRECTORATE,ASKEWS & HOLTS LIBRARY SERVICES LTD,"6,662.68",STOCK SERVICES,BOOKS & PUBLICATIONS,5902196079
07.06.2016,MODERNISATION,A N CONTRACT SERVICES LTD,"8,050.00",COMMERCIAL PROPERTIES,BUILDING R&M,2102498344
07.06.2016,MODERNISATION HGF,GOVERNMENT KNOWLEDGE TRAINING LTD,"2,250.00",CORP. TRAINING BUDGETS,TRAINING,5902196041
07.06.2016,MODERNISATION HGF,GOVERNMENT KNOWLEDGE TRAINING LTD,"2,250.00",CORP. TRAINING BUDGETS,TRAINING,5902196041
07.06.2016,MODERNISATION HGF,CAPITA BUSINESS SERVICES LTD,359.00,MEMBER DEVELOPMENT,TRAINING,5902195056
07.06.2016,MODERNISATION HGF,CYRIL SWEETT LTD,"1,050.00",PLANNED MAINTENANCE,BUILDING R&M,5902196074
07.06.2016,MODERNISATION HGF,A N CONTRACT SERVICES LTD,"3,258.03",REPAIR AND MAINTENANCE SERVICES,BUILDING R&M,2102498340
07.06.2016,MODERNISATION HGF,A N CONTRACT SERVICES LTD,"4,194.36",REPAIR AND MAINTENANCE SERVICES,BUILDING R&M,2102498341
07.06.2016,MODERNISATION HGF,A N CONTRACT SERVICES LTD,"4,667.25",REPAIR AND MAINTENANCE SERVICES,BUILDING R&M,2102498342
07.06.2016,MODERNISATION HGF,CBS MAINTENANCE SERVICES LTD,"6,529.64",REPAIR AND MAINTENANCE SERVICES,BUILDING R&M,2102498346
07.06.2016,MODERNISATION HGF,CAPITA BUSINESS SERVICES LTD,359.00,SOCIAL WORK TRANSITION GRANT,TRAINING,5902195851
07.06.2016,PLANNING AND TRANSPORT,BNP PARIBAS REAL ESTATE ADVISORY & PROPERTY MANAGEMENT,"27,320.11",SOUTHWARK CIL,CONSULTANTS SERVICES,5902196021
07.06.2016,PUBLIC HEALTH,CHELSEA AND WESTMINSTER HOSPITAL,309.74,SEXUAL HEALTH - STI,EXTERNAL AGENCIES AND BODIES,5902194343
07.06.2016,PUBLIC HEALTH,CHELSEA AND WESTMINSTER HOSPITAL,405.23,SEXUAL HEALTH - STI,EXTERNAL AGENCIES AND BODIES,5902194342
07.06.2016,PUBLIC HEALTH,CHELSEA AND WESTMINSTER HOSPITAL,560.10,SEXUAL HEALTH - STI,EXTERNAL AGENCIES AND BODIES,5902194345
07.06.2016,PUBLIC HEALTH,IMPERIAL COLLEGE HEALTHCARE NHS TRUST,"39,036.00",SEXUAL HEALTH - STI,EXTERNAL AGENCIES AND BODIES,5902194492
07.06.2016,PUBLIC HEALTH,IMPERIAL COLLEGE HEALTHCARE NHS TRUST,"39,651.00",SEXUAL HEALTH - STI,EXTERNAL AGENCIES AND BODIES,5902194489
07.06.2016,PUBLIC HEALTH,IMPERIAL COLLEGE HEALTHCARE NHS TRUST,"43,102.00",SEXUAL HEALTH - STI,EXTERNAL AGENCIES AND BODIES,5902194484
07.06.2016,PUBLIC HEALTH,LEWISHAM AND GREENWICH NHS TRUST,"4,322.00",SEXUAL HEALTH - STI,EXTERNAL AGENCIES AND BODIES,5902195946
07.06.2016,PUBLIC HEALTH,LEWISHAM AND GREENWICH NHS TRUST,"5,414.00",SEXUAL HEALTH - STI,EXTERNAL AGENCIES AND BODIES,5902195943
07.06.2016,REGENERATION,A N CONTRACT SERVICES LTD,"7,310.00",CPHA  MANAGED PROPERTIES,BUILDING R&M,2102498343
07.06.2016,REGENERATION,CONWAY AECOM LTD,"2,863.17",PROPERTY - - PHASE 4,OTHER R&M,5902195944
07.06.2016,REGENERATION,POLLARD THOMAS EDWARDS LTD,"13,500.00",SSF PROGRAMME COST,PROFESSIONAL FEES,5902195920
07.06.2016,RESIDENT SERVICES,OCEAN MEDIA GROUP LIMITED,385.00,HOUSING STRATEGY (HRA),SUBSCRIPTIONS,5902195715
07.06.2016,RESIDENT SERVICES,PRB ESTATES LTD,"-216,829.65",SHELTERED WARDENS,PLANNED MAINTENANCE,2102498461
07.06.2016,RESIDENT SERVICES,PRB ESTATES LTD,"216,829.65",SHELTERED WARDENS,PLANNED MAINTENANCE,2102498362
07.06.2016,SOCIAL SERVICES,ABACUS AMBULANCE SERVICE,257.50,OP - CLIENT TRANSPORT,CLIENT TRANSPORT,2102498278
07.06.2016,SOCIAL SERVICES,YOUTH GRACES (UK) LTD,427.05,OP - HOMECARE,HOMECARE - SPOT,2102498293
07.06.2016,SOCIAL SERVICES,YOUTH GRACES (UK) LTD,450.38,OP - HOMECARE,HOMECARE - SPOT,2102498339
07.06.2016,SOCIAL SERVICES,YOUTH GRACES (UK) LTD,807.37,OP - HOMECARE,HOMECARE - SPOT,2102498317
07.06.2016,SOCIAL SERVICES,YOUTH GRACES (UK) LTD,561.46,OP CARE PACKAGES,HOMECARE - SPOT,2102498282
07.06.2016,SOCIAL SERVICES,YOUTH GRACES (UK) LTD,617.18,OP CARE PACKAGES,HOMECARE - SPOT,2102498299
07.06.2016,SOCIAL SERVICES,YOUTH GRACES (UK) LTD,631.87,OP CARE PACKAGES,HOMECARE - SPOT,2102498302
07.06.2016,SOCIAL SERVICES,WARWICK GRP T/A MACH 1 COURIERS LTD,-890.00,PWLD DAY CARE (TRANSPORT),CLIENT TRANSPORT,2102498277
07.06.2016,SOCIAL SERVICES,WARWICK GRP T/A MACH 1 COURIERS LTD,"1,000.00",PWLD DAY CARE (TRANSPORT),CLIENT TRANSPORT,2102498276
07.06.2016,SOCIAL SERVICES,FRESH IDEAS & SOLUTIONS SERVICES CIC,267.00,PWLD DAYCARE,DAYCARE,2102498279
07.06.2016,SOCIAL SERVICES,THE NEW SHOOTS,300.00,PWLD DAYCARE,DAYCARE,2102498336
07.06.2016,SOCIAL SERVICES,YOUTH GRACES (UK) LTD,386.14,PWLD HOME CARE IND,HOMECARE - SPOT,2102498292
07.06.2016,SOCIAL SERVICES,YOUTH GRACES (UK) LTD,351.04,PWPD HOME CARE IND,HOMECARE - SPOT,2102498290
07.06.2016,SOCIAL SERVICES,EMMA MORTIMER,"2,000.00",SAFEGUARDING TEAM,OTHER CONTRACTORS,5902195918
07.06.2016,SOUTHWARK BUILDING SERVICES,ALLIED REMEDIAL TREATMENTS LTD,684.70,BUSINESS SUPPORT,OTHER CONTRACTORS,2102498356
07.06.2016,SOUTHWARK BUILDING SERVICES,CS FULL METAL FABRICATIONS LTD,"2,152.59",BUSINESS SUPPORT,OTHER CONTRACTORS,2102498357
07.06.2016,SOUTHWARK BUILDING SERVICES,EMPIRE BUILDERS,"55,234.20",BUSINESS SUPPORT,OTHER CONTRACTORS,2102498351
07.06.2016,SOUTHWARK BUILDING SERVICES,BRITISH GAS TRADING LTD,295.50,DEPOT COSTS,GAS,5902195961
07.06.2016,SOUTHWARK BUILDING SERVICES,EYRE & ELLISTON LTD,333.80,ELECTRICAL TEAM - ELECTRICIAN,MATERIALS,5902195969
07.06.2016,SOUTHWARK BUILDING SERVICES,ORANGE PERSONAL COMMUNICATIONS,419.00,ICT & COMMUNICATIONS,TELEPHONES (MOBILES),5902195991
07.06.2016,SOUTHWARK BUILDING SERVICES,ORANGE PERSONAL COMMUNICATIONS,"5,597.87",ICT & COMMUNICATIONS,TELEPHONES (MOBILES),5902195993
07.06.2016,SOUTHWARK BUILDING SERVICES,EYRE & ELLISTON LTD,343.69,ROTHERHITHE DAY TO DAY - ELECTRICIAN,MATERIALS,5902195973
07.06.2016,SOUTHWARK BUILDING SERVICES,HOWDENS JOINERY CO,-289.98,WALWORTH VOIDS - CARPENTER,MATERIALS,5902195960
07.06.2016,SOUTHWARK BUILDING SERVICES,HOWDENS JOINERY CO,-256.99,WALWORTH VOIDS - CARPENTER,MATERIALS,5902195960
07.06.2016,SOUTHWARK BUILDING SERVICES,HOWDENS JOINERY CO,256.99,WALWORTH VOIDS - CARPENTER,MATERIALS,5902195958
07.06.2016,SOUTHWARK BUILDING SERVICES,HOWDENS JOINERY CO,289.98,WALWORTH VOIDS - CARPENTER,MATERIALS,5902195958
08.06.2016,-,"BROWNING, JONES & MORRIS LTD",299.00,STORES,CREDITORS -GR/IR CLEARING ACCOUNT,5902196420
08.06.2016,-,"BROWNING, JONES & MORRIS LTD",375.00,STORES,CREDITORS -GR/IR CLEARING ACCOUNT,5902196428
08.06.2016,-,"BROWNING, JONES & MORRIS LTD",455.00,STORES,CREDITORS -GR/IR CLEARING ACCOUNT,5902196425
08.06.2016,-,"BROWNING, JONES & MORRIS LTD",820.00,STORES,CREDITORS -GR/IR CLEARING ACCOUNT,5902196425
08.06.2016,-,"BROWNING, JONES & MORRIS LTD","1,170.00",STORES,CREDITORS -GR/IR CLEARING ACCOUNT,5902196398
08.06.2016,-,CALLOW MASTER LOCKSMITHS,269.52,STORES,CREDITORS -GR/IR CLEARING ACCOUNT,5902196123
08.06.2016,-,CALLOW MASTER LOCKSMITHS,312.50,STORES,CREDITORS -GR/IR CLEARING ACCOUNT,5902196132
08.06.2016,-,CALLOW MASTER LOCKSMITHS,374.82,STORES,CREDITORS -GR/IR CLEARING ACCOUNT,5902196123
08.06.2016,-,CALLOW MASTER LOCKSMITHS,387.73,STORES,CREDITORS -GR/IR CLEARING ACCOUNT,5902196127
08.06.2016,-,CALLOW MASTER LOCKSMITHS,529.88,STORES,CREDITORS -GR/IR CLEARING ACCOUNT,5902196127
08.06.2016,-,CHARLES ENDIRECT LTD,866.60,STORES,CREDITORS -GR/IR CLEARING ACCOUNT,5902196141
08.06.2016,-,CHARLES ENDIRECT LTD,"1,390.50",STORES,CREDITORS -GR/IR CLEARING ACCOUNT,5902196141
08.06.2016,-,CHARLES ENDIRECT LTD,"1,390.50",STORES,CREDITORS -GR/IR CLEARING ACCOUNT,5902196141
08.06.2016,-,CHARLES ENDIRECT LTD,"1,802.00",STORES,CREDITORS -GR/IR CLEARING ACCOUNT,5902196141
08.06.2016,-,MARWOOD ELECTRICAL CO,"1,063.92",STORES,CREDITORS -GR/IR CLEARING ACCOUNT,5902196142
08.06.2016,-,MARWOOD ELECTRICAL CO,"1,078.20",STORES,CREDITORS -GR/IR CLEARING ACCOUNT,5902196142
08.06.2016,-,MARWOOD ELECTRICAL CO,"1,459.80",STORES,CREDITORS -GR/IR CLEARING ACCOUNT,5902196142
08.06.2016,-,MARWOOD ELECTRICAL CO,"1,766.40",STORES,CREDITORS -GR/IR CLEARING ACCOUNT,5902196142
08.06.2016,-,THAMES VALLEY CONTROLS LTD,"2,840.20",THAMES VALLEY CONTROL,MANUAL CREDITORS,5902196314
08.06.2016,ASSET MANAGEMENT,M C TECHNICIANS LTD,"2,670.00",ADAPTATIONS,BUILDING R&M,2102498463
08.06.2016,"BOROUGH, BANKSIDE & WALWORTH COMMUNITY COUNCIL",INSPIRE ,"6,387.50",INSPIRED SPACES ,GRANTS,CHEQUE PAYMENT
08.06.2016,"BOROUGH, BANKSIDE & WALWORTH COMMUNITY COUNCIL",2INSPIRE ,"4,075.00",INSPIRED TO GROW ,GRANTS,CHEQUE PAYMENT
08.06.2016,CENTRAL FUNCTIONS,THAMES WATER UTILITIES LTD,"36,876.96",TWA,WATER,5902196418
08.06.2016,CENTRAL FUNCTIONS,THAMES WATER UTILITIES LTD,"1,298,575.37",TWA,WATER,5902196418
08.06.2016,CHIEF EXECUTIVE,CONWAY AECOM LTD,"14,068.11",CAPITAL PS (REGEN),CONSTRUCTION SUB CONTRACT - NON CERTIFICATED,5902196213
08.06.2016,CHIEF EXECUTIVE'S OFFICE,CAMBERWELL FESTIVAL LTD,"10,000.00",BUSINESS SUPPORT FUND,GRANTS,5902196177
08.06.2016,CHILDREN AND ADULT,REDS10 LTD,"115,955.86",CAPITAL PS (EDUCATION),CONSTRUCTION FEES - ARCHITECT,2102498358
08.06.2016,CHILDREN AND ADULT,HAWKINS BROWN ARCHITECTS LLP,"8,750.00",CAPITAL PS (EDUCATION),CONSTRUCTION FEES - EXTERNAL,5902196382
08.06.2016,CHILDREN'S SERVICES,REDACTED PERSONAL DATA,-443.56,ADOPTION PLACEMENTS & INTER AGENCY,PAYMENTS TO CARERS,2102498848
08.06.2016,CHILDREN'S SERVICES,REDACTED PERSONAL DATA,252.90,ADOPTION PLACEMENTS & INTER AGENCY,PAYMENTS TO CARERS,2102498825
08.06.2016,CHILDREN'S SERVICES,REDACTED PERSONAL DATA,253.56,ADOPTION PLACEMENTS & INTER AGENCY,PAYMENTS TO CARERS,2102498753
08.06.2016,CHILDREN'S SERVICES,REDACTED PERSONAL DATA,255.22,ADOPTION PLACEMENTS & INTER AGENCY,PAYMENTS TO CARERS,2102498724
08.06.2016,CHILDREN'S SERVICES,REDACTED PERSONAL DATA,255.22,ADOPTION PLACEMENTS & INTER AGENCY,PAYMENTS TO CARERS,2102498788
08.06.2016,CHILDREN'S SERVICES,REDACTED PERSONAL DATA,255.22,ADOPTION PLACEMENTS & INTER AGENCY,PAYMENTS TO CARERS,2102498817
08.06.2016,CHILDREN'S SERVICES,REDACTED PERSONAL DATA,255.22,ADOPTION PLACEMENTS & INTER AGENCY,PAYMENTS TO CARERS,2102498851
08.06.2016,CHILDREN'S SERVICES,REDACTED PERSONAL DATA,256.54,ADOPTION PLACEMENTS & INTER AGENCY,PAYMENTS TO CARERS,2102498767
08.06.2016,CHILDREN'S SERVICES,REDACTED PERSONAL DATA,261.52,ADOPTION PLACEMENTS & INTER AGENCY,PAYMENTS TO CARERS,2102498804
08.06.2016,CHILDREN'S SERVICES,REDACTED PERSONAL DATA,269.22,ADOPTION PLACEMENTS & INTER AGENCY,PAYMENTS TO CARERS,2102498811
08.06.2016,CHILDREN'S SERVICES,REDACTED PERSONAL DATA,278.52,ADOPTION PLACEMENTS & INTER AGENCY,PAYMENTS TO CARERS,2102498800
08.06.2016,CHILDREN'S SERVICES,REDACTED PERSONAL DATA,281.42,ADOPTION PLACEMENTS & INTER AGENCY,PAYMENTS TO CARERS,2102498735
08.06.2016,CHILDREN'S SERVICES,REDACTED PERSONAL DATA,293.26,ADOPTION PLACEMENTS & INTER AGENCY,PAYMENTS TO CARERS,2102498741
08.06.2016,CHILDREN'S SERVICES,REDACTED PERSONAL DATA,293.98,ADOPTION PLACEMENTS & INTER AGENCY,PAYMENTS TO CARERS,2102498823
08.06.2016,CHILDREN'S SERVICES,REDACTED PERSONAL DATA,301.30,ADOPTION PLACEMENTS & INTER AGENCY,PAYMENTS TO CARERS,2102498797
08.06.2016,CHILDREN'S SERVICES,REDACTED PERSONAL DATA,303.32,ADOPTION PLACEMENTS & INTER AGENCY,PAYMENTS TO CARERS,2102498867
08.06.2016,CHILDREN'S SERVICES,REDACTED PERSONAL DATA,304.64,ADOPTION PLACEMENTS & INTER AGENCY,PAYMENTS TO CARERS,2102498822
08.06.2016,CHILDREN'S SERVICES,REDACTED PERSONAL DATA,316.50,ADOPTION PLACEMENTS & INTER AGENCY,PAYMENTS TO CARERS,2102498782
08.06.2016,CHILDREN'S SERVICES,REDACTED PERSONAL DATA,316.50,ADOPTION PLACEMENTS & INTER AGENCY,PAYMENTS TO CARERS,2102498832
08.06.2016,CHILDREN'S SERVICES,REDACTED PERSONAL DATA,316.50,ADOPTION PLACEMENTS & INTER AGENCY,PAYMENTS TO CARERS,2102498861
08.06.2016,CHILDREN'S SERVICES,REDACTED PERSONAL DATA,323.18,ADOPTION PLACEMENTS & INTER AGENCY,PAYMENTS TO CARERS,2102498706
08.06.2016,CHILDREN'S SERVICES,REDACTED PERSONAL DATA,329.16,ADOPTION PLACEMENTS & INTER AGENCY,PAYMENTS TO CARERS,2102498777
08.06.2016,CHILDREN'S SERVICES,REDACTED PERSONAL DATA,329.16,ADOPTION PLACEMENTS & INTER AGENCY,PAYMENTS TO CARERS,2102498847
08.06.2016,CHILDREN'S SERVICES,REDACTED PERSONAL DATA,329.42,ADOPTION PLACEMENTS & INTER AGENCY,PAYMENTS TO CARERS,2102498773
08.06.2016,CHILDREN'S SERVICES,REDACTED PERSONAL DATA,352.74,ADOPTION PLACEMENTS & INTER AGENCY,PAYMENTS TO CARERS,2102498821
08.06.2016,CHILDREN'S SERVICES,REDACTED PERSONAL DATA,354.76,ADOPTION PLACEMENTS & INTER AGENCY,PAYMENTS TO CARERS,2102498841
08.06.2016,CHILDREN'S SERVICES,REDACTED PERSONAL DATA,359.44,ADOPTION PLACEMENTS & INTER AGENCY,PAYMENTS TO CARERS,2102498783
08.06.2016,CHILDREN'S SERVICES,REDACTED PERSONAL DATA,359.44,ADOPTION PLACEMENTS & INTER AGENCY,PAYMENTS TO CARERS,2102498814
08.06.2016,CHILDREN'S SERVICES,REDACTED PERSONAL DATA,368.52,ADOPTION PLACEMENTS & INTER AGENCY,PAYMENTS TO CARERS,2102498859
08.06.2016,CHILDREN'S SERVICES,REDACTED PERSONAL DATA,375.54,ADOPTION PLACEMENTS & INTER AGENCY,PAYMENTS TO CARERS,2102498718
08.06.2016,CHILDREN'S SERVICES,REDACTED PERSONAL DATA,375.54,ADOPTION PLACEMENTS & INTER AGENCY,PAYMENTS TO CARERS,2102498720
08.06.2016,CHILDREN'S SERVICES,REDACTED PERSONAL DATA,375.54,ADOPTION PLACEMENTS & INTER AGENCY,PAYMENTS TO CARERS,2102498749
08.06.2016,CHILDREN'S SERVICES,REDACTED PERSONAL DATA,375.54,ADOPTION PLACEMENTS & INTER AGENCY,PAYMENTS TO CARERS,2102498770
08.06.2016,CHILDREN'S SERVICES,REDACTED PERSONAL DATA,375.54,ADOPTION PLACEMENTS & INTER AGENCY,PAYMENTS TO CARERS,2102498776
08.06.2016,CHILDREN'S SERVICES,REDACTED PERSONAL DATA,375.54,ADOPTION PLACEMENTS & INTER AGENCY,PAYMENTS TO CARERS,2102498792
08.06.2016,CHILDREN'S SERVICES,REDACTED PERSONAL DATA,375.54,ADOPTION PLACEMENTS & INTER AGENCY,PAYMENTS TO CARERS,2102498835
08.06.2016,CHILDREN'S SERVICES,REDACTED PERSONAL DATA,375.54,ADOPTION PLACEMENTS & INTER AGENCY,PAYMENTS TO CARERS,2102498836
08.06.2016,CHILDREN'S SERVICES,REDACTED PERSONAL DATA,375.54,ADOPTION PLACEMENTS & INTER AGENCY,PAYMENTS TO CARERS,2102498857
08.06.2016,CHILDREN'S SERVICES,REDACTED PERSONAL DATA,382.30,ADOPTION PLACEMENTS & INTER AGENCY,PAYMENTS TO CARERS,2102498727
08.06.2016,CHILDREN'S SERVICES,REDACTED PERSONAL DATA,382.30,ADOPTION PLACEMENTS & INTER AGENCY,PAYMENTS TO CARERS,2102498762
08.06.2016,CHILDREN'S SERVICES,REDACTED PERSONAL DATA,382.30,ADOPTION PLACEMENTS & INTER AGENCY,PAYMENTS TO CARERS,2102498830
08.06.2016,CHILDREN'S SERVICES,REDACTED PERSONAL DATA,382.30,ADOPTION PLACEMENTS & INTER AGENCY,PAYMENTS TO CARERS,2102498853
08.06.2016,CHILDREN'S SERVICES,REDACTED PERSONAL DATA,386.16,ADOPTION PLACEMENTS & INTER AGENCY,PAYMENTS TO CARERS,2102498852
08.06.2016,CHILDREN'S SERVICES,REDACTED PERSONAL DATA,390.26,ADOPTION PLACEMENTS & INTER AGENCY,PAYMENTS TO CARERS,2102498731
08.06.2016,CHILDREN'S SERVICES,REDACTED PERSONAL DATA,400.18,ADOPTION PLACEMENTS & INTER AGENCY,PAYMENTS TO CARERS,2102498813
08.06.2016,CHILDREN'S SERVICES,REDACTED PERSONAL DATA,404.46,ADOPTION PLACEMENTS & INTER AGENCY,PAYMENTS TO CARERS,2102498818
08.06.2016,CHILDREN'S SERVICES,REDACTED PERSONAL DATA,405.42,ADOPTION PLACEMENTS & INTER AGENCY,PAYMENTS TO CARERS,2102498704
08.06.2016,CHILDREN'S SERVICES,REDACTED PERSONAL DATA,409.02,ADOPTION PLACEMENTS & INTER AGENCY,PAYMENTS TO CARERS,2102498748
08.06.2016,CHILDREN'S SERVICES,REDACTED PERSONAL DATA,409.02,ADOPTION PLACEMENTS & INTER AGENCY,PAYMENTS TO CARERS,2102498839
08.06.2016,CHILDREN'S SERVICES,REDACTED PERSONAL DATA,443.00,ADOPTION PLACEMENTS & INTER AGENCY,PAYMENTS TO CARERS,2102498780
08.06.2016,CHILDREN'S SERVICES,REDACTED PERSONAL DATA,451.80,ADOPTION PLACEMENTS & INTER AGENCY,PAYMENTS TO CARERS,2102498723
08.06.2016,CHILDREN'S SERVICES,REDACTED PERSONAL DATA,453.24,ADOPTION PLACEMENTS & INTER AGENCY,PAYMENTS TO CARERS,2102498744
08.06.2016,CHILDREN'S SERVICES,REDACTED PERSONAL DATA,453.24,ADOPTION PLACEMENTS & INTER AGENCY,PAYMENTS TO CARERS,2102498775
08.06.2016,CHILDREN'S SERVICES,REDACTED PERSONAL DATA,457.14,ADOPTION PLACEMENTS & INTER AGENCY,PAYMENTS TO CARERS,2102498722
08.06.2016,CHILDREN'S SERVICES,REDACTED PERSONAL DATA,465.48,ADOPTION PLACEMENTS & INTER AGENCY,PAYMENTS TO CARERS,2102498774
08.06.2016,CHILDREN'S SERVICES,REDACTED PERSONAL DATA,465.52,ADOPTION PLACEMENTS & INTER AGENCY,PAYMENTS TO CARERS,2102498793
08.06.2016,CHILDREN'S SERVICES,REDACTED PERSONAL DATA,465.52,ADOPTION PLACEMENTS & INTER AGENCY,PAYMENTS TO CARERS,2102498794
08.06.2016,CHILDREN'S SERVICES,REDACTED PERSONAL DATA,465.54,ADOPTION PLACEMENTS & INTER AGENCY,PAYMENTS TO CARERS,2102498702
08.06.2016,CHILDREN'S SERVICES,REDACTED PERSONAL DATA,465.54,ADOPTION PLACEMENTS & INTER AGENCY,PAYMENTS TO CARERS,2102498703
08.06.2016,CHILDREN'S SERVICES,REDACTED PERSONAL DATA,465.54,ADOPTION PLACEMENTS & INTER AGENCY,PAYMENTS TO CARERS,2102498750
08.06.2016,CHILDREN'S SERVICES,REDACTED PERSONAL DATA,465.54,ADOPTION PLACEMENTS & INTER AGENCY,PAYMENTS TO CARERS,2102498837
08.06.2016,CHILDREN'S SERVICES,REDACTED PERSONAL DATA,465.54,ADOPTION PLACEMENTS & INTER AGENCY,PAYMENTS TO CARERS,2102498856
08.06.2016,CHILDREN'S SERVICES,REDACTED PERSONAL DATA,468.46,ADOPTION PLACEMENTS & INTER AGENCY,PAYMENTS TO CARERS,2102498854
08.06.2016,CHILDREN'S SERVICES,REDACTED PERSONAL DATA,484.92,ADOPTION PLACEMENTS & INTER AGENCY,PAYMENTS TO CARERS,2102498865
08.06.2016,CHILDREN'S SERVICES,REDACTED PERSONAL DATA,502.00,ADOPTION PLACEMENTS & INTER AGENCY,PAYMENTS TO CARERS,2102498791
08.06.2016,CHILDREN'S SERVICES,REDACTED PERSONAL DATA,512.02,ADOPTION PLACEMENTS & INTER AGENCY,PAYMENTS TO CARERS,2102498747
08.06.2016,CHILDREN'S SERVICES,REDACTED PERSONAL DATA,513.54,ADOPTION PLACEMENTS & INTER AGENCY,PAYMENTS TO CARERS,2102498834
08.06.2016,CHILDREN'S SERVICES,REDACTED PERSONAL DATA,530.00,ADOPTION PLACEMENTS & INTER AGENCY,PAYMENTS TO CARERS,2102498730
08.06.2016,CHILDREN'S SERVICES,REDACTED PERSONAL DATA,534.54,ADOPTION PLACEMENTS & INTER AGENCY,PAYMENTS TO CARERS,2102498772
08.06.2016,CHILDREN'S SERVICES,REDACTED PERSONAL DATA,552.16,ADOPTION PLACEMENTS & INTER AGENCY,PAYMENTS TO CARERS,2102498719
08.06.2016,CHILDREN'S SERVICES,REDACTED PERSONAL DATA,559.06,ADOPTION PLACEMENTS & INTER AGENCY,PAYMENTS TO CARERS,2102498771
08.06.2016,CHILDREN'S SERVICES,REDACTED PERSONAL DATA,588.42,ADOPTION PLACEMENTS & INTER AGENCY,PAYMENTS TO CARERS,2102498790
08.06.2016,CHILDREN'S SERVICES,REDACTED PERSONAL DATA,618.04,ADOPTION PLACEMENTS & INTER AGENCY,PAYMENTS TO CARERS,2102498785
08.06.2016,CHILDREN'S SERVICES,REDACTED PERSONAL DATA,626.00,ADOPTION PLACEMENTS & INTER AGENCY,PAYMENTS TO CARERS,2102498710
08.06.2016,CHILDREN'S SERVICES,REDACTED PERSONAL DATA,637.94,ADOPTION PLACEMENTS & INTER AGENCY,PAYMENTS TO CARERS,2102498864
08.06.2016,CHILDREN'S SERVICES,REDACTED PERSONAL DATA,652.90,ADOPTION PLACEMENTS & INTER AGENCY,PAYMENTS TO CARERS,2102498759
08.06.2016,CHILDREN'S SERVICES,REDACTED PERSONAL DATA,652.90,ADOPTION PLACEMENTS & INTER AGENCY,PAYMENTS TO CARERS,2102498858
08.06.2016,CHILDREN'S SERVICES,REDACTED PERSONAL DATA,653.06,ADOPTION PLACEMENTS & INTER AGENCY,PAYMENTS TO CARERS,2102498855
08.06.2016,CHILDREN'S SERVICES,REDACTED PERSONAL DATA,670.90,ADOPTION PLACEMENTS & INTER AGENCY,PAYMENTS TO CARERS,2102498828
08.06.2016,CHILDREN'S SERVICES,REDACTED PERSONAL DATA,695.04,ADOPTION PLACEMENTS & INTER AGENCY,PAYMENTS TO CARERS,2102498795
08.06.2016,CHILDREN'S SERVICES,REDACTED PERSONAL DATA,695.12,ADOPTION PLACEMENTS & INTER AGENCY,PAYMENTS TO CARERS,2102498760
08.06.2016,CHILDREN'S SERVICES,REDACTED PERSONAL DATA,705.24,ADOPTION PLACEMENTS & INTER AGENCY,PAYMENTS TO CARERS,2102498838
08.06.2016,CHILDREN'S SERVICES,REDACTED PERSONAL DATA,710.22,ADOPTION PLACEMENTS & INTER AGENCY,PAYMENTS TO CARERS,2102498769
08.06.2016,CHILDREN'S SERVICES,REDACTED PERSONAL DATA,712.30,ADOPTION PLACEMENTS & INTER AGENCY,PAYMENTS TO CARERS,2102498815
08.06.2016,CHILDREN'S SERVICES,REDACTED PERSONAL DATA,717.14,ADOPTION PLACEMENTS & INTER AGENCY,PAYMENTS TO CARERS,2102498819
08.06.2016,CHILDREN'S SERVICES,REDACTED PERSONAL DATA,738.32,ADOPTION PLACEMENTS & INTER AGENCY,PAYMENTS TO CARERS,2102498798
08.06.2016,CHILDREN'S SERVICES,REDACTED PERSONAL DATA,767.68,ADOPTION PLACEMENTS & INTER AGENCY,PAYMENTS TO CARERS,2102498707
08.06.2016,CHILDREN'S SERVICES,REDACTED PERSONAL DATA,777.36,ADOPTION PLACEMENTS & INTER AGENCY,PAYMENTS TO CARERS,2102498721
08.06.2016,CHILDREN'S SERVICES,REDACTED PERSONAL DATA,854.28,ADOPTION PLACEMENTS & INTER AGENCY,PAYMENTS TO CARERS,2102498829
08.06.2016,CHILDREN'S SERVICES,REDACTED PERSONAL DATA,908.00,ADOPTION PLACEMENTS & INTER AGENCY,PAYMENTS TO CARERS,2102498842
08.06.2016,CHILDREN'S SERVICES,REDACTED PERSONAL DATA,"1,011.20",ADOPTION PLACEMENTS & INTER AGENCY,PAYMENTS TO CARERS,2102498729
08.06.2016,CHILDREN'S SERVICES,REDACTED PERSONAL DATA,"1,053.20",ADOPTION PLACEMENTS & INTER AGENCY,PAYMENTS TO CARERS,2102498827
08.06.2016,CHILDREN'S SERVICES,REDACTED PERSONAL DATA,"1,461.43",ADOPTION PLACEMENTS & INTER AGENCY,PAYMENTS TO CARERS,2102498745
08.06.2016,CHILDREN'S SERVICES,REDACTED PERSONAL DATA,"2,400.00",ADOPTION PLACEMENTS & INTER AGENCY,PAYMENTS TO CARERS,5902196203
08.06.2016,CHILDREN'S SERVICES,JJM TAXIS & ZULU CARS LTD,689.50,AGENCY FOSTERING,OTHER PAYMENTS FOR CLIENTS,5902196368
08.06.2016,CHILDREN'S SERVICES,BRITISH TELECOM PLC,359.18,CAMBERWELL GROVE EARLY YEARS CENTRE,TELEPHONES (LAND LINES),5902196221
08.06.2016,CHILDREN'S SERVICES,CAMBRIDGE HOUSE & TALBOT,448.75,CHILDRENS CENTRE,OTHER SUBSISTENCE & CONFERENCE EXPENSES,5902196361
08.06.2016,CHILDREN'S SERVICES,CAMBRIDGE HOUSE & TALBOT,897.50,CHILDRENS CENTRE,OTHER SUBSISTENCE & CONFERENCE EXPENSES,5902196353
08.06.2016,CHILDREN'S SERVICES,REDACTED PERSONAL DATA,300.00,DISABILITY & HIV,ADDITIONAL PAYMENTS TO AGENCIES/CARERS,2102498971
08.06.2016,CHILDREN'S SERVICES,REDACTED PERSONAL DATA,300.00,DISABILITY & HIV,ADDITIONAL PAYMENTS TO AGENCIES/CARERS,2102498978
08.06.2016,CHILDREN'S SERVICES,REDACTED PERSONAL DATA,400.00,DISABILITY & HIV,ADDITIONAL PAYMENTS TO AGENCIES/CARERS,2102499098
08.06.2016,CHILDREN'S SERVICES,REDACTED PERSONAL DATA,450.00,DISABILITY & HIV,ADDITIONAL PAYMENTS TO AGENCIES/CARERS,2102499136
08.06.2016,CHILDREN'S SERVICES,KIRA INDEPENDENT LTD,857.28,DISABILITY & HIV,PAYMENTS TO CARERS,5902196375
08.06.2016,CHILDREN'S SERVICES,REDACTED PERSONAL DATA,-644.05,DISABILITY & HIV,PAYMENTS TO CARERS,2102494807
08.06.2016,CHILDREN'S SERVICES,REDACTED PERSONAL DATA,-332.67,DISABILITY & HIV,PAYMENTS TO CARERS,2102499034
08.06.2016,CHILDREN'S SERVICES,REDACTED PERSONAL DATA,-300.00,DISABILITY & HIV,PAYMENTS TO CARERS,2102499093
08.06.2016,CHILDREN'S SERVICES,REDACTED PERSONAL DATA,-285.15,DISABILITY & HIV,PAYMENTS TO CARERS,2102499240
08.06.2016,CHILDREN'S SERVICES,REDACTED PERSONAL DATA,-272.29,DISABILITY & HIV,PAYMENTS TO CARERS,2102499174
08.06.2016,CHILDREN'S SERVICES,REDACTED PERSONAL DATA,254.39,DISABILITY & HIV,PAYMENTS TO CARERS,2102498996
08.06.2016,CHILDREN'S SERVICES,REDACTED PERSONAL DATA,254.39,DISABILITY & HIV,PAYMENTS TO CARERS,2102499065
08.06.2016,CHILDREN'S SERVICES,REDACTED PERSONAL DATA,254.39,DISABILITY & HIV,PAYMENTS TO CARERS,2102499221
08.06.2016,CHILDREN'S SERVICES,REDACTED PERSONAL DATA,287.88,DISABILITY & HIV,PAYMENTS TO CARERS,2102499270
08.06.2016,CHILDREN'S SERVICES,REDACTED PERSONAL DATA,290.31,DISABILITY & HIV,PAYMENTS TO CARERS,2102499267
08.06.2016,CHILDREN'S SERVICES,REDACTED PERSONAL DATA,292.41,DISABILITY & HIV,PAYMENTS TO CARERS,2102499131
08.06.2016,CHILDREN'S SERVICES,REDACTED PERSONAL DATA,308.00,DISABILITY & HIV,PAYMENTS TO CARERS,2102499156
08.06.2016,CHILDREN'S SERVICES,REDACTED PERSONAL DATA,328.00,DISABILITY & HIV,PAYMENTS TO CARERS,2102499155
08.06.2016,CHILDREN'S SERVICES,REDACTED PERSONAL DATA,335.34,DISABILITY & HIV,PAYMENTS TO CARERS,2102499214
08.06.2016,CHILDREN'S SERVICES,REDACTED PERSONAL DATA,381.50,DISABILITY & HIV,PAYMENTS TO CARERS,2102499122
08.06.2016,CHILDREN'S SERVICES,REDACTED PERSONAL DATA,384.06,DISABILITY & HIV,PAYMENTS TO CARERS,2102499247
08.06.2016,CHILDREN'S SERVICES,REDACTED PERSONAL DATA,536.10,DISABILITY & HIV,PAYMENTS TO CARERS,2102498993
08.06.2016,CHILDREN'S SERVICES,REDACTED PERSONAL DATA,554.28,DISABILITY & HIV,PAYMENTS TO CARERS,2102499212
08.06.2016,CHILDREN'S SERVICES,REDACTED PERSONAL DATA,559.67,DISABILITY & HIV,PAYMENTS TO CARERS,2102499264
08.06.2016,CHILDREN'S SERVICES,REDACTED PERSONAL DATA,576.08,DISABILITY & HIV,PAYMENTS TO CARERS,2102499182
08.06.2016,CHILDREN'S SERVICES,REDACTED PERSONAL DATA,633.56,DISABILITY & HIV,PAYMENTS TO CARERS,2102498986
08.06.2016,CHILDREN'S SERVICES,REDACTED PERSONAL DATA,635.34,DISABILITY & HIV,PAYMENTS TO CARERS,2102498969
08.06.2016,CHILDREN'S SERVICES,REDACTED PERSONAL DATA,635.34,DISABILITY & HIV,PAYMENTS TO CARERS,2102498990
08.06.2016,CHILDREN'S SERVICES,REDACTED PERSONAL DATA,635.34,DISABILITY & HIV,PAYMENTS TO CARERS,2102499116
08.06.2016,CHILDREN'S SERVICES,REDACTED PERSONAL DATA,635.34,DISABILITY & HIV,PAYMENTS TO CARERS,2102499119
08.06.2016,CHILDREN'S SERVICES,REDACTED PERSONAL DATA,635.34,DISABILITY & HIV,PAYMENTS TO CARERS,2102499125
08.06.2016,CHILDREN'S SERVICES,REDACTED PERSONAL DATA,635.34,DISABILITY & HIV,PAYMENTS TO CARERS,2102499148
08.06.2016,CHILDREN'S SERVICES,REDACTED PERSONAL DATA,635.34,DISABILITY & HIV,PAYMENTS TO CARERS,2102499181
08.06.2016,CHILDREN'S SERVICES,REDACTED PERSONAL DATA,635.34,DISABILITY & HIV,PAYMENTS TO CARERS,2102499211
08.06.2016,CHILDREN'S SERVICES,REDACTED PERSONAL DATA,635.34,DISABILITY & HIV,PAYMENTS TO CARERS,2102499253
08.06.2016,CHILDREN'S SERVICES,REDACTED PERSONAL DATA,635.34,DISABILITY & HIV,PAYMENTS TO CARERS,2102499261
08.06.2016,CHILDREN'S SERVICES,REDACTED PERSONAL DATA,665.34,DISABILITY & HIV,PAYMENTS TO CARERS,2102498976
08.06.2016,CHILDREN'S SERVICES,REDACTED PERSONAL DATA,665.34,DISABILITY & HIV,PAYMENTS TO CARERS,2102499025
08.06.2016,CHILDREN'S SERVICES,REDACTED PERSONAL DATA,665.34,DISABILITY & HIV,PAYMENTS TO CARERS,2102499038
08.06.2016,CHILDREN'S SERVICES,REDACTED PERSONAL DATA,665.34,DISABILITY & HIV,PAYMENTS TO CARERS,2102499045
08.06.2016,CHILDREN'S SERVICES,REDACTED PERSONAL DATA,665.34,DISABILITY & HIV,PAYMENTS TO CARERS,2102499046
08.06.2016,CHILDREN'S SERVICES,REDACTED PERSONAL DATA,665.34,DISABILITY & HIV,PAYMENTS TO CARERS,2102499052
08.06.2016,CHILDREN'S SERVICES,REDACTED PERSONAL DATA,665.34,DISABILITY & HIV,PAYMENTS TO CARERS,2102499095
08.06.2016,CHILDREN'S SERVICES,REDACTED PERSONAL DATA,665.34,DISABILITY & HIV,PAYMENTS TO CARERS,2102499096
08.06.2016,CHILDREN'S SERVICES,REDACTED PERSONAL DATA,665.34,DISABILITY & HIV,PAYMENTS TO CARERS,2102499113
08.06.2016,CHILDREN'S SERVICES,REDACTED PERSONAL DATA,665.34,DISABILITY & HIV,PAYMENTS TO CARERS,2102499128
08.06.2016,CHILDREN'S SERVICES,REDACTED PERSONAL DATA,665.34,DISABILITY & HIV,PAYMENTS TO CARERS,2102499135
08.06.2016,CHILDREN'S SERVICES,REDACTED PERSONAL DATA,665.34,DISABILITY & HIV,PAYMENTS TO CARERS,2102499179
08.06.2016,CHILDREN'S SERVICES,REDACTED PERSONAL DATA,665.34,DISABILITY & HIV,PAYMENTS TO CARERS,2102499190
08.06.2016,CHILDREN'S SERVICES,REDACTED PERSONAL DATA,665.34,DISABILITY & HIV,PAYMENTS TO CARERS,2102499197
08.06.2016,CHILDREN'S SERVICES,REDACTED PERSONAL DATA,665.34,DISABILITY & HIV,PAYMENTS TO CARERS,2102499213
08.06.2016,CHILDREN'S SERVICES,REDACTED PERSONAL DATA,665.34,DISABILITY & HIV,PAYMENTS TO CARERS,2102499216
08.06.2016,CHILDREN'S SERVICES,REDACTED PERSONAL DATA,665.34,DISABILITY & HIV,PAYMENTS TO CARERS,2102499227
08.06.2016,CHILDREN'S SERVICES,REDACTED PERSONAL DATA,665.34,DISABILITY & HIV,PAYMENTS TO CARERS,2102499230
08.06.2016,CHILDREN'S SERVICES,REDACTED PERSONAL DATA,665.34,DISABILITY & HIV,PAYMENTS TO CARERS,2102499257
08.06.2016,CHILDREN'S SERVICES,REDACTED PERSONAL DATA,682.30,DISABILITY & HIV,PAYMENTS TO CARERS,2102499021
08.06.2016,CHILDREN'S SERVICES,REDACTED PERSONAL DATA,682.30,DISABILITY & HIV,PAYMENTS TO CARERS,2102499031
08.06.2016,CHILDREN'S SERVICES,REDACTED PERSONAL DATA,682.30,DISABILITY & HIV,PAYMENTS TO CARERS,2102499069
08.06.2016,CHILDREN'S SERVICES,REDACTED PERSONAL DATA,682.30,DISABILITY & HIV,PAYMENTS TO CARERS,2102499074
08.06.2016,CHILDREN'S SERVICES,REDACTED PERSONAL DATA,682.30,DISABILITY & HIV,PAYMENTS TO CARERS,2102499130
08.06.2016,CHILDREN'S SERVICES,REDACTED PERSONAL DATA,682.30,DISABILITY & HIV,PAYMENTS TO CARERS,2102499150
08.06.2016,CHILDREN'S SERVICES,REDACTED PERSONAL DATA,682.30,DISABILITY & HIV,PAYMENTS TO CARERS,2102499171
08.06.2016,CHILDREN'S SERVICES,REDACTED PERSONAL DATA,682.30,DISABILITY & HIV,PAYMENTS TO CARERS,2102499175
08.06.2016,CHILDREN'S SERVICES,REDACTED PERSONAL DATA,682.30,DISABILITY & HIV,PAYMENTS TO CARERS,2102499176
08.06.2016,CHILDREN'S SERVICES,REDACTED PERSONAL DATA,682.30,DISABILITY & HIV,PAYMENTS TO CARERS,2102499178
08.06.2016,CHILDREN'S SERVICES,REDACTED PERSONAL DATA,682.30,DISABILITY & HIV,PAYMENTS TO CARERS,2102499185
08.06.2016,CHILDREN'S SERVICES,REDACTED PERSONAL DATA,682.30,DISABILITY & HIV,PAYMENTS TO CARERS,2102499209
08.06.2016,CHILDREN'S SERVICES,REDACTED PERSONAL DATA,682.30,DISABILITY & HIV,PAYMENTS TO CARERS,2102499229
08.06.2016,CHILDREN'S SERVICES,REDACTED PERSONAL DATA,682.30,DISABILITY & HIV,PAYMENTS TO CARERS,2102499238
08.06.2016,CHILDREN'S SERVICES,REDACTED PERSONAL DATA,682.30,DISABILITY & HIV,PAYMENTS TO CARERS,2102499243
08.06.2016,CHILDREN'S SERVICES,REDACTED PERSONAL DATA,682.30,DISABILITY & HIV,PAYMENTS TO CARERS,2102499250
08.06.2016,CHILDREN'S SERVICES,REDACTED PERSONAL DATA,682.30,DISABILITY & HIV,PAYMENTS TO CARERS,2102499251
08.06.2016,CHILDREN'S SERVICES,REDACTED PERSONAL DATA,712.30,DISABILITY & HIV,PAYMENTS TO CARERS,2102498962
08.06.2016,CHILDREN'S SERVICES,REDACTED PERSONAL DATA,712.30,DISABILITY & HIV,PAYMENTS TO CARERS,2102498970
08.06.2016,CHILDREN'S SERVICES,REDACTED PERSONAL DATA,712.30,DISABILITY & HIV,PAYMENTS TO CARERS,2102498984
08.06.2016,CHILDREN'S SERVICES,REDACTED PERSONAL DATA,712.30,DISABILITY & HIV,PAYMENTS TO CARERS,2102498995
08.06.2016,CHILDREN'S SERVICES,REDACTED PERSONAL DATA,712.30,DISABILITY & HIV,PAYMENTS TO CARERS,2102499014
08.06.2016,CHILDREN'S SERVICES,REDACTED PERSONAL DATA,712.30,DISABILITY & HIV,PAYMENTS TO CARERS,2102499024
08.06.2016,CHILDREN'S SERVICES,REDACTED PERSONAL DATA,712.30,DISABILITY & HIV,PAYMENTS TO CARERS,2102499039
08.06.2016,CHILDREN'S SERVICES,REDACTED PERSONAL DATA,712.30,DISABILITY & HIV,PAYMENTS TO CARERS,2102499054
08.06.2016,CHILDREN'S SERVICES,REDACTED PERSONAL DATA,712.30,DISABILITY & HIV,PAYMENTS TO CARERS,2102499058
08.06.2016,CHILDREN'S SERVICES,REDACTED PERSONAL DATA,712.30,DISABILITY & HIV,PAYMENTS TO CARERS,2102499059
08.06.2016,CHILDREN'S SERVICES,REDACTED PERSONAL DATA,712.30,DISABILITY & HIV,PAYMENTS TO CARERS,2102499064
08.06.2016,CHILDREN'S SERVICES,REDACTED PERSONAL DATA,712.30,DISABILITY & HIV,PAYMENTS TO CARERS,2102499076
08.06.2016,CHILDREN'S SERVICES,REDACTED PERSONAL DATA,712.30,DISABILITY & HIV,PAYMENTS TO CARERS,2102499082
08.06.2016,CHILDREN'S SERVICES,REDACTED PERSONAL DATA,712.30,DISABILITY & HIV,PAYMENTS TO CARERS,2102499088
08.06.2016,CHILDREN'S SERVICES,REDACTED PERSONAL DATA,712.30,DISABILITY & HIV,PAYMENTS TO CARERS,2102499089
08.06.2016,CHILDREN'S SERVICES,REDACTED PERSONAL DATA,712.30,DISABILITY & HIV,PAYMENTS TO CARERS,2102499090
08.06.2016,CHILDREN'S SERVICES,REDACTED PERSONAL DATA,712.30,DISABILITY & HIV,PAYMENTS TO CARERS,2102499101
08.06.2016,CHILDREN'S SERVICES,REDACTED PERSONAL DATA,712.30,DISABILITY & HIV,PAYMENTS TO CARERS,2102499105
08.06.2016,CHILDREN'S SERVICES,REDACTED PERSONAL DATA,712.30,DISABILITY & HIV,PAYMENTS TO CARERS,2102499123
08.06.2016,CHILDREN'S SERVICES,REDACTED PERSONAL DATA,712.30,DISABILITY & HIV,PAYMENTS TO CARERS,2102499137
08.06.2016,CHILDREN'S SERVICES,REDACTED PERSONAL DATA,712.30,DISABILITY & HIV,PAYMENTS TO CARERS,2102499157
08.06.2016,CHILDREN'S SERVICES,REDACTED PERSONAL DATA,712.30,DISABILITY & HIV,PAYMENTS TO CARERS,2102499172
08.06.2016,CHILDREN'S SERVICES,REDACTED PERSONAL DATA,712.30,DISABILITY & HIV,PAYMENTS TO CARERS,2102499180
08.06.2016,CHILDREN'S SERVICES,REDACTED PERSONAL DATA,712.30,DISABILITY & HIV,PAYMENTS TO CARERS,2102499194
08.06.2016,CHILDREN'S SERVICES,REDACTED PERSONAL DATA,712.30,DISABILITY & HIV,PAYMENTS TO CARERS,2102499203
08.06.2016,CHILDREN'S SERVICES,REDACTED PERSONAL DATA,712.30,DISABILITY & HIV,PAYMENTS TO CARERS,2102499204
08.06.2016,CHILDREN'S SERVICES,REDACTED PERSONAL DATA,712.30,DISABILITY & HIV,PAYMENTS TO CARERS,2102499206
08.06.2016,CHILDREN'S SERVICES,REDACTED PERSONAL DATA,712.30,DISABILITY & HIV,PAYMENTS TO CARERS,2102499222
08.06.2016,CHILDREN'S SERVICES,REDACTED PERSONAL DATA,712.30,DISABILITY & HIV,PAYMENTS TO CARERS,2102499223
08.06.2016,CHILDREN'S SERVICES,REDACTED PERSONAL DATA,712.30,DISABILITY & HIV,PAYMENTS TO CARERS,2102499225
08.06.2016,CHILDREN'S SERVICES,REDACTED PERSONAL DATA,712.30,DISABILITY & HIV,PAYMENTS TO CARERS,2102499228
08.06.2016,CHILDREN'S SERVICES,REDACTED PERSONAL DATA,712.30,DISABILITY & HIV,PAYMENTS TO CARERS,2102499231
08.06.2016,CHILDREN'S SERVICES,REDACTED PERSONAL DATA,712.30,DISABILITY & HIV,PAYMENTS TO CARERS,2102499234
08.06.2016,CHILDREN'S SERVICES,REDACTED PERSONAL DATA,712.30,DISABILITY & HIV,PAYMENTS TO CARERS,2102499237
08.06.2016,CHILDREN'S SERVICES,REDACTED PERSONAL DATA,768.12,DISABILITY & HIV,PAYMENTS TO CARERS,2102498987
08.06.2016,CHILDREN'S SERVICES,REDACTED PERSONAL DATA,768.12,DISABILITY & HIV,PAYMENTS TO CARERS,2102499047
08.06.2016,CHILDREN'S SERVICES,REDACTED PERSONAL DATA,768.12,DISABILITY & HIV,PAYMENTS TO CARERS,2102499106
08.06.2016,CHILDREN'S SERVICES,REDACTED PERSONAL DATA,768.12,DISABILITY & HIV,PAYMENTS TO CARERS,2102499134
08.06.2016,CHILDREN'S SERVICES,REDACTED PERSONAL DATA,768.12,DISABILITY & HIV,PAYMENTS TO CARERS,2102499215
08.06.2016,CHILDREN'S SERVICES,REDACTED PERSONAL DATA,768.12,DISABILITY & HIV,PAYMENTS TO CARERS,2102499246
08.06.2016,CHILDREN'S SERVICES,REDACTED PERSONAL DATA,776.08,DISABILITY & HIV,PAYMENTS TO CARERS,2102498961
08.06.2016,CHILDREN'S SERVICES,REDACTED PERSONAL DATA,776.08,DISABILITY & HIV,PAYMENTS TO CARERS,2102498973
08.06.2016,CHILDREN'S SERVICES,REDACTED PERSONAL DATA,776.08,DISABILITY & HIV,PAYMENTS TO CARERS,2102498988
08.06.2016,CHILDREN'S SERVICES,REDACTED PERSONAL DATA,776.08,DISABILITY & HIV,PAYMENTS TO CARERS,2102498999
08.06.2016,CHILDREN'S SERVICES,REDACTED PERSONAL DATA,776.08,DISABILITY & HIV,PAYMENTS TO CARERS,2102499042
08.06.2016,CHILDREN'S SERVICES,REDACTED PERSONAL DATA,776.08,DISABILITY & HIV,PAYMENTS TO CARERS,2102499056
08.06.2016,CHILDREN'S SERVICES,REDACTED PERSONAL DATA,776.08,DISABILITY & HIV,PAYMENTS TO CARERS,2102499091
08.06.2016,CHILDREN'S SERVICES,REDACTED PERSONAL DATA,776.08,DISABILITY & HIV,PAYMENTS TO CARERS,2102499094
08.06.2016,CHILDREN'S SERVICES,REDACTED PERSONAL DATA,776.08,DISABILITY & HIV,PAYMENTS TO CARERS,2102499099
08.06.2016,CHILDREN'S SERVICES,REDACTED PERSONAL DATA,776.08,DISABILITY & HIV,PAYMENTS TO CARERS,2102499139
08.06.2016,CHILDREN'S SERVICES,REDACTED PERSONAL DATA,776.08,DISABILITY & HIV,PAYMENTS TO CARERS,2102499144
08.06.2016,CHILDREN'S SERVICES,REDACTED PERSONAL DATA,776.08,DISABILITY & HIV,PAYMENTS TO CARERS,2102499151
08.06.2016,CHILDREN'S SERVICES,REDACTED PERSONAL DATA,776.08,DISABILITY & HIV,PAYMENTS TO CARERS,2102499199
08.06.2016,CHILDREN'S SERVICES,REDACTED PERSONAL DATA,776.08,DISABILITY & HIV,PAYMENTS TO CARERS,2102499205
08.06.2016,CHILDREN'S SERVICES,REDACTED PERSONAL DATA,776.08,DISABILITY & HIV,PAYMENTS TO CARERS,2102499241
08.06.2016,CHILDREN'S SERVICES,REDACTED PERSONAL DATA,776.08,DISABILITY & HIV,PAYMENTS TO CARERS,2102499249
08.06.2016,CHILDREN'S SERVICES,REDACTED PERSONAL DATA,776.08,DISABILITY & HIV,PAYMENTS TO CARERS,2102499259
08.06.2016,CHILDREN'S SERVICES,REDACTED PERSONAL DATA,776.08,DISABILITY & HIV,PAYMENTS TO CARERS,2102499260
08.06.2016,CHILDREN'S SERVICES,REDACTED PERSONAL DATA,777.36,DISABILITY & HIV,PAYMENTS TO CARERS,2102498977
08.06.2016,CHILDREN'S SERVICES,REDACTED PERSONAL DATA,777.36,DISABILITY & HIV,PAYMENTS TO CARERS,2102499083
08.06.2016,CHILDREN'S SERVICES,REDACTED PERSONAL DATA,777.36,DISABILITY & HIV,PAYMENTS TO CARERS,2102499103
08.06.2016,CHILDREN'S SERVICES,REDACTED PERSONAL DATA,777.36,DISABILITY & HIV,PAYMENTS TO CARERS,2102499200
08.06.2016,CHILDREN'S SERVICES,REDACTED PERSONAL DATA,779.29,DISABILITY & HIV,PAYMENTS TO CARERS,2102499032
08.06.2016,CHILDREN'S SERVICES,REDACTED PERSONAL DATA,798.12,DISABILITY & HIV,PAYMENTS TO CARERS,2102498963
08.06.2016,CHILDREN'S SERVICES,REDACTED PERSONAL DATA,798.12,DISABILITY & HIV,PAYMENTS TO CARERS,2102498981
08.06.2016,CHILDREN'S SERVICES,REDACTED PERSONAL DATA,798.12,DISABILITY & HIV,PAYMENTS TO CARERS,2102498982
08.06.2016,CHILDREN'S SERVICES,REDACTED PERSONAL DATA,798.12,DISABILITY & HIV,PAYMENTS TO CARERS,2102498992
08.06.2016,CHILDREN'S SERVICES,REDACTED PERSONAL DATA,798.12,DISABILITY & HIV,PAYMENTS TO CARERS,2102499023
08.06.2016,CHILDREN'S SERVICES,REDACTED PERSONAL DATA,798.12,DISABILITY & HIV,PAYMENTS TO CARERS,2102499061
08.06.2016,CHILDREN'S SERVICES,REDACTED PERSONAL DATA,798.12,DISABILITY & HIV,PAYMENTS TO CARERS,2102499066
08.06.2016,CHILDREN'S SERVICES,REDACTED PERSONAL DATA,798.12,DISABILITY & HIV,PAYMENTS TO CARERS,2102499102
08.06.2016,CHILDREN'S SERVICES,REDACTED PERSONAL DATA,798.12,DISABILITY & HIV,PAYMENTS TO CARERS,2102499110
08.06.2016,CHILDREN'S SERVICES,REDACTED PERSONAL DATA,798.12,DISABILITY & HIV,PAYMENTS TO CARERS,2102499147
08.06.2016,CHILDREN'S SERVICES,REDACTED PERSONAL DATA,798.12,DISABILITY & HIV,PAYMENTS TO CARERS,2102499167
08.06.2016,CHILDREN'S SERVICES,REDACTED PERSONAL DATA,798.12,DISABILITY & HIV,PAYMENTS TO CARERS,2102499192
08.06.2016,CHILDREN'S SERVICES,REDACTED PERSONAL DATA,798.12,DISABILITY & HIV,PAYMENTS TO CARERS,2102499195
08.06.2016,CHILDREN'S SERVICES,REDACTED PERSONAL DATA,798.12,DISABILITY & HIV,PAYMENTS TO CARERS,2102499196
08.06.2016,CHILDREN'S SERVICES,REDACTED PERSONAL DATA,798.12,DISABILITY & HIV,PAYMENTS TO CARERS,2102499224
08.06.2016,CHILDREN'S SERVICES,REDACTED PERSONAL DATA,798.12,DISABILITY & HIV,PAYMENTS TO CARERS,2102499244
08.06.2016,CHILDREN'S SERVICES,REDACTED PERSONAL DATA,798.12,DISABILITY & HIV,PAYMENTS TO CARERS,2102499265
08.06.2016,CHILDREN'S SERVICES,REDACTED PERSONAL DATA,801.68,DISABILITY & HIV,PAYMENTS TO CARERS,2102499040
08.06.2016,CHILDREN'S SERVICES,REDACTED PERSONAL DATA,806.08,DISABILITY & HIV,PAYMENTS TO CARERS,2102498974
08.06.2016,CHILDREN'S SERVICES,REDACTED PERSONAL DATA,806.08,DISABILITY & HIV,PAYMENTS TO CARERS,2102498983
08.06.2016,CHILDREN'S SERVICES,REDACTED PERSONAL DATA,806.08,DISABILITY & HIV,PAYMENTS TO CARERS,2102498985
08.06.2016,CHILDREN'S SERVICES,REDACTED PERSONAL DATA,806.08,DISABILITY & HIV,PAYMENTS TO CARERS,2102499018
08.06.2016,CHILDREN'S SERVICES,REDACTED PERSONAL DATA,806.08,DISABILITY & HIV,PAYMENTS TO CARERS,2102499022
08.06.2016,CHILDREN'S SERVICES,REDACTED PERSONAL DATA,806.08,DISABILITY & HIV,PAYMENTS TO CARERS,2102499036
08.06.2016,CHILDREN'S SERVICES,REDACTED PERSONAL DATA,806.08,DISABILITY & HIV,PAYMENTS TO CARERS,2102499044
08.06.2016,CHILDREN'S SERVICES,REDACTED PERSONAL DATA,806.08,DISABILITY & HIV,PAYMENTS TO CARERS,2102499055
08.06.2016,CHILDREN'S SERVICES,REDACTED PERSONAL DATA,806.08,DISABILITY & HIV,PAYMENTS TO CARERS,2102499057
08.06.2016,CHILDREN'S SERVICES,REDACTED PERSONAL DATA,806.08,DISABILITY & HIV,PAYMENTS TO CARERS,2102499067
08.06.2016,CHILDREN'S SERVICES,REDACTED PERSONAL DATA,806.08,DISABILITY & HIV,PAYMENTS TO CARERS,2102499070
08.06.2016,CHILDREN'S SERVICES,REDACTED PERSONAL DATA,806.08,DISABILITY & HIV,PAYMENTS TO CARERS,2102499073
08.06.2016,CHILDREN'S SERVICES,REDACTED PERSONAL DATA,806.08,DISABILITY & HIV,PAYMENTS TO CARERS,2102499077
08.06.2016,CHILDREN'S SERVICES,REDACTED PERSONAL DATA,806.08,DISABILITY & HIV,PAYMENTS TO CARERS,2102499078
08.06.2016,CHILDREN'S SERVICES,REDACTED PERSONAL DATA,806.08,DISABILITY & HIV,PAYMENTS TO CARERS,2102499080
08.06.2016,CHILDREN'S SERVICES,REDACTED PERSONAL DATA,806.08,DISABILITY & HIV,PAYMENTS TO CARERS,2102499084
08.06.2016,CHILDREN'S SERVICES,REDACTED PERSONAL DATA,806.08,DISABILITY & HIV,PAYMENTS TO CARERS,2102499085
08.06.2016,CHILDREN'S SERVICES,REDACTED PERSONAL DATA,806.08,DISABILITY & HIV,PAYMENTS TO CARERS,2102499104
08.06.2016,CHILDREN'S SERVICES,REDACTED PERSONAL DATA,806.08,DISABILITY & HIV,PAYMENTS TO CARERS,2102499107
08.06.2016,CHILDREN'S SERVICES,REDACTED PERSONAL DATA,806.08,DISABILITY & HIV,PAYMENTS TO CARERS,2102499115
08.06.2016,CHILDREN'S SERVICES,REDACTED PERSONAL DATA,806.08,DISABILITY & HIV,PAYMENTS TO CARERS,2102499129
08.06.2016,CHILDREN'S SERVICES,REDACTED PERSONAL DATA,806.08,DISABILITY & HIV,PAYMENTS TO CARERS,2102499132
08.06.2016,CHILDREN'S SERVICES,REDACTED PERSONAL DATA,806.08,DISABILITY & HIV,PAYMENTS TO CARERS,2102499133
08.06.2016,CHILDREN'S SERVICES,REDACTED PERSONAL DATA,806.08,DISABILITY & HIV,PAYMENTS TO CARERS,2102499138
08.06.2016,CHILDREN'S SERVICES,REDACTED PERSONAL DATA,806.08,DISABILITY & HIV,PAYMENTS TO CARERS,2102499140
08.06.2016,CHILDREN'S SERVICES,REDACTED PERSONAL DATA,806.08,DISABILITY & HIV,PAYMENTS TO CARERS,2102499141
08.06.2016,CHILDREN'S SERVICES,REDACTED PERSONAL DATA,806.08,DISABILITY & HIV,PAYMENTS TO CARERS,2102499184
08.06.2016,CHILDREN'S SERVICES,REDACTED PERSONAL DATA,806.08,DISABILITY & HIV,PAYMENTS TO CARERS,2102499191
08.06.2016,CHILDREN'S SERVICES,REDACTED PERSONAL DATA,806.08,DISABILITY & HIV,PAYMENTS TO CARERS,2102499193
08.06.2016,CHILDREN'S SERVICES,REDACTED PERSONAL DATA,806.08,DISABILITY & HIV,PAYMENTS TO CARERS,2102499201
08.06.2016,CHILDREN'S SERVICES,REDACTED PERSONAL DATA,806.08,DISABILITY & HIV,PAYMENTS TO CARERS,2102499202
08.06.2016,CHILDREN'S SERVICES,REDACTED PERSONAL DATA,806.08,DISABILITY & HIV,PAYMENTS TO CARERS,2102499207
08.06.2016,CHILDREN'S SERVICES,REDACTED PERSONAL DATA,806.08,DISABILITY & HIV,PAYMENTS TO CARERS,2102499218
08.06.2016,CHILDREN'S SERVICES,REDACTED PERSONAL DATA,806.08,DISABILITY & HIV,PAYMENTS TO CARERS,2102499232
08.06.2016,CHILDREN'S SERVICES,REDACTED PERSONAL DATA,806.08,DISABILITY & HIV,PAYMENTS TO CARERS,2102499233
08.06.2016,CHILDREN'S SERVICES,REDACTED PERSONAL DATA,806.08,DISABILITY & HIV,PAYMENTS TO CARERS,2102499239
08.06.2016,CHILDREN'S SERVICES,REDACTED PERSONAL DATA,806.08,DISABILITY & HIV,PAYMENTS TO CARERS,2102499254
08.06.2016,CHILDREN'S SERVICES,REDACTED PERSONAL DATA,806.08,DISABILITY & HIV,PAYMENTS TO CARERS,2102499255
08.06.2016,CHILDREN'S SERVICES,REDACTED PERSONAL DATA,830.27,DISABILITY & HIV,PAYMENTS TO CARERS,2102499086
08.06.2016,CHILDREN'S SERVICES,REDACTED PERSONAL DATA,841.24,DISABILITY & HIV,PAYMENTS TO CARERS,2102499208
08.06.2016,CHILDREN'S SERVICES,REDACTED PERSONAL DATA,854.28,DISABILITY & HIV,PAYMENTS TO CARERS,2102499127
08.06.2016,CHILDREN'S SERVICES,REDACTED PERSONAL DATA,854.28,DISABILITY & HIV,PAYMENTS TO CARERS,2102499235
08.06.2016,CHILDREN'S SERVICES,REDACTED PERSONAL DATA,855.20,DISABILITY & HIV,PAYMENTS TO CARERS,2102499030
08.06.2016,CHILDREN'S SERVICES,REDACTED PERSONAL DATA,858.12,DISABILITY & HIV,PAYMENTS TO CARERS,2102498975
08.06.2016,CHILDREN'S SERVICES,REDACTED PERSONAL DATA,858.12,DISABILITY & HIV,PAYMENTS TO CARERS,2102499092
08.06.2016,CHILDREN'S SERVICES,REDACTED PERSONAL DATA,858.12,DISABILITY & HIV,PAYMENTS TO CARERS,2102499168
08.06.2016,CHILDREN'S SERVICES,REDACTED PERSONAL DATA,858.12,DISABILITY & HIV,PAYMENTS TO CARERS,2102499210
08.06.2016,CHILDREN'S SERVICES,REDACTED PERSONAL DATA,882.30,DISABILITY & HIV,PAYMENTS TO CARERS,2102499117
08.06.2016,CHILDREN'S SERVICES,REDACTED PERSONAL DATA,888.12,DISABILITY & HIV,PAYMENTS TO CARERS,2102498980
08.06.2016,CHILDREN'S SERVICES,REDACTED PERSONAL DATA,888.12,DISABILITY & HIV,PAYMENTS TO CARERS,2102498989
08.06.2016,CHILDREN'S SERVICES,REDACTED PERSONAL DATA,888.12,DISABILITY & HIV,PAYMENTS TO CARERS,2102498997
08.06.2016,CHILDREN'S SERVICES,REDACTED PERSONAL DATA,888.12,DISABILITY & HIV,PAYMENTS TO CARERS,2102498998
08.06.2016,CHILDREN'S SERVICES,REDACTED PERSONAL DATA,888.12,DISABILITY & HIV,PAYMENTS TO CARERS,2102499000
08.06.2016,CHILDREN'S SERVICES,REDACTED PERSONAL DATA,888.12,DISABILITY & HIV,PAYMENTS TO CARERS,2102499002
08.06.2016,CHILDREN'S SERVICES,REDACTED PERSONAL DATA,888.12,DISABILITY & HIV,PAYMENTS TO CARERS,2102499004
08.06.2016,CHILDREN'S SERVICES,REDACTED PERSONAL DATA,888.12,DISABILITY & HIV,PAYMENTS TO CARERS,2102499005
08.06.2016,CHILDREN'S SERVICES,REDACTED PERSONAL DATA,888.12,DISABILITY & HIV,PAYMENTS TO CARERS,2102499008
08.06.2016,CHILDREN'S SERVICES,REDACTED PERSONAL DATA,888.12,DISABILITY & HIV,PAYMENTS TO CARERS,2102499043
08.06.2016,CHILDREN'S SERVICES,REDACTED PERSONAL DATA,888.12,DISABILITY & HIV,PAYMENTS TO CARERS,2102499048
08.06.2016,CHILDREN'S SERVICES,REDACTED PERSONAL DATA,888.12,DISABILITY & HIV,PAYMENTS TO CARERS,2102499049
08.06.2016,CHILDREN'S SERVICES,REDACTED PERSONAL DATA,888.12,DISABILITY & HIV,PAYMENTS TO CARERS,2102499068
08.06.2016,CHILDREN'S SERVICES,REDACTED PERSONAL DATA,888.12,DISABILITY & HIV,PAYMENTS TO CARERS,2102499100
08.06.2016,CHILDREN'S SERVICES,REDACTED PERSONAL DATA,888.12,DISABILITY & HIV,PAYMENTS TO CARERS,2102499118
08.06.2016,CHILDREN'S SERVICES,REDACTED PERSONAL DATA,888.12,DISABILITY & HIV,PAYMENTS TO CARERS,2102499143
08.06.2016,CHILDREN'S SERVICES,REDACTED PERSONAL DATA,888.12,DISABILITY & HIV,PAYMENTS TO CARERS,2102499146
08.06.2016,CHILDREN'S SERVICES,REDACTED PERSONAL DATA,888.12,DISABILITY & HIV,PAYMENTS TO CARERS,2102499161
08.06.2016,CHILDREN'S SERVICES,REDACTED PERSONAL DATA,888.12,DISABILITY & HIV,PAYMENTS TO CARERS,2102499198
08.06.2016,CHILDREN'S SERVICES,REDACTED PERSONAL DATA,888.12,DISABILITY & HIV,PAYMENTS TO CARERS,2102499219
08.06.2016,CHILDREN'S SERVICES,REDACTED PERSONAL DATA,888.12,DISABILITY & HIV,PAYMENTS TO CARERS,2102499236
08.06.2016,CHILDREN'S SERVICES,REDACTED PERSONAL DATA,888.12,DISABILITY & HIV,PAYMENTS TO CARERS,2102499242
08.06.2016,CHILDREN'S SERVICES,REDACTED PERSONAL DATA,888.12,DISABILITY & HIV,PAYMENTS TO CARERS,2102499245
08.06.2016,CHILDREN'S SERVICES,REDACTED PERSONAL DATA,888.12,DISABILITY & HIV,PAYMENTS TO CARERS,2102499262
08.06.2016,CHILDREN'S SERVICES,REDACTED PERSONAL DATA,921.23,DISABILITY & HIV,PAYMENTS TO CARERS,2102498994
08.06.2016,CHILDREN'S SERVICES,REDACTED PERSONAL DATA,924.20,DISABILITY & HIV,PAYMENTS TO CARERS,2102499015
08.06.2016,CHILDREN'S SERVICES,REDACTED PERSONAL DATA,924.20,DISABILITY & HIV,PAYMENTS TO CARERS,2102499028
08.06.2016,CHILDREN'S SERVICES,REDACTED PERSONAL DATA,949.76,DISABILITY & HIV,PAYMENTS TO CARERS,2102499035
08.06.2016,CHILDREN'S SERVICES,REDACTED PERSONAL DATA,991.42,DISABILITY & HIV,PAYMENTS TO CARERS,2102498972
08.06.2016,CHILDREN'S SERVICES,REDACTED PERSONAL DATA,991.42,DISABILITY & HIV,PAYMENTS TO CARERS,2102499126
08.06.2016,CHILDREN'S SERVICES,REDACTED PERSONAL DATA,991.42,DISABILITY & HIV,PAYMENTS TO CARERS,2102499158
08.06.2016,CHILDREN'S SERVICES,REDACTED PERSONAL DATA,991.42,DISABILITY & HIV,PAYMENTS TO CARERS,2102499169
08.06.2016,CHILDREN'S SERVICES,REDACTED PERSONAL DATA,991.48,DISABILITY & HIV,PAYMENTS TO CARERS,2102498979
08.06.2016,CHILDREN'S SERVICES,REDACTED PERSONAL DATA,998.12,DISABILITY & HIV,PAYMENTS TO CARERS,2102499183
08.06.2016,CHILDREN'S SERVICES,REDACTED PERSONAL DATA,"1,094.60",DISABILITY & HIV,PAYMENTS TO CARERS,2102499029
08.06.2016,CHILDREN'S SERVICES,REDACTED PERSONAL DATA,"1,094.60",DISABILITY & HIV,PAYMENTS TO CARERS,2102499159
08.06.2016,CHILDREN'S SERVICES,REDACTED PERSONAL DATA,"1,271.96",DISABILITY & HIV,PAYMENTS TO CARERS,2102499013
08.06.2016,CHILDREN'S SERVICES,REDACTED PERSONAL DATA,"1,379.08",DISABILITY & HIV,PAYMENTS TO CARERS,2102499226
08.06.2016,CHILDREN'S SERVICES,REDACTED PERSONAL DATA,"1,466.24",DISABILITY & HIV,PAYMENTS TO CARERS,2102499079
08.06.2016,CHILDREN'S SERVICES,REDACTED PERSONAL DATA,"1,734.29",DISABILITY & HIV,PAYMENTS TO CARERS,2102499271
08.06.2016,CHILDREN'S SERVICES,REDACTED PERSONAL DATA,"2,706.12",DISABILITY & HIV,PAYMENTS TO CARERS,2102499149
08.06.2016,CHILDREN'S SERVICES,REDACTED PERSONAL DATA,350.00,FRIENDS & FAMILY FOSTERING,ADDITIONAL PAYMENTS TO AGENCIES/CARERS,2102498877
08.06.2016,CHILDREN'S SERVICES,REDACTED PERSONAL DATA,301.24,FRIENDS & FAMILY FOSTERING,PAYMENTS TO CARERS,2102498910
08.06.2016,CHILDREN'S SERVICES,REDACTED PERSONAL DATA,329.42,FRIENDS & FAMILY FOSTERING,PAYMENTS TO CARERS,2102498874
08.06.2016,CHILDREN'S SERVICES,REDACTED PERSONAL DATA,329.42,FRIENDS & FAMILY FOSTERING,PAYMENTS TO CARERS,2102498893
08.06.2016,CHILDREN'S SERVICES,REDACTED PERSONAL DATA,335.34,FRIENDS & FAMILY FOSTERING,PAYMENTS TO CARERS,2102498871
08.06.2016,CHILDREN'S SERVICES,REDACTED PERSONAL DATA,335.34,FRIENDS & FAMILY FOSTERING,PAYMENTS TO CARERS,2102498892
08.06.2016,CHILDREN'S SERVICES,REDACTED PERSONAL DATA,335.34,FRIENDS & FAMILY FOSTERING,PAYMENTS TO CARERS,2102498896
08.06.2016,CHILDREN'S SERVICES,REDACTED PERSONAL DATA,367.10,FRIENDS & FAMILY FOSTERING,PAYMENTS TO CARERS,2102498902
08.06.2016,CHILDREN'S SERVICES,REDACTED PERSONAL DATA,375.54,FRIENDS & FAMILY FOSTERING,PAYMENTS TO CARERS,2102498869
08.06.2016,CHILDREN'S SERVICES,REDACTED PERSONAL DATA,375.54,FRIENDS & FAMILY FOSTERING,PAYMENTS TO CARERS,2102498887
08.06.2016,CHILDREN'S SERVICES,REDACTED PERSONAL DATA,382.30,FRIENDS & FAMILY FOSTERING,PAYMENTS TO CARERS,2102498890
08.06.2016,CHILDREN'S SERVICES,REDACTED PERSONAL DATA,382.30,FRIENDS & FAMILY FOSTERING,PAYMENTS TO CARERS,2102498898
08.06.2016,CHILDREN'S SERVICES,REDACTED PERSONAL DATA,382.30,FRIENDS & FAMILY FOSTERING,PAYMENTS TO CARERS,2102498899
08.06.2016,CHILDREN'S SERVICES,REDACTED PERSONAL DATA,382.30,FRIENDS & FAMILY FOSTERING,PAYMENTS TO CARERS,2102498901
08.06.2016,CHILDREN'S SERVICES,REDACTED PERSONAL DATA,382.30,FRIENDS & FAMILY FOSTERING,PAYMENTS TO CARERS,2102498904
08.06.2016,CHILDREN'S SERVICES,REDACTED PERSONAL DATA,382.30,FRIENDS & FAMILY FOSTERING,PAYMENTS TO CARERS,2102498905
08.06.2016,CHILDREN'S SERVICES,REDACTED PERSONAL DATA,476.08,FRIENDS & FAMILY FOSTERING,PAYMENTS TO CARERS,2102498878
08.06.2016,CHILDREN'S SERVICES,REDACTED PERSONAL DATA,476.08,FRIENDS & FAMILY FOSTERING,PAYMENTS TO CARERS,2102498880
08.06.2016,CHILDREN'S SERVICES,REDACTED PERSONAL DATA,476.08,FRIENDS & FAMILY FOSTERING,PAYMENTS TO CARERS,2102498882
08.06.2016,CHILDREN'S SERVICES,REDACTED PERSONAL DATA,476.08,FRIENDS & FAMILY FOSTERING,PAYMENTS TO CARERS,2102498886
08.06.2016,CHILDREN'S SERVICES,REDACTED PERSONAL DATA,476.08,FRIENDS & FAMILY FOSTERING,PAYMENTS TO CARERS,2102498909
08.06.2016,CHILDREN'S SERVICES,REDACTED PERSONAL DATA,578.12,FRIENDS & FAMILY FOSTERING,PAYMENTS TO CARERS,2102498872
08.06.2016,CHILDREN'S SERVICES,REDACTED PERSONAL DATA,635.34,FRIENDS & FAMILY FOSTERING,PAYMENTS TO CARERS,2102498897
08.06.2016,CHILDREN'S SERVICES,REDACTED PERSONAL DATA,682.30,FRIENDS & FAMILY FOSTERING,PAYMENTS TO CARERS,2102498875
08.06.2016,CHILDREN'S SERVICES,REDACTED PERSONAL DATA,682.30,FRIENDS & FAMILY FOSTERING,PAYMENTS TO CARERS,2102498885
08.06.2016,CHILDREN'S SERVICES,REDACTED PERSONAL DATA,682.30,FRIENDS & FAMILY FOSTERING,PAYMENTS TO CARERS,2102498891
08.06.2016,CHILDREN'S SERVICES,REDACTED PERSONAL DATA,682.30,FRIENDS & FAMILY FOSTERING,PAYMENTS TO CARERS,2102498895
08.06.2016,CHILDREN'S SERVICES,REDACTED PERSONAL DATA,682.30,FRIENDS & FAMILY FOSTERING,PAYMENTS TO CARERS,2102498900
08.06.2016,CHILDREN'S SERVICES,REDACTED PERSONAL DATA,682.30,FRIENDS & FAMILY FOSTERING,PAYMENTS TO CARERS,2102498908
08.06.2016,CHILDREN'S SERVICES,REDACTED PERSONAL DATA,682.30,FRIENDS & FAMILY FOSTERING,PAYMENTS TO CARERS,2102498912
08.06.2016,CHILDREN'S SERVICES,REDACTED PERSONAL DATA,767.66,FRIENDS & FAMILY FOSTERING,PAYMENTS TO CARERS,2102498888
08.06.2016,CHILDREN'S SERVICES,REDACTED PERSONAL DATA,776.08,FRIENDS & FAMILY FOSTERING,PAYMENTS TO CARERS,2102498870
08.06.2016,CHILDREN'S SERVICES,REDACTED PERSONAL DATA,776.08,FRIENDS & FAMILY FOSTERING,PAYMENTS TO CARERS,2102498881
08.06.2016,CHILDREN'S SERVICES,REDACTED PERSONAL DATA,776.08,FRIENDS & FAMILY FOSTERING,PAYMENTS TO CARERS,2102498911
08.06.2016,CHILDREN'S SERVICES,REDACTED PERSONAL DATA,867.90,FRIENDS & FAMILY FOSTERING,PAYMENTS TO CARERS,2102498883
08.06.2016,CHILDREN'S SERVICES,APPLE DISTRIBUTION INTERNATIONAL,391.00,GENERAL CPD,HARDWARE,5902196403
08.06.2016,CHILDREN'S SERVICES,DULWICH WOOD CHILDRENS CENTRE,"17,582.00",IN YEAR EARLY YEARS ADJUSTMENTS,EARLY YEARS - 3 AND 4 YEAR OLDS,5902196190
08.06.2016,CHILDREN'S SERVICES,KINTORE WAY CHILDRENS CENTRE,"35,164.00",IN YEAR EARLY YEARS ADJUSTMENTS,EARLY YEARS - 3 AND 4 YEAR OLDS,5902196189
08.06.2016,CHILDREN'S SERVICES,SUMNER NURSERY,"5,861.00",IN YEAR EARLY YEARS ADJUSTMENTS,EARLY YEARS - 3 AND 4 YEAR OLDS,5902196191
08.06.2016,CHILDREN'S SERVICES,ST PAULS CE SCHOOL,"1,000.00",INTERVENTION FUND,CONSULTANTS SERVICES,5902196167
08.06.2016,CHILDREN'S SERVICES,ARGOS BUSINESS SOLUTIONS LTD,282.35,LEAVING CARE GRANT,OTHER PAYMENTS FOR CLIENTS,5902196204
08.06.2016,CHILDREN'S SERVICES,KINTORE WAY CHILDRENS CENTRE,"4,914.00",MATERNITY COVER,SCHOOLS CAPITATION,5902196163
08.06.2016,CHILDREN'S SERVICES,PEOPLE PLUS,"6,792.79",PLACEMENTS FOR CHILDREN WITH SPEC NEEDS,PAYMENTS TO CLIENTS (DIRECT PAYMENTS),2102499273
08.06.2016,CHILDREN'S SERVICES,REDACTED PERSONAL DATA,262.29,PLACEMENTS FOR CHILDREN WITH SPEC NEEDS,PAYMENTS TO CLIENTS (DIRECT PAYMENTS),2102498464
08.06.2016,CHILDREN'S SERVICES,REDACTED PERSONAL DATA,272.87,PLACEMENTS FOR CHILDREN WITH SPEC NEEDS,PAYMENTS TO CLIENTS (DIRECT PAYMENTS),2102498465
08.06.2016,CHILDREN'S SERVICES,CAPITA BUSINESS SERVICES LTD,319.20,PUPIL PREMIUM CURRENT YEAR,TRAINING,5902196396
08.06.2016,CHILDREN'S SERVICES,REDACTED PERSONAL DATA,264.04,RESIDENCE ORDERS,PAYMENTS TO CARERS,2102498597
08.06.2016,CHILDREN'S SERVICES,REDACTED PERSONAL DATA,264.16,RESIDENCE ORDERS,PAYMENTS TO CARERS,2102498680
08.06.2016,CHILDREN'S SERVICES,REDACTED PERSONAL DATA,481.89,S24 CLA,OTHER PAYMENTS FOR CLIENTS,2102498952
08.06.2016,CHILDREN'S SERVICES,CHARLES DICKENS PRIMARY SCHOOL,"11,200.00",SCHOOLS DIRECT SALARY FUNDING,SCHOOLS CAPITATION,5902196196
08.06.2016,CHILDREN'S SERVICES,CRAMPTON PRIMARY SCHOOL,"20,800.00",SCHOOLS DIRECT SALARY FUNDING,SCHOOLS CAPITATION,5902196197
08.06.2016,CHILDREN'S SERVICES,PHOENIX PRIMARY SCHOOL,"1,600.00",SCHOOLS DIRECT SALARY FUNDING,SCHOOLS CAPITATION,5902196194
08.06.2016,CHILDREN'S SERVICES,ST JAMES CE SCHOOL,"44,800.00",SCHOOLS DIRECT SALARY FUNDING,SCHOOLS CAPITATION,5902196195
08.06.2016,CHILDREN'S SERVICES,LOGICOUS LTD,"1,083.33",SPECIAL GUARDIANSHIP,EXTERNAL AGENCIES AND BODIES,5902196366
08.06.2016,CHILDREN'S SERVICES,REDACTED PERSONAL DATA,263.71,SPECIAL GUARDIANSHIP,PAYMENTS TO CARERS,2102498484
08.06.2016,CHILDREN'S SERVICES,REDACTED PERSONAL DATA,264.16,SPECIAL GUARDIANSHIP,PAYMENTS TO CARERS,2102498678
08.06.2016,CHILDREN'S SERVICES,REDACTED PERSONAL DATA,269.08,SPECIAL GUARDIANSHIP,PAYMENTS TO CARERS,2102498655
08.06.2016,CHILDREN'S SERVICES,REDACTED PERSONAL DATA,317.67,SPECIAL GUARDIANSHIP,PAYMENTS TO CARERS,2102498488
08.06.2016,CHILDREN'S SERVICES,REDACTED PERSONAL DATA,350.00,SPECIAL GUARDIANSHIP,PAYMENTS TO CARERS,2102498646
08.06.2016,CHILDREN'S SERVICES,REDACTED PERSONAL DATA,400.00,SPECIAL GUARDIANSHIP,PAYMENTS TO CARERS,2102498696
08.06.2016,CHILDREN'S SERVICES,REDACTED PERSONAL DATA,477.86,SPECIAL GUARDIANSHIP,PAYMENTS TO CARERS,2102499272
08.06.2016,CHILDREN'S SERVICES,REDACTED PERSONAL DATA,494.42,SPECIAL GUARDIANSHIP,PAYMENTS TO CARERS,2102498684
08.06.2016,CHILDREN'S SERVICES,REDACTED PERSONAL DATA,647.37,SPECIAL GUARDIANSHIP,PAYMENTS TO CARERS,2102498489
08.06.2016,CHILDREN'S SERVICES,REDACTED PERSONAL DATA,654.59,SPECIAL GUARDIANSHIP,PAYMENTS TO CARERS,2102498624
08.06.2016,CHILDREN'S SERVICES,THAMES HOMECARE SERVICE LTD,279.00,SPECIALIST CARE,SECTION 17 PAYMENTS TO AGENCIES/CARERS,5902196386
08.06.2016,CHILDREN'S SERVICES,ST SAVIOURS & ST OLAVES SCHOOL,"207,624.00",ST SAVIOURS & ST OLAVE,"SCHOOLS CAPITATION, STANDARDS FUND",5902196284
08.06.2016,CHILDREN'S SERVICES,ANCHOR FOSTERCARE,"1,944.88",STAYING PUT,EXTERNAL AGENCIES AND BODIES,2102499111
08.06.2016,CHILDREN'S SERVICES,REDACTED PERSONAL DATA,500.00,STAYING PUT,EXTERNAL AGENCIES AND BODIES,2102498879
08.06.2016,CHILDREN'S SERVICES,REDACTED PERSONAL DATA,500.00,STAYING PUT,EXTERNAL AGENCIES AND BODIES,2102498884
08.06.2016,CHILDREN'S SERVICES,REDACTED PERSONAL DATA,500.00,STAYING PUT,EXTERNAL AGENCIES AND BODIES,2102498906
08.06.2016,CHILDREN'S SERVICES,REDACTED PERSONAL DATA,285.71,STAYING PUT,PAYMENTS TO CARERS,2102498991
08.06.2016,CHILDREN'S SERVICES,REDACTED PERSONAL DATA,300.00,STAYING PUT,PAYMENTS TO CARERS,2102498964
08.06.2016,CHILDREN'S SERVICES,REDACTED PERSONAL DATA,500.00,STAYING PUT,PAYMENTS TO CARERS,2102494590
08.06.2016,CHILDREN'S SERVICES,REDACTED PERSONAL DATA,500.00,STAYING PUT,PAYMENTS TO CARERS,2102498873
08.06.2016,CHILDREN'S SERVICES,REDACTED PERSONAL DATA,500.00,STAYING PUT,PAYMENTS TO CARERS,2102498876
08.06.2016,CHILDREN'S SERVICES,REDACTED PERSONAL DATA,500.00,STAYING PUT,PAYMENTS TO CARERS,2102498903
08.06.2016,CHILDREN'S SERVICES,REDACTED PERSONAL DATA,500.00,STAYING PUT,PAYMENTS TO CARERS,2102498913
08.06.2016,CHILDREN'S SERVICES,REDACTED PERSONAL DATA,500.00,STAYING PUT,PAYMENTS TO CARERS,2102498965
08.06.2016,CHILDREN'S SERVICES,REDACTED PERSONAL DATA,500.00,STAYING PUT,PAYMENTS TO CARERS,2102498966
08.06.2016,CHILDREN'S SERVICES,REDACTED PERSONAL DATA,500.00,STAYING PUT,PAYMENTS TO CARERS,2102498967
08.06.2016,CHILDREN'S SERVICES,REDACTED PERSONAL DATA,500.00,STAYING PUT,PAYMENTS TO CARERS,2102498968
08.06.2016,CHILDREN'S SERVICES,REDACTED PERSONAL DATA,500.00,STAYING PUT,PAYMENTS TO CARERS,2102499003
08.06.2016,CHILDREN'S SERVICES,REDACTED PERSONAL DATA,500.00,STAYING PUT,PAYMENTS TO CARERS,2102499006
08.06.2016,CHILDREN'S SERVICES,REDACTED PERSONAL DATA,500.00,STAYING PUT,PAYMENTS TO CARERS,2102499007
08.06.2016,CHILDREN'S SERVICES,REDACTED PERSONAL DATA,500.00,STAYING PUT,PAYMENTS TO CARERS,2102499019
08.06.2016,CHILDREN'S SERVICES,REDACTED PERSONAL DATA,500.00,STAYING PUT,PAYMENTS TO CARERS,2102499020
08.06.2016,CHILDREN'S SERVICES,REDACTED PERSONAL DATA,500.00,STAYING PUT,PAYMENTS TO CARERS,2102499026
08.06.2016,CHILDREN'S SERVICES,REDACTED PERSONAL DATA,500.00,STAYING PUT,PAYMENTS TO CARERS,2102499041
08.06.2016,CHILDREN'S SERVICES,REDACTED PERSONAL DATA,500.00,STAYING PUT,PAYMENTS TO CARERS,2102499063
08.06.2016,CHILDREN'S SERVICES,REDACTED PERSONAL DATA,500.00,STAYING PUT,PAYMENTS TO CARERS,2102499071
08.06.2016,CHILDREN'S SERVICES,REDACTED PERSONAL DATA,500.00,STAYING PUT,PAYMENTS TO CARERS,2102499072
08.06.2016,CHILDREN'S SERVICES,REDACTED PERSONAL DATA,500.00,STAYING PUT,PAYMENTS TO CARERS,2102499081
08.06.2016,CHILDREN'S SERVICES,REDACTED PERSONAL DATA,500.00,STAYING PUT,PAYMENTS TO CARERS,2102499109
08.06.2016,CHILDREN'S SERVICES,REDACTED PERSONAL DATA,500.00,STAYING PUT,PAYMENTS TO CARERS,2102499160
08.06.2016,CHILDREN'S SERVICES,REDACTED PERSONAL DATA,500.00,STAYING PUT,PAYMENTS TO CARERS,2102499162
08.06.2016,CHILDREN'S SERVICES,REDACTED PERSONAL DATA,500.00,STAYING PUT,PAYMENTS TO CARERS,2102499163
08.06.2016,CHILDREN'S SERVICES,REDACTED PERSONAL DATA,500.00,STAYING PUT,PAYMENTS TO CARERS,2102499164
08.06.2016,CHILDREN'S SERVICES,REDACTED PERSONAL DATA,500.00,STAYING PUT,PAYMENTS TO CARERS,2102499165
08.06.2016,CHILDREN'S SERVICES,REDACTED PERSONAL DATA,500.00,STAYING PUT,PAYMENTS TO CARERS,2102499173
08.06.2016,CHILDREN'S SERVICES,REDACTED PERSONAL DATA,500.00,STAYING PUT,PAYMENTS TO CARERS,2102499217
08.06.2016,CHILDREN'S SERVICES,REDACTED PERSONAL DATA,500.00,STAYING PUT,PAYMENTS TO CARERS,2102499248
08.06.2016,CHILDREN'S SERVICES,REDACTED PERSONAL DATA,500.00,STAYING PUT,PAYMENTS TO CARERS,2102499252
08.06.2016,CHILDREN'S SERVICES,REDACTED PERSONAL DATA,500.00,STAYING PUT,PAYMENTS TO CARERS,2102499256
08.06.2016,CHILDREN'S SERVICES,REDACTED PERSONAL DATA,700.00,STAYING PUT,PAYMENTS TO CARERS,2102499050
08.06.2016,CHILDREN'S SERVICES,REDACTED PERSONAL DATA,800.00,STAYING PUT,PAYMENTS TO CARERS,2102499114
08.06.2016,CHILDREN'S SERVICES,REDACTED PERSONAL DATA,900.00,STAYING PUT,PAYMENTS TO CARERS,2102498894
08.06.2016,CHILDREN'S SERVICES,REDACTED PERSONAL DATA,"2,821.43",STAYING PUT,PAYMENTS TO CARERS,2102499120
08.06.2016,CHILDREN'S SERVICES,SOUTH LONDON  MAUDSLEY NHS FOUNDATION TRUST,"17,994.52",TACKLING TROUBLED FAMILIES,EXTERNAL AGENCIES AND BODIES,5902196372
08.06.2016,CHILDREN'S SERVICES,THE ST THOMAS THE APOSTLE COLLEGE,"106,532.00",THE ST THOMAS THE APOSTLE COLLEGE,"SCHOOLS CAPITATION, STANDARDS FUND",5902196283
08.06.2016,CHILDREN'S SERVICES,GUARANTEED TRAINING LTD,"1,400.00",WORKFORCE QUALIFICATION DEVELOPMENT,OTHER SUBSISTENCE & CONFERENCE EXPENSES,5902196333
08.06.2016,COMMUNITIES,A & M ACCOMMODATION SERVICES LTD,"23,640.60",NO RECOURSE TO PUBLIC FUNDS,SECTION 17 PAYMENTS TO AGENCIES/CARERS,5902196140
08.06.2016,COMMUNITIES,BOWMAN & SWAIN PROPERTIES LTD,"1,050.00",NO RECOURSE TO PUBLIC FUNDS,SECTION 17 PAYMENTS TO AGENCIES/CARERS,5902196359
08.06.2016,COMMUNITIES,BOWMAN & SWAIN PROPERTIES LTD,"1,085.00",NO RECOURSE TO PUBLIC FUNDS,SECTION 17 PAYMENTS TO AGENCIES/CARERS,5902196356
08.06.2016,COMMUNITIES,CROWN HOUSING LTD,"4,271.00",NO RECOURSE TO PUBLIC FUNDS,SECTION 17 PAYMENTS TO AGENCIES/CARERS,5902196285
08.06.2016,COMMUNITIES,D SINGH PROPERTIES LTD,"2,448.00",NO RECOURSE TO PUBLIC FUNDS,SECTION 17 PAYMENTS TO AGENCIES/CARERS,5902196179
08.06.2016,COMMUNITIES,EASYMOVE EA LIMITED,"1,922.00",NO RECOURSE TO PUBLIC FUNDS,SECTION 17 PAYMENTS TO AGENCIES/CARERS,5902196193
08.06.2016,COMMUNITIES,GOLDSTONE ESTATES LTD,"5,815.00",NO RECOURSE TO PUBLIC FUNDS,SECTION 17 PAYMENTS TO AGENCIES/CARERS,5902196286
08.06.2016,COMMUNITIES,GROVE HOTEL LTD,"1,705.00",NO RECOURSE TO PUBLIC FUNDS,SECTION 17 PAYMENTS TO AGENCIES/CARERS,5902196162
08.06.2016,COMMUNITIES,LIVING ACCOMODATION LTD,"1,085.00",NO RECOURSE TO PUBLIC FUNDS,SECTION 17 PAYMENTS TO AGENCIES/CARERS,5902196377
08.06.2016,COMMUNITIES,LIVING ACCOMODATION LTD,"1,395.00",NO RECOURSE TO PUBLIC FUNDS,SECTION 17 PAYMENTS TO AGENCIES/CARERS,5902196379
08.06.2016,COMMUNITIES,LIVING ACCOMODATION LTD,"1,395.00",NO RECOURSE TO PUBLIC FUNDS,SECTION 17 PAYMENTS TO AGENCIES/CARERS,5902196383
08.06.2016,COMMUNITIES,MEADOW CROFT LODGE,990.00,NO RECOURSE TO PUBLIC FUNDS,SECTION 17 PAYMENTS TO AGENCIES/CARERS,5902196151
08.06.2016,COMMUNITIES,PURPLE PEBBLES(CHILD CARE) SERVICES,"1,282.20",NO RECOURSE TO PUBLIC FUNDS,SECTION 17 PAYMENTS TO AGENCIES/CARERS,5902196146
08.06.2016,COMMUNITIES,PURPLE PEBBLES(CHILD CARE) SERVICES,"1,351.23",NO RECOURSE TO PUBLIC FUNDS,SECTION 17 PAYMENTS TO AGENCIES/CARERS,5902196144
08.06.2016,COMMUNITIES,PURPLE PEBBLES(CHILD CARE) SERVICES,"1,676.71",NO RECOURSE TO PUBLIC FUNDS,SECTION 17 PAYMENTS TO AGENCIES/CARERS,5902196149
08.06.2016,COMMUNITIES,PURPLE PEBBLES(CHILD CARE) SERVICES,"1,676.71",NO RECOURSE TO PUBLIC FUNDS,SECTION 17 PAYMENTS TO AGENCIES/CARERS,5902196152
08.06.2016,COMMUNITIES,PURPLE PEBBLES(CHILD CARE) SERVICES,"1,824.66",NO RECOURSE TO PUBLIC FUNDS,SECTION 17 PAYMENTS TO AGENCIES/CARERS,5902196158
08.06.2016,COMMUNITIES,S A PROPERTY MANAGEMENT LTD,"1,016.10",NO RECOURSE TO PUBLIC FUNDS,SECTION 17 PAYMENTS TO AGENCIES/CARERS,5902196364
08.06.2016,COMMUNITIES,SMITH AND LEE PROPERTY LTD,360.00,NO RECOURSE TO PUBLIC FUNDS,SECTION 17 PAYMENTS TO AGENCIES/CARERS,5902196223
08.06.2016,COMMUNITIES,SMITH AND LEE PROPERTY LTD,"1,010.00",NO RECOURSE TO PUBLIC FUNDS,SECTION 17 PAYMENTS TO AGENCIES/CARERS,5902196227
08.06.2016,COMMUNITIES,SMITH AND LEE PROPERTY LTD,"1,384.80",NO RECOURSE TO PUBLIC FUNDS,SECTION 17 PAYMENTS TO AGENCIES/CARERS,5902196224
08.06.2016,COMMUNITIES,SMITH AND LEE PROPERTY LTD,"1,430.00",NO RECOURSE TO PUBLIC FUNDS,SECTION 17 PAYMENTS TO AGENCIES/CARERS,5902196229
08.06.2016,COMMUNITIES,SMITH AND LEE PROPERTY LTD,"1,483.00",NO RECOURSE TO PUBLIC FUNDS,SECTION 17 PAYMENTS TO AGENCIES/CARERS,5902196232
08.06.2016,COMMUNITIES,TRADE  IN OPTIONS LTD,"1,860.00",NO RECOURSE TO PUBLIC FUNDS,SECTION 17 PAYMENTS TO AGENCIES/CARERS,5902196332
08.06.2016,COMMUNITIES,VENTURE HOUSING (LONDON) LTD,287.00,NO RECOURSE TO PUBLIC FUNDS,SECTION 17 PAYMENTS TO AGENCIES/CARERS,5902196211
08.06.2016,COMMUNITIES,FOUR SQUARES T&RA,"3,128.50",TENANTS FUND,GRANTS,5902196370
08.06.2016,CUSTOMER SERVICES HGF,WEB-LABS LTD,"2,100.00",BLUE BADGES,SOFTWARE,5902196378
08.06.2016,CUSTOMER SERVICES HGF,SOUTHSIDE REHABILITATION ASSN,630.00,CITIZENSHIP,CATERING MATERIALS & SUPPLIES,5902196422
08.06.2016,CUSTOMER SERVICES HGF,SOUTHSIDE REHABILITATION ASSN,787.50,CITIZENSHIP,CATERING MATERIALS & SUPPLIES,5902196435
08.06.2016,CUSTOMER SERVICES HGF,OFFICE DEPOT UK LTD,464.51,CORONER'S,STATIONERY,5902196426
08.06.2016,ENVIRONMENT AND LEISURE,HARRISON DESIGN DEVELOPMENT LTD,"1,330.00",CAPITAL PS (LEISURE),CONSTRUCTION FEES - EXTERNAL,5902196316
08.06.2016,ENVIRONMENT AND LEISURE,HARRISON DESIGN DEVELOPMENT LTD,"3,905.00",CAPITAL PS (LEISURE),CONSTRUCTION FEES - EXTERNAL,5902196344
08.06.2016,ENVIRONMENT AND LEISURE,MORGANICO,"1,000.00",CAPITAL PS (LEISURE),CONSTRUCTION MAIN CONTRACT - NON CERTIFICATED,5902196231
08.06.2016,ENVIRONMENT DIRECTORATE,LEX AUTOLEASE,"-1,858.79",CAR LEASING CTRL A/C,VEHICLE LEASING CHARGES,5902194444
08.06.2016,ENVIRONMENT DIRECTORATE,LEX AUTOLEASE,836.88,CAR LEASING CTRL A/C,VEHICLE LEASING CHARGES,5902194951
08.06.2016,ENVIRONMENT DIRECTORATE,LEX AUTOLEASE,888.76,CAR LEASING CTRL A/C,VEHICLE LEASING CHARGES,5902194943
08.06.2016,ENVIRONMENT DIRECTORATE,LEX AUTOLEASE,919.64,CAR LEASING CTRL A/C,VEHICLE LEASING CHARGES,5902196348
08.06.2016,ENVIRONMENT DIRECTORATE,ENTERPRISE FLEX E RENT,"2,015.20",COMMERCIAL VEH CTRL A/C,HIRED VEHICLES,5902196345
08.06.2016,ENVIRONMENT DIRECTORATE,FIVEWAYS MUNICIPAL VEHICLE HIRE LTD,725.00,COMMERCIAL VEH CTRL A/C,HIRED VEHICLES,5902196392
08.06.2016,ENVIRONMENT DIRECTORATE,FIVEWAYS MUNICIPAL VEHICLE HIRE LTD,725.00,COMMERCIAL VEH CTRL A/C,HIRED VEHICLES,5902196395
08.06.2016,ENVIRONMENT DIRECTORATE,FIVEWAYS MUNICIPAL VEHICLE HIRE LTD,725.00,COMMERCIAL VEH CTRL A/C,HIRED VEHICLES,5902196397
08.06.2016,ENVIRONMENT DIRECTORATE,FIVEWAYS MUNICIPAL VEHICLE HIRE LTD,725.00,COMMERCIAL VEH CTRL A/C,HIRED VEHICLES,5902196400
08.06.2016,ENVIRONMENT DIRECTORATE,GULLIVERS TRUCK HIRE LTD,265.00,COMMERCIAL VEH CTRL A/C,HIRED VEHICLES,5902196236
08.06.2016,ENVIRONMENT DIRECTORATE,LCV HIRE SOLUTIONS LTD,272.80,COMMERCIAL VEH CTRL A/C,HIRED VEHICLES,5902196114
08.06.2016,ENVIRONMENT DIRECTORATE,LONDON HIRE LIMITED,292.00,COMMERCIAL VEH CTRL A/C,HIRED VEHICLES,5902196255
08.06.2016,ENVIRONMENT DIRECTORATE,LONDON HIRE LIMITED,580.00,COMMERCIAL VEH CTRL A/C,HIRED VEHICLES,5902196265
08.06.2016,ENVIRONMENT DIRECTORATE,LONDON HIRE LIMITED,645.00,COMMERCIAL VEH CTRL A/C,HIRED VEHICLES,5902196258
08.06.2016,ENVIRONMENT DIRECTORATE,LONDON HIRE LIMITED,675.00,COMMERCIAL VEH CTRL A/C,HIRED VEHICLES,5902196256
08.06.2016,ENVIRONMENT DIRECTORATE,LONDON HIRE LIMITED,679.00,COMMERCIAL VEH CTRL A/C,HIRED VEHICLES,5902196261
08.06.2016,ENVIRONMENT DIRECTORATE,LONDON HIRE LIMITED,822.00,COMMERCIAL VEH CTRL A/C,HIRED VEHICLES,5902196267
08.06.2016,ENVIRONMENT DIRECTORATE,LONDON HIRE LIMITED,"1,068.51",COMMERCIAL VEH CTRL A/C,HIRED VEHICLES,5902196250
08.06.2016,ENVIRONMENT DIRECTORATE,LONDON HIRE LIMITED,"1,120.00",COMMERCIAL VEH CTRL A/C,HIRED VEHICLES,5902196260
08.06.2016,ENVIRONMENT DIRECTORATE,LONDON HIRE LIMITED,"1,600.00",COMMERCIAL VEH CTRL A/C,HIRED VEHICLES,5902196268
08.06.2016,ENVIRONMENT DIRECTORATE,LONDON HIRE LIMITED,"1,910.00",COMMERCIAL VEH CTRL A/C,HIRED VEHICLES,5902196263
08.06.2016,ENVIRONMENT DIRECTORATE,LONDON HIRE LIMITED,"4,296.70",COMMERCIAL VEH CTRL A/C,HIRED VEHICLES,5902196243
08.06.2016,ENVIRONMENT DIRECTORATE,LONDON HIRE LIMITED,"6,231.50",COMMERCIAL VEH CTRL A/C,HIRED VEHICLES,5902196240
08.06.2016,ENVIRONMENT DIRECTORATE,LONDON HIRE LIMITED,"19,608.50",COMMERCIAL VEH CTRL A/C,HIRED VEHICLES,5902196237
08.06.2016,ENVIRONMENT DIRECTORATE,LONDON HIRE LIMITED,"29,116.45",COMMERCIAL VEH CTRL A/C,HIRED VEHICLES,5902196238
08.06.2016,ENVIRONMENT DIRECTORATE,R J MOTORS LIMITED,"1,270.00",FLEET INSURANCE WORKS,TRANSPORT INSURANCE COSTS,5902196234
08.06.2016,ENVIRONMENT DIRECTORATE,A & H PEST CONTROL LTD,"1,230.00",PEST CONTROL,OTHER CONTRACTORS,5902196280
08.06.2016,ENVIRONMENT DIRECTORATE,A & H PEST CONTROL LTD,"1,280.00",PEST CONTROL,OTHER CONTRACTORS,5902196277
08.06.2016,ENVIRONMENT DIRECTORATE,A & H PEST CONTROL LTD,"1,390.00",PEST CONTROL,OTHER CONTRACTORS,5902196279
08.06.2016,ENVIRONMENT DIRECTORATE,BEW ELECTRICAL DISTRIBUTORS LTD,759.00,PUBLIC LIGHTING,EQUIPMENT PURCHASE & REPAIR,5902196122
08.06.2016,ENVIRONMENT DIRECTORATE,AGENTIS WORKWEAR LTD,830.00,STREETS  (NORTH WEST),"CLOTHING, UNIFORMS & LAUNDRY",5902196341
08.06.2016,ENVIRONMENT DIRECTORATE,TEW PLUS LTD,453.80,TOWN CENTRE CCTV,EQUIPMENT PURCHASE & REPAIR,5902196419
08.06.2016,F & C S EXCLUDING CORPORATE BUDGETS,KINTORE WAY CHILDRENS CENTRE,"-1,008.00",PAYMENTS CONTROL,OFFICE EXPENSES,2102497490
08.06.2016,HOUSING GENERAL FUND,INTERSERVE (FACILITIES MANAGEMENT),"12,977.43",CAPITAL PS (REGEN),CONSTRUCTION,5902196181
08.06.2016,HOUSING GENERAL FUND,INTERSERVE (FACILITIES MANAGEMENT),"1,945.46",CAPITAL PS (REGEN),CONSTRUCTION FEES - ENGINEER,5902196178
08.06.2016,HOUSING HRA,VPS (UK) LTD,549.52,CAPITAL PS (HRA),CONSTRUCTION FEES - EXTERNAL,5902196131
08.06.2016,HOUSING HRA,VPS (UK) LTD,686.90,CAPITAL PS (HRA),CONSTRUCTION FEES - EXTERNAL,5902196126
08.06.2016,HOUSING HRA,JOHN BURKE ASSOCIATES,840.00,CAPITAL PS (REGEN),CONSTRUCTION FEES - INTERNAL,5902196128
08.06.2016,HOUSING HRA,JOHN BURKE ASSOCIATES,960.00,CAPITAL PS (REGEN),CONSTRUCTION FEES - INTERNAL,5902196124
08.06.2016,HOUSING HRA,JOHN BURKE ASSOCIATES,"1,080.00",CAPITAL PS (REGEN),CONSTRUCTION FEES - INTERNAL,5902196125
08.06.2016,LEISURE DIRECTORATE,EDWARDES (CAMBERWELL) LTD,556.68,BMX TRACK BURGESS PARK,OTHER R&M,5902196391
08.06.2016,LEISURE DIRECTORATE,LETTERBOX DISTRIBUTION,259.91,BURGESS PARK BMX EVENT,OTHER CONTRACTORS,5902196331
08.06.2016,LEISURE DIRECTORATE,FREDDIE EDWARDS,500.00,CAMBERWELL LIBRARY,PROFESSIONAL FEES,5902196380
08.06.2016,LEISURE DIRECTORATE,SPEEDY ASSET SERVICES LTD,286.00,DULWICH FAIR AREA,"OP.LEASE/HIRE CHARGES: PLANT, EQUIPT & FURNITURE",5902196315
08.06.2016,LEISURE DIRECTORATE,P D CONSTRUCTION LTD,312.40,KINGSWOOD HOUSE,BUILDING R&M,5902196308
08.06.2016,LEISURE DIRECTORATE,CIPFA BUSINESS LTD,335.00,LIBARIES DEVELOPMENT,MARKETING & PUBLICITY SERVICES,5902196291
08.06.2016,LEISURE DIRECTORATE,CIPFA BUSINESS LTD,"5,358.16",LIBARIES DEVELOPMENT,MARKETING & PUBLICITY SERVICES,5902196292
08.06.2016,LEISURE DIRECTORATE,INCENTIVE QAS LTD,"1,330.17",TEMPORARY NEWINGTON,PREMISES CLEANING,5902196293
08.06.2016,LEISURE DIRECTORATE,CITY SUBURBAN TREE SURGEONS LIMITED,"17,638.04",TREE PLANTING,OTHER CONTRACTORS,5902196340
08.06.2016,LEISURE DIRECTORATE,CITY SUBURBAN TREE SURGEONS LIMITED,"18,000.00",TREE PLANTING,OTHER CONTRACTORS,5902196188
08.06.2016,MODERNISATION,EDF ENERGY,280.24,COMMERCIAL PROPERTIES,ELECTRICITY,5902196300
08.06.2016,MODERNISATION,EDF ENERGY,280.35,COMMERCIAL PROPERTIES,ELECTRICITY,5902196296
08.06.2016,MODERNISATION HGF,MARLER HALEY LTD,680.00,160 TOOLEY ST.,EQUIPMENT PURCHASE & REPAIR,5902196298
08.06.2016,MODERNISATION HGF,EDF ENERGY PLC,732.67,CURLEW HOUSE,ELECTRICITY,5902196324
08.06.2016,MODERNISATION HGF,CYRIL SWEETT LTD,"3,650.00",PLANNED MAINTENANCE,BUILDING R&M,5902196148
08.06.2016,MODERNISATION HGF,EDF ENERGY PLC,255.03,QUEENS RD 1 (BLOCK F),ELECTRICITY,5902196319
08.06.2016,MODERNISATION HGF,HARRADINES REMOVALS,"5,503.50",REMOVAL SERVICES,REMOVAL EXPENSES,5902196323
08.06.2016,MODERNISATION HGF,HARRADINES REMOVALS,"18,018.00",REMOVAL SERVICES,REMOVAL EXPENSES,5902196328
08.06.2016,MODERNISATION HGF,APTIVA ENVIRONMENTAL LTD,343.00,REPAIR AND MAINTENANCE SERVICES,BUILDING R&M,2102499279
08.06.2016,MODERNISATION HGF,APTIVA ENVIRONMENTAL LTD,343.00,REPAIR AND MAINTENANCE SERVICES,BUILDING R&M,2102499282
08.06.2016,MODERNISATION HGF,APTIVA ENVIRONMENTAL LTD,480.00,REPAIR AND MAINTENANCE SERVICES,BUILDING R&M,2102499275
08.06.2016,MODERNISATION HGF,APTIVA ENVIRONMENTAL LTD,480.00,REPAIR AND MAINTENANCE SERVICES,BUILDING R&M,2102499277
08.06.2016,MODERNISATION HGF,APTIVA ENVIRONMENTAL LTD,620.00,REPAIR AND MAINTENANCE SERVICES,BUILDING R&M,2102499274
08.06.2016,MODERNISATION HGF,APTIVA ENVIRONMENTAL LTD,862.00,REPAIR AND MAINTENANCE SERVICES,BUILDING R&M,2102499280
08.06.2016,MODERNISATION HGF,APTIVA ENVIRONMENTAL LTD,"1,578.00",REPAIR AND MAINTENANCE SERVICES,BUILDING R&M,2102499281
08.06.2016,PECKHAM AND NUNHEAD COMMUNITY COUNCIL,CONGO PEACE FUND ,"1,500.00",YOUTH GO AHEAD ENGAGEMENT PROJECT ,GRANTS,CHEQUE PAYMENT
08.06.2016,PUBLIC HEALTH,FUSION LIFESTYLE,"2,340.00",NHS HEALTH CHECK,EXTERNAL AGENCIES AND BODIES,5902196424
08.06.2016,PUBLIC HEALTH,FUSION LIFESTYLE,"8,080.00",PHYSICAL ACTIVITY - ADULTS,EXTERNAL AGENCIES AND BODIES,5902196405
08.06.2016,REGENERATION,E.ON,"1,075.51",LBS SOJOURNER TRUTH COMMUNITY CENTRE,ELECTRICITY,5902196171
08.06.2016,REGENERATION,THAMES WATER UTILITIES LTD,535.77,LBS SOJOURNER TRUTH COMMUNITY CENTRE,WATER,5902196205
08.06.2016,REGENERATION,THAMES WATER UTILITIES LTD,809.75,LBS SOJOURNER TRUTH COMMUNITY CENTRE,WATER,5902196205
08.06.2016,RESIDENT SERVICES,POTTER RAPER AND PARTNERS,"2,500.00",OPERATIONS/OFFICES ACCOMMODATION,PROFESSIONAL FEES,5902196401
08.06.2016,RESIDENT SERVICES,PRB ESTATES LTD,"216,829.65",SHELTERED WARDENS,PLANNED MAINTENANCE,2102498462
08.06.2016,RESIDENT SERVICES,TFL TELESALES,630.00,SHELTERED WARDENS,PUBLIC TRANSPORT,5902196245
08.06.2016,SOCIAL SERVICES,CARE DIRECT UK LTD,450.45,OP - HOMECARE,HOMECARE - SPOT,2102498442
08.06.2016,SOCIAL SERVICES,BUDDI LTD,576.00,OP CARE PACKAGES,PERSONALISATION PAYMENTS,2102498459
08.06.2016,SOCIAL SERVICES,BUDDI LTD,588.00,OP CARE PACKAGES,PERSONALISATION PAYMENTS,2102498457
08.06.2016,SOCIAL SERVICES,ARK HOME HEALTHCARE LTD,464.12,PERSONAL BUDGET - SOCIAL CARE,HOMECARE - SPOT,2102498412
08.06.2016,SOCIAL SERVICES,ARK HOME HEALTHCARE LTD,707.50,PERSONAL BUDGET - SOCIAL CARE,HOMECARE - SPOT,2102498410
08.06.2016,SOCIAL SERVICES,ARK HOME HEALTHCARE LTD,747.12,PERSONAL BUDGET - SOCIAL CARE,HOMECARE - SPOT,2102498411
08.06.2016,SOCIAL SERVICES,CROWN HOUSING LTD,"1,050.00",PERSONAL BUDGET - SOCIAL CARE,OTHER PAYMENTS FOR CLIENTS,2102498413
08.06.2016,SOCIAL SERVICES,SAFFRONLAND HOMES,294.56,PERSONAL BUDGET - SOCIAL CARE,OTHER PAYMENTS FOR CLIENTS,2102498414
08.06.2016,SOCIAL SERVICES,SAFFRONLAND HOMES,294.56,PERSONAL BUDGET - SOCIAL CARE,OTHER PAYMENTS FOR CLIENTS,2102498415
08.06.2016,SOCIAL SERVICES,PEOPLE PLUS,478.46,PERSONAL BUDGET - SOCIAL CARE,PERSONALISATION PAYMENTS,2102498456
08.06.2016,SOCIAL SERVICES,ANAHITA REHABILITATION CENTRE LLP,554.04,PETTY CASH/PERSONAL ALLOWANCE,OTHER PAYMENTS FOR CLIENTS,2102497708
08.06.2016,SOCIAL SERVICES,REDACTED PERSONAL DATA,"2,010.00",PETTY CASH/PERSONAL ALLOWANCE,OTHER PAYMENTS FOR CLIENTS,2102497698
08.06.2016,SOCIAL SERVICES,HEALTHCARE & TRANSPORT SERVICE,376.00,PWLD DAY CARE (TRANSPORT),CLIENT TRANSPORT,2102498435
08.06.2016,SOCIAL SERVICES,HEALTHCARE & TRANSPORT SERVICE,450.00,PWLD DAY CARE (TRANSPORT),CLIENT TRANSPORT,2102498440
08.06.2016,SOCIAL SERVICES,HEALTHCARE & TRANSPORT SERVICE,650.00,PWLD DAY CARE (TRANSPORT),CLIENT TRANSPORT,2102498434
08.06.2016,SOCIAL SERVICES,HEALTHCARE & TRANSPORT SERVICE,711.00,PWLD DAY CARE (TRANSPORT),CLIENT TRANSPORT,2102498437
08.06.2016,SOCIAL SERVICES,HEALTHCARE & TRANSPORT SERVICE,976.50,PWLD DAY CARE (TRANSPORT),CLIENT TRANSPORT,2102498436
08.06.2016,SOCIAL SERVICES,SURREY DOCKS FARM PROVIDENT SOCIETY,450.00,PWLD DAYCARE,DAYCARE,2102498420
08.06.2016,SOCIAL SERVICES,SURREY DOCKS FARM PROVIDENT SOCIETY,648.00,PWLD DAYCARE,DAYCARE,2102498422
08.06.2016,SOCIAL SERVICES,LAMBETH MENCAP,"1,766.59",PWLD DAYCARE,EXTERNAL AGENCIES AND BODIES,2102498427
08.06.2016,SOCIAL SERVICES,LAMBETH MENCAP,"2,698.60",PWLD DAYCARE,EXTERNAL AGENCIES AND BODIES,2102498429
08.06.2016,SOCIAL SERVICES,LAMBETH MENCAP,"1,242.56",PWLD DAYCARE,HOMECARE - SPOT,2102498428
08.06.2016,SOCIAL SERVICES,LAMBETH MENCAP,"1,007.60",PWLD HOME CARE IND,EXTERNAL AGENCIES AND BODIES,2102498431
08.06.2016,SOCIAL SERVICES,LAMBETH MENCAP,"1,334.76",PWLD HOME CARE IND,EXTERNAL AGENCIES AND BODIES,2102498426
08.06.2016,SOCIAL SERVICES,LAMBETH MENCAP,922.57,PWLD HOME CARE IND,HOMECARE - SPOT,2102498425
08.06.2016,SOCIAL SERVICES,LAMBETH MENCAP,"6,159.44",PWLD HOME CARE IND,HOMECARE - SPOT,2102498430
08.06.2016,SOCIAL SERVICES,SURREY DOCKS FARM PROVIDENT SOCIETY,675.00,PWPD DAYCARE,DAYCARE,2102498418
08.06.2016,SOCIAL SERVICES,BUDDI LTD,588.00,PWPD DIRECT PAYMENTS,PERSONALISATION PAYMENTS,2102498458
08.06.2016,SOCIAL SERVICES,HAVEN SOCIAL CARE LTD,655.00,PWPD HOME CARE IND,HOMECARE - SPOT,2102498451
08.06.2016,SOCIAL SERVICES,EXPRESS MOVES,260.00,S48 STORAGE,OTHER CONTRACTORS,5902192408
08.06.2016,SOCIAL SERVICES,EXPRESS MOVES,260.00,S48 STORAGE,OTHER CONTRACTORS,5902192414
08.06.2016,SOCIAL SERVICES,EXPRESS MOVES,260.00,S48 STORAGE,OTHER CONTRACTORS,5902192417
08.06.2016,SOCIAL SERVICES,EXPRESS MOVES,260.00,S48 STORAGE,OTHER CONTRACTORS,5902192922
08.06.2016,SOCIAL SERVICES,EXPRESS MOVES,260.00,S48 STORAGE,OTHER CONTRACTORS,5902192983
08.06.2016,SOCIAL SERVICES,EXPRESS MOVES,520.00,S48 STORAGE,OTHER CONTRACTORS,5902192400
08.06.2016,SOCIAL SERVICES,EXPRESS MOVES,520.00,S48 STORAGE,OTHER CONTRACTORS,5902192404
08.06.2016,SOCIAL SERVICES,EXPRESS MOVES,520.00,S48 STORAGE,OTHER CONTRACTORS,5902192405
08.06.2016,SOCIAL SERVICES,EXPRESS MOVES,520.00,S48 STORAGE,OTHER CONTRACTORS,5902192487
08.06.2016,SOCIAL SERVICES,EXPRESS MOVES,780.00,S48 STORAGE,OTHER CONTRACTORS,5902192479
08.06.2016,SOCIAL SERVICES,EXPRESS MOVES,"1,560.00",S48 STORAGE,OTHER CONTRACTORS,5902192413
08.06.2016,SOCIAL SERVICES,TUNSTALL HEALTHCARE (UK) LTD,"1,335.00",SOUTHWARK RESOURCE CENTRE,PUBLIC TRANSPORT,5902196431
08.06.2016,SOUTHWARK BUILDING SERVICES,"BROWNING, JONES & MORRIS LTD",255.00,ROTHERHITHE DAY TO DAY - PLUMBER,MATERIALS,5902196423
08.06.2016,SOUTHWARK BUILDING SERVICES,"BROWNING, JONES & MORRIS LTD",275.00,ROTHERHITHE VOIDS - PLUMBER,MATERIALS,5902196429
08.06.2016,SOUTHWARK BUILDING SERVICES,TELETRAC NAVMAN (UK) LTD,642.75,STORES/LOGISTICS,HIRED VEHICLES,5902195635
09.06.2016,-,CM & HANNELLY BUILDING SERVICES,613.00,STORES,CONSTRUCTION INDUSTRY TAX,2102499983
09.06.2016,-,CROSSFOLD ELECTRICAL WHOLESALERS,354.00,STORES,CREDITORS -GR/IR CLEARING ACCOUNT,5902196564
09.06.2016,-,LONDON TOOLS LIMITED,330.00,STORES,CREDITORS -GR/IR CLEARING ACCOUNT,5902196646
09.06.2016,-,LONDON TOOLS LIMITED,774.00,STORES,CREDITORS -GR/IR CLEARING ACCOUNT,5902196643
09.06.2016,ASSET MANAGEMENT,ARCHIVAL RECORD MANAGEMENT PLC,414.41,DESIGN & DELIVERY (NORTH),INFORMATION MANAGEMENT,2102499991
09.06.2016,ASSET MANAGEMENT,ANTHONY GOLD SOLICITORS,"7,000.00",DISREPAIR,LEGAL FEES & COURT COSTS,2102500000
09.06.2016,ASSET MANAGEMENT,ANTHONY GOLD SOLICITORS,"9,500.00",DISREPAIR,LEGAL FEES & COURT COSTS,2102499998
09.06.2016,ASSET MANAGEMENT,ANTHONY GOLD SOLICITORS,"9,500.00",DISREPAIR,LEGAL FEES & COURT COSTS,2102499999
09.06.2016,ASSET MANAGEMENT,BELSHAW & CURTIN SOLICITORS,"3,050.00",DISREPAIR,LEGAL FEES & COURT COSTS,2102500001
09.06.2016,ASSET MANAGEMENT,GT STEWART SOLICITORS,"5,000.00",DISREPAIR,LEGAL FEES & COURT COSTS,2102500010
09.06.2016,ASSET MANAGEMENT,HOCKFIELD & CO SOLICITORS,"10,125.00",DISREPAIR,LEGAL FEES & COURT COSTS,2102500014
09.06.2016,ASSET MANAGEMENT,KARL KING,750.00,DISREPAIR,LEGAL FEES & COURT COSTS,2102500017
09.06.2016,ASSET MANAGEMENT,MALCOLM G SANKEY,420.00,DISREPAIR,LEGAL FEES & COURT COSTS,2102500024
09.06.2016,ASSET MANAGEMENT,SONIA RAI,350.00,DISREPAIR,LEGAL FEES & COURT COSTS,2102500035
09.06.2016,ASSET MANAGEMENT,SONIA RAI,800.00,DISREPAIR,LEGAL FEES & COURT COSTS,2102500033
09.06.2016,ASSET MANAGEMENT,STEPHEN EVANS,350.00,DISREPAIR,LEGAL FEES & COURT COSTS,2102500040
09.06.2016,ASSET MANAGEMENT,STEPHEN EVANS,350.00,DISREPAIR,LEGAL FEES & COURT COSTS,2102500041
09.06.2016,ASSET MANAGEMENT,STEPHEN EVANS,675.00,DISREPAIR,LEGAL FEES & COURT COSTS,2102500039
09.06.2016,ASSET MANAGEMENT HGF,ENTRYPHONE COMPANY LTD,479.75,ADAPTATIONS,BUILDING R&M,5902196535
09.06.2016,CENTRAL FUNCTIONS,KENT COUNTY COUNCIL - LASER,"1,005.05",HEATING ACCOUNT,ELECTRICITY,2102500054
09.06.2016,CENTRAL FUNCTIONS,KENT COUNTY COUNCIL - LASER,"1,209.21",HEATING ACCOUNT,ELECTRICITY,2102500055
09.06.2016,CENTRAL FUNCTIONS,KENT COUNTY COUNCIL - LASER,"1,222.79",HEATING ACCOUNT,ELECTRICITY,2102500052
09.06.2016,CENTRAL FUNCTIONS,KENT COUNTY COUNCIL - LASER,"1,307.11",HEATING ACCOUNT,ELECTRICITY,2102500058
09.06.2016,CENTRAL FUNCTIONS,KENT COUNTY COUNCIL - LASER,"1,598.92",HEATING ACCOUNT,ELECTRICITY,2102500057
09.06.2016,CENTRAL FUNCTIONS,KENT COUNTY COUNCIL - LASER,"1,693.12",HEATING ACCOUNT,ELECTRICITY,2102500056
09.06.2016,CENTRAL FUNCTIONS,KENT COUNTY COUNCIL - LASER,"2,115.17",HEATING ACCOUNT,ELECTRICITY,2102500053
09.06.2016,CENTRAL FUNCTIONS,ARCHIVAL RECORD MANAGEMENT PLC,358.59,HOME OWNERSHIP,LEGAL FEES & COURT COSTS,2102499991
09.06.2016,CENTRAL FUNCTIONS,OLIVER GOLDSMITH T&RA,800.00,TENANTS FUND,GRANTS,5902196432
09.06.2016,CHIEF EXECUTIVE'S OFFICE,SAVILLS (UK) LTD,"4,000.00",CHIEF EXEC'S OFFICE,RENTS,2102500081
09.06.2016,CHIEF EXECUTIVE'S OFFICE,SAVILLS (UK) LTD,"5,433.00",CHIEF EXEC'S OFFICE,SERVICE CHARGES,2102500098
09.06.2016,CHILDREN AND ADULT,FEILDEN CLEGG BRADLEY STUDIOS LLP,876.00,CAPITAL PS (EDUCATION),CONSTRUCTION FEES - ARCHITECT,5902196497
09.06.2016,CHILDREN AND ADULT,MORGAN SINDALL PLC,"58,329.13",CAPITAL PS (EDUCATION),CONSTRUCTION MAIN CONTRACT - CERTIFICATED,2102499996
09.06.2016,CHILDREN'S SERVICES,REVIVAL,660.00,ADMIN CURLEW,OTHER PAYMENTS FOR CLIENTS,5902196549
09.06.2016,CHILDREN'S SERVICES,EAST DULWICH EST T&RA,330.00,CHILDRENS CENTRE,OTHER SUBSISTENCE & CONFERENCE EXPENSES,5902196508
09.06.2016,CHILDREN'S SERVICES,EAST DULWICH EST T&RA,360.00,CHILDRENS CENTRE,OTHER SUBSISTENCE & CONFERENCE EXPENSES,5902196516
09.06.2016,CHILDREN'S SERVICES,GUARANTEED TRAINING LTD,700.00,CHILDRENS CENTRE,OTHER SUBSISTENCE & CONFERENCE EXPENSES,5902196594
09.06.2016,CHILDREN'S SERVICES,HAILEY TRAINING,"1,447.00",CHILDRENS CENTRE,OTHER SUBSISTENCE & CONFERENCE EXPENSES,5902196522
09.06.2016,CHILDREN'S SERVICES,BRITISH GAS BUSINESS,759.37,EDUC&PARTICIPATION & TRAINING TEAM,GAS,5902196580
09.06.2016,CHILDREN'S SERVICES,FLEET TUTORS,"-20,684.00",EDUCATION OTHERWISE,EXTERNAL AGENCIES AND BODIES,5902193675
09.06.2016,CHILDREN'S SERVICES,FLEET TUTORS,"-5,979.00",EDUCATION OTHERWISE,EXTERNAL AGENCIES AND BODIES,5902193680
09.06.2016,CHILDREN'S SERVICES,FLEET TUTORS,"22,871.00",EDUCATION OTHERWISE,EXTERNAL AGENCIES AND BODIES,5902193678
09.06.2016,CHILDREN'S SERVICES,INTERSERVE HEALTHCARE,506.34,HOME 2 SCHOOL TRANSPORT,CAB FARES,5902196539
09.06.2016,CHILDREN'S SERVICES,BEN ZURAWEL,600.00,LEGAL,LEGAL FEES & COURT COSTS,2102500002
09.06.2016,CHILDREN'S SERVICES,ED LAMB,350.00,LEGAL,LEGAL FEES & COURT COSTS,2102500007
09.06.2016,CHILDREN'S SERVICES,ESTHER MACLACHLAN,325.00,LEGAL,LEGAL FEES & COURT COSTS,2102500009
09.06.2016,CHILDREN'S SERVICES,ESTHER MACLACHLAN,400.00,LEGAL,LEGAL FEES & COURT COSTS,2102500008
09.06.2016,CHILDREN'S SERVICES,JOHN LARKING VERBATIM REPORTERS,-714.33,LEGAL,LEGAL FEES & COURT COSTS,2102501567
09.06.2016,CHILDREN'S SERVICES,JOHN LARKING VERBATIM REPORTERS,714.33,LEGAL,LEGAL FEES & COURT COSTS,2102500016
09.06.2016,CHILDREN'S SERVICES,LAURA BRIGGS,325.00,LEGAL,LEGAL FEES & COURT COSTS,2102500018
09.06.2016,CHILDREN'S SERVICES,LAURA BUMPUS,300.00,LEGAL,LEGAL FEES & COURT COSTS,2102500021
09.06.2016,CHILDREN'S SERVICES,REHNA AZIM,300.00,LEGAL,LEGAL FEES & COURT COSTS,2102500026
09.06.2016,CHILDREN'S SERVICES,REHNA AZIM,350.00,LEGAL,LEGAL FEES & COURT COSTS,2102500025
09.06.2016,CHILDREN'S SERVICES,RICHARD LITTLE,750.00,LEGAL,LEGAL FEES & COURT COSTS,2102500027
09.06.2016,CHILDREN'S SERVICES,TIM PARKER,325.00,LEGAL,LEGAL FEES & COURT COSTS,2102500047
09.06.2016,CHILDREN'S SERVICES,TOM RESTALL,275.00,LEGAL,LEGAL FEES & COURT COSTS,2102500048
09.06.2016,CHILDREN'S SERVICES,1ST PLACE CHILDREN & PARENTS CENTRE,"11,115.00",NURSERY ED GRANT 2 Y Y O,GRANTS,2102499817
09.06.2016,CHILDREN'S SERVICES,1ST PLACE CHILDREN & PARENTS CENTRE,"14,040.00",NURSERY ED GRANT 2 Y Y O,GRANTS,2102499818
09.06.2016,CHILDREN'S SERVICES,1ST PLACE CHILDREN & PARENTS CENTRE,"15,210.00",NURSERY ED GRANT 2 Y Y O,GRANTS,2102499819
09.06.2016,CHILDREN'S SERVICES,ARC COMMUNITY TRUSTEES,"1,215.00",NURSERY ED GRANT 2 Y Y O,GRANTS,2102499866
09.06.2016,CHILDREN'S SERVICES,ARC COMMUNITY TRUSTEES,"2,925.00",NURSERY ED GRANT 2 Y Y O,GRANTS,2102499820
09.06.2016,CHILDREN'S SERVICES,BEORMUND COMMUNITY CENTRE,"1,755.00",NURSERY ED GRANT 2 Y Y O,GRANTS,2102499844
09.06.2016,CHILDREN'S SERVICES,BERMONDSEY COMMUNITY NURSERY,"10,980.00",NURSERY ED GRANT 2 Y Y O,GRANTS,2102499823
09.06.2016,CHILDREN'S SERVICES,BRIGHT EXPLORERS DAY NURSERY,"5,265.00",NURSERY ED GRANT 2 Y Y O,GRANTS,2102499824
09.06.2016,CHILDREN'S SERVICES,BRIGHT HORIZONS FAMILY SOLUTIONS,"6,435.00",NURSERY ED GRANT 2 Y Y O,GRANTS,2102499833
09.06.2016,CHILDREN'S SERVICES,BUDS DAY NURSERY LTD,"7,644.00",NURSERY ED GRANT 2 Y Y O,GRANTS,2102499825
09.06.2016,CHILDREN'S SERVICES,CAMBERWELL AFTER SCHOOL PROJECT,"4,320.00",NURSERY ED GRANT 2 Y Y O,GRANTS,2102499827
09.06.2016,CHILDREN'S SERVICES,COLOURBOX CHILDCARE,"2,340.00",NURSERY ED GRANT 2 Y Y O,GRANTS,2102499829
09.06.2016,CHILDREN'S SERVICES,CREATIVE MINDS CARE AND EDUCATION,"11,700.00",NURSERY ED GRANT 2 Y Y O,GRANTS,2102499830
09.06.2016,CHILDREN'S SERVICES,DESTINY DAY NURSERY,"4,095.00",NURSERY ED GRANT 2 Y Y O,GRANTS,2102499831
09.06.2016,CHILDREN'S SERVICES,DESTINY DAY NURSERY,"5,265.00",NURSERY ED GRANT 2 Y Y O,GRANTS,2102499862
09.06.2016,CHILDREN'S SERVICES,DESTINY KIDS NURSERY LTD,"4,680.00",NURSERY ED GRANT 2 Y Y O,GRANTS,2102499832
09.06.2016,CHILDREN'S SERVICES,DULWICH OAKS MONTESSORI NURSERY SCHOOL,"11,205.00",NURSERY ED GRANT 2 Y Y O,GRANTS,2102499834
09.06.2016,CHILDREN'S SERVICES,DULWICH VILLAGE PRE-SCHOOL,585.00,NURSERY ED GRANT 2 Y Y O,GRANTS,2102499835
09.06.2016,CHILDREN'S SERVICES,EAST DULWICH COMMUNITY NURSERY ASSOCIATION,"2,925.00",NURSERY ED GRANT 2 Y Y O,GRANTS,2102499836
09.06.2016,CHILDREN'S SERVICES,EAST DULWICH GROVE NURSERY LTD,"3,510.00",NURSERY ED GRANT 2 Y Y O,GRANTS,2102499847
09.06.2016,CHILDREN'S SERVICES,ELEPHANT & CASTLE DAY NURSERY LTD,"7,740.00",NURSERY ED GRANT 2 Y Y O,GRANTS,2102499838
09.06.2016,CHILDREN'S SERVICES,FIRST CHOICE DAY NURSERY,"5,895.00",NURSERY ED GRANT 2 Y Y O,GRANTS,2102499816
09.06.2016,CHILDREN'S SERVICES,FOUNTAIN CHILDRENS CENTRE LIMITED,"8,190.00",NURSERY ED GRANT 2 Y Y O,GRANTS,2102499869
09.06.2016,CHILDREN'S SERVICES,GODS GRACE DAYCARE,"7,605.00",NURSERY ED GRANT 2 Y Y O,GRANTS,2102499840
09.06.2016,CHILDREN'S SERVICES,GUMBOOTS COMMUNITY NURSERY,"8,190.00",NURSERY ED GRANT 2 Y Y O,GRANTS,2102499841
09.06.2016,CHILDREN'S SERVICES,HALFPINTS PRE-SCHOOL,"1,755.00",NURSERY ED GRANT 2 Y Y O,GRANTS,2102499842
09.06.2016,CHILDREN'S SERVICES,HEAVEN SENT NURSERY LTD,"7,020.00",NURSERY ED GRANT 2 Y Y O,GRANTS,2102499843
09.06.2016,CHILDREN'S SERVICES,HEAVENLY ANGELS LTD T/A BANANA MOON DAY NURSERY,"14,490.00",NURSERY ED GRANT 2 Y Y O,GRANTS,2102499822
09.06.2016,CHILDREN'S SERVICES,JOY ALLI,585.00,NURSERY ED GRANT 2 Y Y O,GRANTS,2102499861
09.06.2016,CHILDREN'S SERVICES,K & O CHILDCARE LTD,"10,350.00",NURSERY ED GRANT 2 Y Y O,GRANTS,2102499846
09.06.2016,CHILDREN'S SERVICES,KATAYOUN ALAMANI TAFRESHI,"5,850.00",NURSERY ED GRANT 2 Y Y O,GRANTS,2102499875
09.06.2016,CHILDREN'S SERVICES,LITTLE ACORNS DAY NURSERY,"10,620.00",NURSERY ED GRANT 2 Y Y O,GRANTS,2102499849
09.06.2016,CHILDREN'S SERVICES,LITTLE JUNGLE NURSERY LIMITED,"1,170.00",NURSERY ED GRANT 2 Y Y O,GRANTS,2102499850
09.06.2016,CHILDREN'S SERVICES,LITTLE WINNERS DAY NURSERY 1,"13,455.00",NURSERY ED GRANT 2 Y Y O,GRANTS,2102499851
09.06.2016,CHILDREN'S SERVICES,LOGICOUS LTD,"4,410.00",NURSERY ED GRANT 2 Y Y O,GRANTS,2102499821
09.06.2016,CHILDREN'S SERVICES,LONDON EARLY YEARS FOUNDATION,"22,410.00",NURSERY ED GRANT 2 Y Y O,GRANTS,2102499826
09.06.2016,CHILDREN'S SERVICES,MAGIC MIND NURSERY & PRE-SCHOOL,"6,435.00",NURSERY ED GRANT 2 Y Y O,GRANTS,2102499852
09.06.2016,CHILDREN'S SERVICES,MINI TREASURES NURSERY,"3,510.00",NURSERY ED GRANT 2 Y Y O,GRANTS,2102499853
09.06.2016,CHILDREN'S SERVICES,MIQUILINA JUNIOR,"1,170.00",NURSERY ED GRANT 2 Y Y O,GRANTS,2102499876
09.06.2016,CHILDREN'S SERVICES,NEW VISION DAY NURSERY,"13,455.00",NURSERY ED GRANT 2 Y Y O,GRANTS,2102499854
09.06.2016,CHILDREN'S SERVICES,NICKI DAY NURSERY LTD,"9,945.00",NURSERY ED GRANT 2 Y Y O,GRANTS,2102499855
09.06.2016,CHILDREN'S SERVICES,PATRICIA IBIRONKE T/A JOYFUL STAR NURSERY,"3,510.00",NURSERY ED GRANT 2 Y Y O,GRANTS,2102499845
09.06.2016,CHILDREN'S SERVICES,PEOPLES ASSOCIATION YOUTH VISION,"5,265.00",NURSERY ED GRANT 2 Y Y O,GRANTS,2102499857
09.06.2016,CHILDREN'S SERVICES,PUDDLEDUCK NURSERY,585.00,NURSERY ED GRANT 2 Y Y O,GRANTS,2102499856
09.06.2016,CHILDREN'S SERVICES,ROCKINGHAM COMMUNITY NURSERY,"14,040.00",NURSERY ED GRANT 2 Y Y O,GRANTS,2102499858
09.06.2016,CHILDREN'S SERVICES,ROCKINGHAM PRE-SCHOOL,"2,340.00",NURSERY ED GRANT 2 Y Y O,GRANTS,2102499859
09.06.2016,CHILDREN'S SERVICES,ROTHERHITHE PRIMARY SCHOOL,936.00,NURSERY ED GRANT 2 Y Y O,GRANTS,2102499860
09.06.2016,CHILDREN'S SERVICES,S R C COMMUNITY NURSERY,"14,625.00",NURSERY ED GRANT 2 Y Y O,GRANTS,2102499865
09.06.2016,CHILDREN'S SERVICES,SANDRA LITCHMORE,"1,170.00",NURSERY ED GRANT 2 Y Y O,GRANTS,2102499837
09.06.2016,CHILDREN'S SERVICES,SMART KIDS DAY NURSERY,"7,020.00",NURSERY ED GRANT 2 Y Y O,GRANTS,2102499863
09.06.2016,CHILDREN'S SERVICES,SMART START,"5,850.00",NURSERY ED GRANT 2 Y Y O,GRANTS,2102499864
09.06.2016,CHILDREN'S SERVICES,ST MARY'S PRE-SCHOOL,"7,650.00",NURSERY ED GRANT 2 Y Y O,GRANTS,2102499867
09.06.2016,CHILDREN'S SERVICES,SUCCESS ASSOCIATES,"2,340.00",NURSERY ED GRANT 2 Y Y O,GRANTS,2102499848
09.06.2016,CHILDREN'S SERVICES,TADWORTH PRE-SCHOOL,"3,510.00",NURSERY ED GRANT 2 Y Y O,GRANTS,2102499868
09.06.2016,CHILDREN'S SERVICES,THE BEECHES NURSERY GROUP LTD,"1,170.00",NURSERY ED GRANT 2 Y Y O,GRANTS,2102499839
09.06.2016,CHILDREN'S SERVICES,THE CHERRY TREE MONTESSORI NURSERY,"3,510.00",NURSERY ED GRANT 2 Y Y O,GRANTS,2102499828
09.06.2016,CHILDREN'S SERVICES,THE FRUIT TREE DAY NURSERY,"16,380.00",NURSERY ED GRANT 2 Y Y O,GRANTS,2102499870
09.06.2016,CHILDREN'S SERVICES,TODDLE ON INN LTD,"3,510.00",NURSERY ED GRANT 2 Y Y O,GRANTS,2102499871
09.06.2016,CHILDREN'S SERVICES,UNDER THE WILLOW NURSERY,"1,170.00",NURSERY ED GRANT 2 Y Y O,GRANTS,2102499872
09.06.2016,CHILDREN'S SERVICES,VICTORY IN COMMUNITY RESOURCE CENTRE,"9,810.00",NURSERY ED GRANT 2 Y Y O,GRANTS,2102499873
09.06.2016,CHILDREN'S SERVICES,VIVY DAY NURSERY,"5,850.00",NURSERY ED GRANT 2 Y Y O,GRANTS,2102499874
09.06.2016,CHILDREN'S SERVICES,WUSINATU BANGURA,"2,340.00",NURSERY ED GRANT 2 Y Y O,GRANTS,2102499877
09.06.2016,CHILDREN'S SERVICES,1ST PLACE CHILDREN & PARENTS CENTRE,"2,769.00",NURSURERY EDUCATION GRANT-3 Y.O.,GRANTS,2102499881
09.06.2016,CHILDREN'S SERVICES,1ST PLACE CHILDREN & PARENTS CENTRE,"27,361.50",NURSURERY EDUCATION GRANT-3 Y.O.,GRANTS,2102499879
09.06.2016,CHILDREN'S SERVICES,1ST PLACE CHILDREN & PARENTS CENTRE,"31,278.00",NURSURERY EDUCATION GRANT-3 Y.O.,GRANTS,2102499880
09.06.2016,CHILDREN'S SERVICES,ANGEL OAK ACADEMY,"24,433.50",NURSURERY EDUCATION GRANT-3 Y.O.,GRANTS,2102499882
09.06.2016,CHILDREN'S SERVICES,ARC COMMUNITY TRUSTEES,"7,686.00",NURSURERY EDUCATION GRANT-3 Y.O.,GRANTS,2102499967
09.06.2016,CHILDREN'S SERVICES,ARC COMMUNITY TRUSTEES,"11,739.00",NURSURERY EDUCATION GRANT-3 Y.O.,GRANTS,2102499883
09.06.2016,CHILDREN'S SERVICES,ARK SCHOOLS T/A GLOBE ACADEMY,"23,326.88",NURSURERY EDUCATION GRANT-3 Y.O.,GRANTS,2102499914
09.06.2016,CHILDREN'S SERVICES,ASQUITH NURSERIES LTD,"20,455.50",NURSURERY EDUCATION GRANT-3 Y.O.,GRANTS,2102499950
09.06.2016,CHILDREN'S SERVICES,AZARMINDOKHT AALAMANI,"6,174.00",NURSURERY EDUCATION GRANT-3 Y.O.,GRANTS,2102499976
09.06.2016,CHILDREN'S SERVICES,BASCULE LTD,"4,504.50",NURSURERY EDUCATION GRANT-3 Y.O.,GRANTS,2102499947
09.06.2016,CHILDREN'S SERVICES,BASCULE LTD,"9,921.00",NURSURERY EDUCATION GRANT-3 Y.O.,GRANTS,2102499946
09.06.2016,CHILDREN'S SERVICES,BEORMUND COMMUNITY CENTRE,"12,105.00",NURSURERY EDUCATION GRANT-3 Y.O.,GRANTS,2102499924
09.06.2016,CHILDREN'S SERVICES,BERMONDSEY COMMUNITY NURSERY,"16,099.50",NURSURERY EDUCATION GRANT-3 Y.O.,GRANTS,2102499886
09.06.2016,CHILDREN'S SERVICES,BRIGHT EXPLORERS DAY NURSERY,"4,944.00",NURSURERY EDUCATION GRANT-3 Y.O.,GRANTS,2102499890
09.06.2016,CHILDREN'S SERVICES,BRIGHT HORIZONS FAMILY SOLUTIONS,"8,473.50",NURSURERY EDUCATION GRANT-3 Y.O.,GRANTS,2102499904
09.06.2016,CHILDREN'S SERVICES,BRIGHT HORIZONS FAMILY SOLUTIONS,"12,608.70",NURSURERY EDUCATION GRANT-3 Y.O.,GRANTS,2102499891
09.06.2016,CHILDREN'S SERVICES,BUDS DAY NURSERY LTD,"15,719.40",NURSURERY EDUCATION GRANT-3 Y.O.,GRANTS,2102499892
09.06.2016,CHILDREN'S SERVICES,CAMBERWELL AFTER SCHOOL PROJECT,897.00,NURSURERY EDUCATION GRANT-3 Y.O.,GRANTS,2102499894
09.06.2016,CHILDREN'S SERVICES,CEDAR HOUSE DAY NURSERY,"8,170.50",NURSURERY EDUCATION GRANT-3 Y.O.,GRANTS,2102499895
09.06.2016,CHILDREN'S SERVICES,COLBY ROAD DAY NURSERY,535.50,NURSURERY EDUCATION GRANT-3 Y.O.,GRANTS,2102499897
09.06.2016,CHILDREN'S SERVICES,COLOURBOX CHILDCARE,"4,563.00",NURSURERY EDUCATION GRANT-3 Y.O.,GRANTS,2102499898
09.06.2016,CHILDREN'S SERVICES,CREATIVE MINDS CARE AND EDUCATION,"13,591.50",NURSURERY EDUCATION GRANT-3 Y.O.,GRANTS,2102499899
09.06.2016,CHILDREN'S SERVICES,CRYSTAL NURSERY (UK),"14,068.50",NURSURERY EDUCATION GRANT-3 Y.O.,GRANTS,2102499916
09.06.2016,CHILDREN'S SERVICES,CTY NURSERY LTD,"12,841.50",NURSURERY EDUCATION GRANT-3 Y.O.,GRANTS,2102499900
09.06.2016,CHILDREN'S SERVICES,DESTINY DAY NURSERY,"6,513.00",NURSURERY EDUCATION GRANT-3 Y.O.,GRANTS,2102499959
09.06.2016,CHILDREN'S SERVICES,DESTINY DAY NURSERY,"8,131.50",NURSURERY EDUCATION GRANT-3 Y.O.,GRANTS,2102499901
09.06.2016,CHILDREN'S SERVICES,DESTINY KIDS NURSERY LTD,"4,554.00",NURSURERY EDUCATION GRANT-3 Y.O.,GRANTS,2102499902
09.06.2016,CHILDREN'S SERVICES,DULWICH MONTESSORI NURSERY SCHOOL,"9,630.40",NURSURERY EDUCATION GRANT-3 Y.O.,GRANTS,2102499903
09.06.2016,CHILDREN'S SERVICES,DULWICH OAKS MONTESSORI NURSERY SCHOOL,"30,989.40",NURSURERY EDUCATION GRANT-3 Y.O.,GRANTS,2102499905
09.06.2016,CHILDREN'S SERVICES,DULWICH VILLAGE PRE-SCHOOL,"13,178.40",NURSURERY EDUCATION GRANT-3 Y.O.,GRANTS,2102499906
09.06.2016,CHILDREN'S SERVICES,EAST DULWICH COMMUNITY NURSERY ASSOCIATION,"11,895.00",NURSURERY EDUCATION GRANT-3 Y.O.,GRANTS,2102499908
09.06.2016,CHILDREN'S SERVICES,EAST DULWICH GROVE NURSERY LTD,"3,919.50",NURSURERY EDUCATION GRANT-3 Y.O.,GRANTS,2102499930
09.06.2016,CHILDREN'S SERVICES,ELEPHANT & CASTLE DAY NURSERY LTD,"15,795.00",NURSURERY EDUCATION GRANT-3 Y.O.,GRANTS,2102499909
09.06.2016,CHILDREN'S SERVICES,EXCEL CHILD CARE SERVICES LTD,"21,388.50",NURSURERY EDUCATION GRANT-3 Y.O.,GRANTS,2102499911
09.06.2016,CHILDREN'S SERVICES,FIRST CHOICE DAY NURSERY,"13,338.00",NURSURERY EDUCATION GRANT-3 Y.O.,GRANTS,2102499878
09.06.2016,CHILDREN'S SERVICES,FOUNTAIN CHILDRENS CENTRE LIMITED,"15,951.00",NURSURERY EDUCATION GRANT-3 Y.O.,GRANTS,2102499969
09.06.2016,CHILDREN'S SERVICES,GERMAN KINDERGARTEN LTD,"8,248.50",NURSURERY EDUCATION GRANT-3 Y.O.,GRANTS,2102499913
09.06.2016,CHILDREN'S SERVICES,GODS GRACE DAYCARE,"7,429.50",NURSURERY EDUCATION GRANT-3 Y.O.,GRANTS,2102499915
09.06.2016,CHILDREN'S SERVICES,GOOSE GREEN PRIMARY AND NURSERY SCHOOL,"34,212.75",NURSURERY EDUCATION GRANT-3 Y.O.,GRANTS,2102499917
09.06.2016,CHILDREN'S SERVICES,GUMBOOTS COMMUNITY NURSERY,"15,125.50",NURSURERY EDUCATION GRANT-3 Y.O.,GRANTS,2102499918
09.06.2016,CHILDREN'S SERVICES,GUYS & ST THOMAS NHS FOUNDATION TRUST,"6,800.30",NURSURERY EDUCATION GRANT-3 Y.O.,GRANTS,2102499919
09.06.2016,CHILDREN'S SERVICES,HALFMOON MONTESSORI NURSERY,"29,710.20",NURSURERY EDUCATION GRANT-3 Y.O.,GRANTS,2102499921
09.06.2016,CHILDREN'S SERVICES,HALFPINTS PRE-SCHOOL,"6,181.50",NURSURERY EDUCATION GRANT-3 Y.O.,GRANTS,2102499920
09.06.2016,CHILDREN'S SERVICES,HEAVEN SENT NURSERY LTD,"10,749.00",NURSURERY EDUCATION GRANT-3 Y.O.,GRANTS,2102499922
09.06.2016,CHILDREN'S SERVICES,HEAVENLY ANGELS LTD T/A BANANA MOON DAY NURSERY,"4,341.00",NURSURERY EDUCATION GRANT-3 Y.O.,GRANTS,2102499885
09.06.2016,CHILDREN'S SERVICES,HERMAN WHYTE T/A LITTLE CLIMBERS DAYCARE PROJECT,"7,176.00",NURSURERY EDUCATION GRANT-3 Y.O.,GRANTS,2102499934
09.06.2016,CHILDREN'S SERVICES,HUMPTY DUMPTY NURSERY,"2,047.50",NURSURERY EDUCATION GRANT-3 Y.O.,GRANTS,2102499923
09.06.2016,CHILDREN'S SERVICES,JAMES ALLEN GIRLS SCHOOL,"2,245.50",NURSURERY EDUCATION GRANT-3 Y.O.,GRANTS,2102499925
09.06.2016,CHILDREN'S SERVICES,JOHN DONNE PRIMARY SCHOOL,"22,019.63",NURSURERY EDUCATION GRANT-3 Y.O.,GRANTS,2102499926
09.06.2016,CHILDREN'S SERVICES,JOY ALLI,"7,156.50",NURSURERY EDUCATION GRANT-3 Y.O.,GRANTS,2102499958
09.06.2016,CHILDREN'S SERVICES,JULIE THOMPSON,"12,359.40",NURSURERY EDUCATION GRANT-3 Y.O.,GRANTS,2102499888
09.06.2016,CHILDREN'S SERVICES,K & O CHILDCARE LTD,"21,213.00",NURSURERY EDUCATION GRANT-3 Y.O.,GRANTS,2102499928
09.06.2016,CHILDREN'S SERVICES,KATAYOUN ALAMANI TAFRESHI,"3,432.00",NURSURERY EDUCATION GRANT-3 Y.O.,GRANTS,2102499977
09.06.2016,CHILDREN'S SERVICES,KINGS COLLEGE NHS FOUNDATION TRUST,"12,707.50",NURSURERY EDUCATION GRANT-3 Y.O.,GRANTS,2102499929
09.06.2016,CHILDREN'S SERVICES,LITTLE ACORNS DAY NURSERY,845.00,NURSURERY EDUCATION GRANT-3 Y.O.,GRANTS,2102499979
09.06.2016,CHILDREN'S SERVICES,LITTLE ACORNS DAY NURSERY,"32,116.50",NURSURERY EDUCATION GRANT-3 Y.O.,GRANTS,2102499932
09.06.2016,CHILDREN'S SERVICES,LITTLE FINGERS MONTESSORI 2,"6,630.00",NURSURERY EDUCATION GRANT-3 Y.O.,GRANTS,2102499935
09.06.2016,CHILDREN'S SERVICES,LITTLE JUNGLE NURSERY LIMITED,"34,546.20",NURSURERY EDUCATION GRANT-3 Y.O.,GRANTS,2102499936
09.06.2016,CHILDREN'S SERVICES,LITTLE WINNERS DAY NURSERY 1,"9,540.00",NURSURERY EDUCATION GRANT-3 Y.O.,GRANTS,2102499937
09.06.2016,CHILDREN'S SERVICES,LOGICOUS LTD,"9,487.50",NURSURERY EDUCATION GRANT-3 Y.O.,GRANTS,2102499884
09.06.2016,CHILDREN'S SERVICES,LONDON EARLY YEARS FOUNDATION,"15,403.70",NURSURERY EDUCATION GRANT-3 Y.O.,GRANTS,2102499887
09.06.2016,CHILDREN'S SERVICES,LONDON EARLY YEARS FOUNDATION,"23,295.00",NURSURERY EDUCATION GRANT-3 Y.O.,GRANTS,2102499893
09.06.2016,CHILDREN'S SERVICES,MAGIC MIND NURSERY & PRE-SCHOOL,"5,772.00",NURSURERY EDUCATION GRANT-3 Y.O.,GRANTS,2102499938
09.06.2016,CHILDREN'S SERVICES,MIATA EDUCATIONAL SERVICES LTD,"15,015.00",NURSURERY EDUCATION GRANT-3 Y.O.,GRANTS,2102499907
09.06.2016,CHILDREN'S SERVICES,MINI TREASURES NURSERY,"15,561.00",NURSURERY EDUCATION GRANT-3 Y.O.,GRANTS,2102499940
09.06.2016,CHILDREN'S SERVICES,MINI TREASURES NURSERY LTD,"22,795.50",NURSURERY EDUCATION GRANT-3 Y.O.,GRANTS,2102499939
09.06.2016,CHILDREN'S SERVICES,MOTHER GOOSE NURSERIES - GREENDALE FIELDS LTD,"9,145.50",NURSURERY EDUCATION GRANT-3 Y.O.,GRANTS,2102499942
09.06.2016,CHILDREN'S SERVICES,MOTHER GOOSE NURSERIES T/A MOTHER GOOSE,"10,023.00",NURSURERY EDUCATION GRANT-3 Y.O.,GRANTS,2102499941
09.06.2016,CHILDREN'S SERVICES,MOTHER GOOSE NURSERIES T/A MOTHER GOOSE NURSERIES (UPLAND ) LTD,"6,786.00",NURSURERY EDUCATION GRANT-3 Y.O.,GRANTS,2102499943
09.06.2016,CHILDREN'S SERVICES,MUSTARD SEED PRE-SCHOOL,"6,693.30",NURSURERY EDUCATION GRANT-3 Y.O.,GRANTS,2102499944
09.06.2016,CHILDREN'S SERVICES,NEW VISION DAY NURSERY,"12,616.50",NURSURERY EDUCATION GRANT-3 Y.O.,GRANTS,2102499948
09.06.2016,CHILDREN'S SERVICES,NICKI DAY NURSERY LTD,"16,107.00",NURSURERY EDUCATION GRANT-3 Y.O.,GRANTS,2102499949
09.06.2016,CHILDREN'S SERVICES,PATRICIA IBIRONKE T/A JOYFUL STAR NURSERY,"12,304.50",NURSURERY EDUCATION GRANT-3 Y.O.,GRANTS,2102499927
09.06.2016,CHILDREN'S SERVICES,PEOPLES ASSOCIATION YOUTH VISION,"6,418.50",NURSURERY EDUCATION GRANT-3 Y.O.,GRANTS,2102499981
09.06.2016,CHILDREN'S SERVICES,PIPLINGS NURSERY,"11,778.00",NURSURERY EDUCATION GRANT-3 Y.O.,GRANTS,2102499951
09.06.2016,CHILDREN'S SERVICES,PLAYDAYS UK LTD,"19,500.00",NURSURERY EDUCATION GRANT-3 Y.O.,GRANTS,2102499960
09.06.2016,CHILDREN'S SERVICES,PLAYSHACK PLAYGROUP,"5,647.20",NURSURERY EDUCATION GRANT-3 Y.O.,GRANTS,2102499952
09.06.2016,CHILDREN'S SERVICES,PUDDLEDUCK NURSERY,"22,684.50",NURSURERY EDUCATION GRANT-3 Y.O.,GRANTS,2102499953
09.06.2016,CHILDREN'S SERVICES,REDRIFF DAYCARE,"2,125.50",NURSURERY EDUCATION GRANT-3 Y.O.,GRANTS,2102499980
09.06.2016,CHILDREN'S SERVICES,REDRIFF PRIMARY SCHOOL,"28,855.13",NURSURERY EDUCATION GRANT-3 Y.O.,GRANTS,2102499954
09.06.2016,CHILDREN'S SERVICES,ROCKINGHAM COMMUNITY NURSERY,"28,002.00",NURSURERY EDUCATION GRANT-3 Y.O.,GRANTS,2102499955
09.06.2016,CHILDREN'S SERVICES,ROCKINGHAM PRE-SCHOOL,"3,196.50",NURSURERY EDUCATION GRANT-3 Y.O.,GRANTS,2102499956
09.06.2016,CHILDREN'S SERVICES,ROTHERHITHE PRIMARY SCHOOL,"11,973.00",NURSURERY EDUCATION GRANT-3 Y.O.,GRANTS,2102499957
09.06.2016,CHILDREN'S SERVICES,S R C COMMUNITY NURSERY,"14,995.50",NURSURERY EDUCATION GRANT-3 Y.O.,GRANTS,2102499963
09.06.2016,CHILDREN'S SERVICES,SANDRA LITCHMORE,"14,143.50",NURSURERY EDUCATION GRANT-3 Y.O.,GRANTS,2102499910
09.06.2016,CHILDREN'S SERVICES,SMART KIDS DAY NURSERY,"11,779.50",NURSURERY EDUCATION GRANT-3 Y.O.,GRANTS,2102499961
09.06.2016,CHILDREN'S SERVICES,SMART START,"34,417.50",NURSURERY EDUCATION GRANT-3 Y.O.,GRANTS,2102499962
09.06.2016,CHILDREN'S SERVICES,ST JOHNS PRE SCHOOL,"12,928.50",NURSURERY EDUCATION GRANT-3 Y.O.,GRANTS,2102499964
09.06.2016,CHILDREN'S SERVICES,ST JUDES PLAYGROUP,"6,357.00",NURSURERY EDUCATION GRANT-3 Y.O.,GRANTS,2102499965
09.06.2016,CHILDREN'S SERVICES,ST MARY'S PRE-SCHOOL,"6,625.50",NURSURERY EDUCATION GRANT-3 Y.O.,GRANTS,2102499966
09.06.2016,CHILDREN'S SERVICES,SUCCESS ASSOCIATES,"7,428.00",NURSURERY EDUCATION GRANT-3 Y.O.,GRANTS,2102499931
09.06.2016,CHILDREN'S SERVICES,SURE AND FIRM FOUNDATIONS,"11,065.50",NURSURERY EDUCATION GRANT-3 Y.O.,GRANTS,2102499945
09.06.2016,CHILDREN'S SERVICES,TADWORTH PRE-SCHOOL,"6,355.50",NURSURERY EDUCATION GRANT-3 Y.O.,GRANTS,2102499968
09.06.2016,CHILDREN'S SERVICES,THE BEECHES NURSERY GROUP LTD,"16,873.50",NURSURERY EDUCATION GRANT-3 Y.O.,GRANTS,2102499912
09.06.2016,CHILDREN'S SERVICES,THE BOSCO CENTRE,"8,767.20",NURSURERY EDUCATION GRANT-3 Y.O.,GRANTS,2102499889
09.06.2016,CHILDREN'S SERVICES,THE CHERRY TREE MONTESSORI NURSERY,"9,535.50",NURSURERY EDUCATION GRANT-3 Y.O.,GRANTS,2102499896
09.06.2016,CHILDREN'S SERVICES,THE FRUIT TREE DAY NURSERY,"11,973.00",NURSURERY EDUCATION GRANT-3 Y.O.,GRANTS,2102499970
09.06.2016,CHILDREN'S SERVICES,THE VILLA SCHOOL & NURSERY LTD,"69,889.50",NURSURERY EDUCATION GRANT-3 Y.O.,GRANTS,2102499971
09.06.2016,CHILDREN'S SERVICES,TINU ODEKU T/A LITTLE ANGELS CHILDCARE SERVICES,"10,588.50",NURSURERY EDUCATION GRANT-3 Y.O.,GRANTS,2102499933
09.06.2016,CHILDREN'S SERVICES,TODDLE ON INN LTD,"1,384.50",NURSURERY EDUCATION GRANT-3 Y.O.,GRANTS,2102499972
09.06.2016,CHILDREN'S SERVICES,UNDER THE WILLOW NURSERY,"11,212.50",NURSURERY EDUCATION GRANT-3 Y.O.,GRANTS,2102499973
09.06.2016,CHILDREN'S SERVICES,VICTORY IN COMMUNITY RESOURCE CENTRE,"11,547.00",NURSURERY EDUCATION GRANT-3 Y.O.,GRANTS,2102499974
09.06.2016,CHILDREN'S SERVICES,VIVY DAY NURSERY,"3,334.50",NURSURERY EDUCATION GRANT-3 Y.O.,GRANTS,2102499975
09.06.2016,CHILDREN'S SERVICES,WUSINATU BANGURA,897.00,NURSURERY EDUCATION GRANT-3 Y.O.,GRANTS,2102499978
09.06.2016,CHILDREN'S SERVICES,ARCHIVAL RECORD MANAGEMENT PLC,"1,751.68",PERSONNEL,INFORMATION MANAGEMENT,2102499991
09.06.2016,CHILDREN'S SERVICES,RICOH UK LTD,"1,070.04",PLAY SERVICE MANAGEMENT & ADMIN,OFFICE EXPENSES,5902196502
09.06.2016,CHILDREN'S SERVICES,REDACTED PERSONAL DATA,"1,228.50",PUPIL PREMIUM CURRENT YEAR,CONSULTANTS SERVICES,5902196445
09.06.2016,CHILDREN'S SERVICES,FLEET TUTORS,"12,931.00",PUPIL PREMIUM CURRENT YEAR,EXTERNAL AGENCIES AND BODIES,5902196437
09.06.2016,CHILDREN'S SERVICES,FLEET TUTORS,"13,045.00",PUPIL PREMIUM CURRENT YEAR,EXTERNAL AGENCIES AND BODIES,5902196443
09.06.2016,CHILDREN'S SERVICES,HOLMESDALE TECHNOLOGY COLLEGE,350.00,PUPIL PREMIUM CURRENT YEAR,EXTERNAL AGENCIES AND BODIES,5902196593
09.06.2016,CHILDREN'S SERVICES,HOLMESDALE TECHNOLOGY COLLEGE,943.00,PUPIL PREMIUM CURRENT YEAR,EXTERNAL AGENCIES AND BODIES,5902196590
09.06.2016,CHILDREN'S SERVICES,POSTURITE (UK) LTD,637.87,PUPIL PREMIUM CURRENT YEAR,FURNITURE PURCHASE & REPAIR,5902196512
09.06.2016,CHILDREN'S SERVICES,CASTLE HOMES LIMITED,"15,625.11",RESIDENTIAL,RESIDENTIAL CARE,2102499292
09.06.2016,CHILDREN'S SERVICES,CASTLE HOMES LIMITED,"17,614.51",RESIDENTIAL,RESIDENTIAL CARE,2102499293
09.06.2016,CHILDREN'S SERVICES,CASTLE HOMES LIMITED,"17,614.51",RESIDENTIAL,RESIDENTIAL CARE,2102499294
09.06.2016,CHILDREN'S SERVICES,FOOTSTEPS CARE LTD,"11,336.51",RESIDENTIAL,RESIDENTIAL CARE,2102499295
09.06.2016,CHILDREN'S SERVICES,FOOTSTEPS CARE LTD,"22,283.70",RESIDENTIAL,RESIDENTIAL CARE,2102499296
09.06.2016,CHILDREN'S SERVICES,REDACTED PERSONAL DATA,483.11,SPECIAL GUARDIANSHIP,PAYMENTS TO CARERS,2102499289
09.06.2016,CHILDREN'S SERVICES,4 FUTURES LIMITED,"3,250.72",SSF NON SCHOOL SPECIFIC FM,COMPUTER MAINTENANCE,5902196644
09.06.2016,CHILDREN'S SERVICES,4 FUTURES LIMITED,"1,010.93",SSF SPA FM/ICT,COMPUTER MAINTENANCE,5902196640
09.06.2016,CHILDREN'S SERVICES,4 FUTURES LIMITED,"9,420.13",SSF STAC PFI/ICT,COMPUTER MAINTENANCE,5902196633
09.06.2016,CHILDREN'S SERVICES,ST JOHNS WALWORTH CE SCHOOL,"95,224.00",ST JOHNS WALWORTH J,SCHOOLS CAPITATION,5902196579
09.06.2016,CHILDREN'S SERVICES,SOCIETE GENERALE EQUIPMENT FINANCE LTD,295.02,THOMAS CALTON CENTRE,PAYMENTS FOR FINANCIAL SERVICES,5902196483
09.06.2016,COMMUNITIES,DENHAN INTERNATIONAL LTD,"2,077.00",NO RECOURSE TO PUBLIC FUNDS,SECTION 17 PAYMENTS TO AGENCIES/CARERS,5902196462
09.06.2016,COMMUNITIES,WILLOW ESTATE AGENTS (LONDON) LTD,"4,836.00",NO RECOURSE TO PUBLIC FUNDS,SECTION 17 PAYMENTS TO AGENCIES/CARERS,5902196478
09.06.2016,COMMUNITIES,MIHOMECARE LTD,783.02,NRPF PHYSICAL DISABILITIES,HOMECARE - C&V,2102499689
09.06.2016,COMMUNITIES,OLIVER GOLDSMITH T&RA,"1,200.00",TENANTS FUND,GRANTS,5902196430
09.06.2016,CUSTOMER SERVICES,EXTREME ENVIRONMENTAL SERVICES LTD,590.00,5 ESTATES,PREMISES CLEANING,5902196499
